Workbook

Sheet Transend Opex Model >>>>

Sheet Inputs >>>>

Sheet Year
A2: Base Year | B2: Estimated | C2: Year 1 | D2: Year 2 | E2: Year 3 | F2: Year 4 | G2: Year 5
A4: RR2014
A5: 2013 | B5: 2014 | C5: 2015 | D5: 2016 | E5: 2017 | F5: 2018 | G5: 2019
A6: 2012-13 | B6: 2013-14 | C6: 2014-15 | D6: 2015-16 | E6: 2016-17 | F6: 2017-18 | G6: 2018-19

Sheet Input Escalators
A1: 1 | B1: Transend Networks Pty Ltd
A2: =+A1+1 -> 2
A3: 3
A4: 4 | B4: Colour code:
A5: 5 | B5: Required information $m Dec 2012 | E5: links to another worksheet | J5: Titles
A6: 6 | B6: Compulsory base year information 2012-13 $m Dec 2012 actual | E6: checks on information | J6: Information not required
A7: 7 | E7: hard coded information
A8: 8
B9: Table 1.1 Escalators
A10: =+A8+1 -> 9
A11: =+A10+1 -> 10 | E11: Current Determination | H11: New determination
A12: 11 | G12: Estimate | H12: Forecast | I12: =H12 -> Forecast | J12: =I12 -> Forecast | K12: =J12 -> Forecast | L12: =K12 -> Forecast
B13: Financial year ending December | G13: 2013-14 | H13: 2014-15 | I13: 2015-16 | J13: 2016-17 | K13: 2017-18 | L13: 2018-19
B14: Escalators used by Model
B15: Inflation rate (Dec to Dec) | D15: % | G15: 0.0275 | H15: 0.025 | I15: 0.025 | J15: 0.025 | K15: 0.025 | L15: 0.025
B16: Transend EGW | D16: % | G16: 0.002288776033 | H16: -0.003195892254 | I16: 0.01075331299 | J16: 0.02012925432 | K16: 0.0200180366 | L16: 0.01975173733
B17: General non Labour escalator (Dec to Dec) | D17: % | G17: 0 | H17: 0 | I17: 0 | J17: 0 | K17: 0 | L17: 0
B18: Productivity target | D18: % | G18: -0.0175 | H18: -0.005 | I18: -0.005 | J18: -0.005 | K18: -0.005 | L18: -0.005
D19: %
B21: Table 1.2 Growth factor
E23: Current Determination | H23: New determination
F24: Actual | G24: Estimate | H24: Forecast | I24: =H24 -> Forecast | J24: =I24 -> Forecast | K24: =J24 -> Forecast | L24: =K24 -> Forecast
B25: Financial year ending December | F25: 2012-13 | G25: 2013-14 | H25: 2014-15 | I25: 2015-16 | J25: 2016-17 | K25: 2017-18 | L25: 2018-19
B26: Growth factor used by Model
B27: Total | D27: % | G27: 0.0001589604529 | H27: 0.0001140712796 | I27: 0.0001195330658 | J27: 0.004552216497 | K27: 0.0001311097324 | L27: 0.006716227348
B28: Substations | D28: % | G28: 0.0001589604529 | H28: 0.0001140712796 | I28: 0.0001195330658 | J28: 0.004552216497 | K28: 0.0001311097324 | L28: 0.006716227348
B29: Transmission Lines | D29: % | G29: 0.0001589604529 | H29: 0.0001140712796 | I29: 0.0001195330658 | J29: 0.004552216497 | K29: 0.0001311097324 | L29: 0.006716227348
B30: Protection & Control | D30: % | G30: 0.0001589604529 | H30: 0.0001140712796 | I30: 0.0001195330658 | J30: 0.004552216497 | K30: 0.0001311097324 | L30: 0.006716227348
B31: Easements | D31: % | G31: 0.0001589604529 | H31: 0.0001140712796 | I31: 0.0001195330658 | J31: 0.004552216497 | K31: 0.0001311097324 | L31: 0.006716227348
B34: Table 1.3 Efficiency Factor and Labour
B36: Category | E36: Scale factor | G36: Labour
B37: Substations - Preventive | D37: % | E37: 95 | G37: 60
B38: Transmission Lines - Preventive | D38: % | E38: 95 | G38: 70
B39: Protection & Control - Preventive | D39: % | E39: 95 | G39: 85
B40: Easements - Preventive | D40: % | E40: 95 | G40: 70
B41: Substations - Corrective | D41: % | E41: 95 | G41: =G37 -> 60
B42: Transmission Lines - Corrective | D42: % | E42: 95 | G42: =G38 -> 70
B43: Protection & Control - Corrective | D43: % | E43: 95 | G43: =G39 -> 85
B44: Easements - Corrective | D44: % | E44: 95 | G44: =G40 -> 70
B45: Operational communications | D45: % | E45: 95 | G45: 70
B46: Transmission services | D46: % | E46: 25 | G46: 85
B47: Transmission operations | D47: % | E47: 25 | G47: 95
B48: Asset management | D48: % | E48: 25 | G48: 90
B49: Corporate | D49: % | E49: 10 | G49: 70
B50: Insurance | D50: % | E50: 0 | G50: 0
D51: %
D52: %

Sheet Input - Base Controllable
A1: 1
A2: =+A1+1 -> 2
A3: 3
A4: 4 | B4: Colour code:
A5: 5 | B5: Required forecast information $m Dec 2012 | I5: Titles
A6: 6 | B6: Compulsory base year information 2012-13 $m Dec 2012 actual | I6: Information not required
A7: 7
A8: 8
B10: Table 1.1 Preventive Maintenance
B12: Preventive Substations | E12: =+Year!A$6 -> 2012-13 | F12: =+Year!B$6 -> 2013-14 | G12: =+Year!C$6 -> 2014-15 | H12: =+Year!D$6 -> 2015-16 | I12: =+Year!E$6 -> 2016-17 | J12: =+Year!F$6 -> 2017-18 | K12: =+Year!G$6 -> 2018-19 | M12: Comments
E13: Base Year | F13: Forecast | G13: Forecast
B14: Base (Dec 12) | E14: 4.278
B15: One off costs (Dec 12) | E15: 0
B16: Maintenance Forecast (Dec 12)
B17: Scope changes (Dec 12) | F17: 0 | G17: 0 | H17: 0 | I17: 0 | J17: 0 | K17: 0
B18: Zero based (Dec 12) | F18: 0 | G18: 0 | H18: 0 | I18: 0 | J18: 0 | K18: 0
B19: Preventive Transmission Lines | E19: =+Year!A$6 -> 2012-13 | F19: =+Year!B$6 -> 2013-14 | G19: =+Year!C$6 -> 2014-15 | H19: =+Year!D$6 -> 2015-16 | I19: =+Year!E$6 -> 2016-17 | J19: =+Year!F$6 -> 2017-18 | K19: =+Year!G$6 -> 2018-19 | M19: Comments
E20: Base Year | F20: Forecast | G20: Forecast
B21: Base (Dec 12) | E21: 2.74
B22: One off costs (Dec 12) | E22: 0
B23: Maintenance Forecast (Dec 12)
B24: Scope changes (Dec 12) | F24: 0 | G24: 0 | H24: 0 | I24: 0 | J24: 0 | K24: 0
B25: Zero based (Dec 12) | F25: 0 | G25: 0 | H25: 0 | I25: 0 | J25: 0 | K25: 0
B26: Preventive Protection & Control | E26: =+Year!A$6 -> 2012-13 | F26: 2013-14 | G26: 2014-15 | H26: 2015-16 | I26: 2016-17 | J26: 2017-18 | K26: 2018-19 | M26: Comments
E27: Base Year | F27: Forecast | G27: Forecast
B28: Base (Dec 12) | E28: 1.199
B29: One off costs (Dec 12) | E29: 0
B30: Maintenance Forecast (Dec 12)
B31: Scope changes (Dec 12) | F31: 0 | G31: 0 | H31: 0 | I31: 0 | J31: 0 | K31: 0
B32: Zero based (Dec 12) | F32: 0 | G32: 0 | H32: 0 | I32: 0 | J32: 0 | K32: 0
B33: Preventive Easements | E33: =+Year!A$6 -> 2012-13 | F33: 2013-14 | G33: 2014-15 | H33: 2015-16 | I33: 2016-17 | J33: 2017-18 | K33: 2018-19 | M33: Comments
E34: Base Year | F34: Forecast | G34: Forecast
B35: Base (Dec 12) | E35: 3.103
B36: One off costs (Dec 12) | E36: 0
B37: Maintenance Forecast (Dec 12)
B38: Scope changes (Dec 12) | F38: 0 | G38: 0 | H38: 0 | I38: 0 | J38: 0 | K38: 0
B39: Zero based (Dec 12) | F39: 0 | G39: 0 | H39: 0 | I39: 0 | J39: 0 | K39: 0
B41: Table 1.2 Corrective Maintenance
F42: Projection | G42: Projection | H42: Projection | I42: Projection | J42: Projection | K42: Projection
B43: Corrective Substations | E43: =+Year!A$6 -> 2012-13 | F43: 2013-14 | G43: 2014-15 | H43: 2015-16 | I43: 2016-17 | J43: 2017-18 | K43: 2018-19 | M43: Comments
E44: Base Year | F44: Forecast | G44: Forecast
B45: Base (Dec 12) | E45: 0.529
B46: One off costs (Dec 12) | E46: 0
B47: Maintenance Forecast (Dec 12)
B48: Scope changes (Dec 12) | F48: 0 | G48: 0 | H48: 0 | I48: 0 | J48: 0 | K48: 0
B49: Zero based (Dec 12) | F49: 0 | G49: 0 | H49: 0 | I49: 0 | J49: 0 | K49: 0
B50: Corrective Transmission Lines | E50: =+Year!A$6 -> 2012-13 | F50: 2013-14 | G50: 2014-15 | H50: 2015-16 | I50: 2016-17 | J50: 2017-18 | K50: 2018-19 | M50: Comments
E51: Base Year | F51: Forecast | G51: Forecast
B52: Base (Dec 12) | E52: 0.028
B53: One off costs (Dec 12) | E53: 0
B54: Maintenance Forecast (Dec 12)
B55: Scope changes (Dec 12) | F55: 0 | G55: 0 | H55: 0 | I55: 0 | J55: 0 | K55: 0
B56: Zero based (Dec 12) | F56: 0 | G56: 0 | H56: 0 | I56: 0 | J56: 0 | K56: 0
B57: Corrective Protection & Control | E57: =+Year!A$6 -> 2012-13 | F57: 2013-14 | G57: 2014-15 | H57: 2015-16 | I57: 2016-17 | J57: 2017-18 | K57: 2018-19 | M57: Comments
E58: Base Year | F58: Forecast | G58: Forecast
B59: Base (Dec 12) | E59: 0.319
B60: One off costs (Dec 12) | E60: 0
B61: Maintenance Forecast (Dec 12)
B62: Scope changes (Dec 12)
B63: Zero based (Dec 12) | F63: 0 | G63: 0 | H63: 0 | I63: 0 | J63: 0 | K63: 0
B64: Corrective Easements | E64: =+Year!A$6 -> 2012-13 | F64: =+Year!B$6 -> 2013-14 | G64: =+Year!C$6 -> 2014-15 | H64: =+Year!D$6 -> 2015-16 | I64: =+Year!E$6 -> 2016-17 | J64: =+Year!F$6 -> 2017-18 | K64: =+Year!G$6 -> 2018-19 | M64: Comments
E65: Base Year | F65: Forecast | G65: Forecast
B66: Base (Dec 12) | E66: 0
B67: One off costs (Dec 12) | E67: 0
B68: Maintenance Forecast (Dec 12) | F68: 0 | G68: 0 | H68: 0 | I68: 0 | J68: 0 | K68: 0
B69: Scope changes (Dec 12) | F69: 0 | G69: 0 | H69: 0 | I69: 0 | J69: 0 | K69: 0
B70: Zero based (Dec 12) | F70: 0 | G70: 0 | H70: 0 | I70: 0 | J70: 0 | K70: 0
B73: Table 1.3 Operational communications
B75: Operational communications | E75: =+Year!A$6 -> 2012-13 | F75: =+Year!B$6 -> 2013-14 | G75: =+Year!C$6 -> 2014-15 | H75: =+Year!D$6 -> 2015-16 | I75: =+Year!E$6 -> 2016-17 | J75: =+Year!F$6 -> 2017-18 | K75: =+Year!G$6 -> 2018-19 | M75: Comments
E76: Base Year | F76: Forecast | G76: Forecast
B77: Base (Dec 12) | E77: 2.325
B78: One off costs (Dec 12) | E78: 0
B79: Maintenance Forecast (Dec 12) | F79: 0 | G79: 0 | H79: 0 | I79: 0 | J79: 0 | K79: 0
B80: Scope changes (Dec 12)
B81: Zero based (Dec 12) | F81: 0 | G81: 0 | H81: 0 | I81: 0 | J81: 0 | K81: 0
B84: Table 1.4 Transmission services
B86: Engineering services | E86: =+Year!A$6 -> 2012-13 | F86: =+Year!B$6 -> 2013-14 | G86: =+Year!C$6 -> 2014-15 | H86: =+Year!D$6 -> 2015-16 | I86: =+Year!E$6 -> 2016-17 | J86: =+Year!F$6 -> 2017-18 | K86: =+Year!G$6 -> 2018-19 | M86: Comments
E87: Base Year | F87: Forecast | G87: Forecast
B88: Base (Dec 12) | E88: 4.245
B89: One off costs (Dec 12)
B90: Maintenance Forecast (Dec 12) | F90: 0 | G90: 0 | H90: 0 | I90: 0 | J90: 0 | K90: 0
B91: Scope changes (Dec 12) | F91: 0 | G91: 0 | H91: 0 | I91: 0 | J91: 0 | K91: 0
B92: Zero based (Dec 12) | F92: 0 | G92: 0 | H92: 0 | I92: 0 | J92: 0 | K92: 0
B93: Works planning and coordination | E93: =+Year!A$6 -> 2012-13 | F93: =+Year!B$6 -> 2013-14 | G93: =+Year!C$6 -> 2014-15 | H93: =+Year!D$6 -> 2015-16 | I93: =+Year!E$6 -> 2016-17 | J93: =+Year!F$6 -> 2017-18 | K93: =+Year!G$6 -> 2018-19 | M93: Comments
E94: Base Year | F94: Forecast | G94: Forecast
B95: Base (Dec 12) | E95: 2.721
B96: One off costs (Dec 12)
B97: Maintenance Forecast (Dec 12) | F97: 0 | G97: 0 | H97: 0 | I97: 0 | J97: 0 | K97: 0
B98: Scope changes (Dec 12)
B99: Zero based (Dec 12) | F99: 0 | G99: 0 | H99: 0 | I99: 0 | J99: 0 | K99: 0
B102: Table 1.5 Transmission operations
B104: Transmission operations | E104: =+Year!A$6 -> 2012-13 | F104: =+Year!B$6 -> 2013-14 | G104: =+Year!C$6 -> 2014-15 | H104: =+Year!D$6 -> 2015-16 | I104: =+Year!E$6 -> 2016-17 | J104: =+Year!F$6 -> 2017-18 | K104: =+Year!G$6 -> 2018-19 | M104: Comments
E105: Base Year | F105: Forecast | G105: Forecast
B106: Base (Dec 12) | E106: 4.965
B107: One off costs (Dec 12)
B108: Maintenance Forecast (Dec 12) | F108: 0 | G108: 0 | H108: 0 | I108: 0 | J108: 0 | K108: 0
B109: Scope changes (Dec 12) | F109: 0.36 | G109: 0.36 | H109: 0.36 | I109: 0.36 | J109: 0.36 | K109: 0.36 | M109: AEMO operaitng agreement
B110: Zero based (Dec 12) | F110: 0 | G110: 0 | H110: 0 | I110: 0 | J110: 0 | K110: 0
B113: Table 1.4 Asset management
B115: Customer and asset management | E115: =+Year!A$6 -> 2012-13 | F115: =+Year!B$6 -> 2013-14 | G115: =+Year!C$6 -> 2014-15 | H115: =+Year!D$6 -> 2015-16 | I115: =+Year!E$6 -> 2016-17 | J115: =+Year!F$6 -> 2017-18 | K115: =+Year!G$6 -> 2018-19 | M115: Comments
E116: Base Year | F116: Forecast | G116: Forecast
B117: Base (Dec 12) | E117: 6.276
B118: One off costs (Dec 12)
B119: Maintenance Forecast (Dec 12) | F119: 0 | G119: 0 | H119: 0 | I119: 0 | J119: 0 | K119: 0
B120: Scope changes (Dec 12) | F120: 0 | G120: 0 | H120: 0 | I120: 0 | J120: 0 | K120: 0
B121: Zero based (Dec 12) | F121: 0 | G121: 0 | H121: 0 | I121: 0 | J121: 0 | K121: 0
B122: Regulation and compliance | E122: =+Year!A$6 -> 2012-13 | F122: =+Year!B$6 -> 2013-14 | G122: =+Year!C$6 -> 2014-15 | H122: =+Year!D$6 -> 2015-16 | I122: =+Year!E$6 -> 2016-17 | J122: =+Year!F$6 -> 2017-18 | K122: =+Year!G$6 -> 2018-19 | M122: Comments
E123: Base Year | F123: Forecast | G123: Forecast
B124: Base (Dec 12) | E124: 1.543
B125: One off costs (Dec 12) | E125: 0.434 | M125: Revenue Reset Costs in Base Year
B126: Maintenance Forecast (Dec 12) | F126: 0 | G126: 0 | H126: 0 | I126: 0 | J126: 0 | K126: 0
B127: Scope changes (Dec 12) | F127: 0.4 | G127: 0.4 | H127: 0.4 | I127: 0.4 | J127: 0.4 | K127: 0.4 | M127: Better Regulation program
B128: Zero based (Dec 12) | F128: =0.522+0.36-0.2 -> 0.682 | G128: 0.4 | H128: 0 | I128: 0.4 | J128: 0.8 | K128: 0.522 | M128: Reset Costs Forecast (Zero-based)
B131: Table 1.4 Corporate
B133: Business services | E133: =+Year!A$6 -> 2012-13 | F133: =+Year!B$6 -> 2013-14 | G133: =+Year!C$6 -> 2014-15 | H133: =+Year!D$6 -> 2015-16 | I133: =+Year!E$6 -> 2016-17 | J133: =+Year!F$6 -> 2017-18 | K133: =+Year!G$6 -> 2018-19 | M133: Comments
E134: Base Year | F134: Forecast | G134: Forecast
B135: Base (Dec 12) | E135: 6.267
B136: One off costs (Dec 12) | E136: 0
B137: Maintenance Forecast (Dec 12) | G137: 0 | H137: 0 | I137: 0 | J137: 0 | K137: 0
B138: Scope changes (Dec 12) | F138: 0 | G138: 0 | H138: 0 | I138: 0 | J138: 0 | K138: 0
B139: Zero based (Dec 12) | F139: 0 | G139: 0 | H139: 0 | I139: 0 | J139: 0 | K139: 0
B140: Corporate Governance and Business planning | E140: =+Year!A$6 -> 2012-13 | F140: =+Year!B$6 -> 2013-14 | G140: =+Year!C$6 -> 2014-15 | H140: =+Year!D$6 -> 2015-16 | I140: =+Year!E$6 -> 2016-17 | J140: =+Year!F$6 -> 2017-18 | K140: =+Year!G$6 -> 2018-19 | M140: Comments
E141: Base Year | F141: Forecast | G141: Forecast
B142: Base (Dec 12) | E142: 2.601
B143: One off costs (Dec 12)
B144: Maintenance Forecast (Dec 12) | F144: 0 | G144: 0 | H144: 0 | I144: 0 | J144: 0 | K144: 0
B145: Scope changes (Dec 12) | G145: 0 | H145: 0 | I145: 0 | J145: 0 | K145: 0
B146: Zero based (Dec 12) | F146: 0 | G146: 0 | H146: 0 | I146: 0 | J146: 0 | K146: 0
B149: Table 1.4 Insurance
E151: =+Year!A$6 -> 2012-13 | F151: =+Year!B$6 -> 2013-14 | G151: =+Year!C$6 -> 2014-15 | H151: =+Year!D$6 -> 2015-16 | I151: =+Year!E$6 -> 2016-17 | J151: =+Year!F$6 -> 2017-18 | K151: =+Year!G$6 -> 2018-19 | M151: Comments
E152: Base Year | F152: Forecast | G152: Forecast
B153: Base (Dec 12) | E153: 0
B154: One off costs (Dec 12)
B155: Insurance Forecast (Dec 12) | F155: 0 | G155: 0 | H155: 0 | I155: 0 | J155: 0 | K155: 0
B156: Scope changes (Dec 12) | F156: 0 | G156: 0 | H156: 0 | I156: 0 | J156: 0 | K156: 0
F157: 0 | G157: 0 | H157: 0 | I157: 0 | J157: 0 | K157: 0
E158: =+Year!A$6 -> 2012-13 | F158: =+Year!B$6 -> 2013-14 | G158: =+Year!C$6 -> 2014-15 | H158: =+Year!D$6 -> 2015-16 | I158: =+Year!E$6 -> 2016-17 | J158: =+Year!F$6 -> 2017-18 | K158: =+Year!G$6 -> 2018-19
E159: Base Year | F159: Forecast | G159: Forecast
B160: Base (Dec 12) | E160: 0
B161: One off costs (Dec 12) | E161: 0
B162: Maintenance Forecast (Dec 12) | F162: 0 | G162: 0 | H162: 0 | I162: 0 | J162: 0 | K162: 0
B163: Scope changes (Dec 12) | F163: 0 | G163: 0 | H163: 0 | I163: 0 | J163: 0 | K163: 0
B164: Zero based (Dec 12) | F164: 0 | G164: 0 | H164: 0 | I164: 0 | J164: 0 | K164: 0
D165: check | E165: =SUM(E14,E21,E28,E35,E45,E52,E59,E66,E77,E88,E95,E106,E117,E124,E135,E142,E153) -> 43.139

Sheet Other operating Inputs
B2: TNSP | D2: Transend Networks
B5: Colour code:
B6: Titles
B7: Information not required
B8: Information to be entered
B11: CPI | C11: Dec 12 to June 14 | D11: =Calculations!F25 -> 1.040264465
C12: Dec 12 to Dec 13 | D12: =+Calculations!E23 -> 1.0275
B16: Inputs in $m, 2012-13 | E16: =Year!A$6 -> 2012-13 | F16: =Year!B$6 -> 2013-14 | G16: =Year!C$6 -> 2014-15 | H16: =Year!D$6 -> 2015-16 | I16: =Year!E$6 -> 2016-17 | J16: =Year!F$6 -> 2017-18 | K16: =Year!G$6 -> 2018-19
C18: Network support | E18: 0 | F18: 0 | G18: 0 | H18: 0 | I18: 0 | J18: 0 | K18: 0
C19: Debt raising
C20: Equity raising
C21: Insurance | E21: =E39 -> 0.97 | F21: =+F39/D12 -> 0.9440389294 | G21: =+G30/$D$11 -> 0.9661004814 | H21: =+H30/$D$11 -> 0.9891715377 | I21: 1.00647483 | J21: 1.022816828 | K21: 1.036274944
C22: Self Insurance | E22: =E40 -> 0.877 | F22: =+F40/D12 -> 0.8759124088 | G22: =+G31/$D$11 -> 0.6700219259 | H22: 0.6700219259 | I22: 0.6700219259 | J22: 0.6700219259 | K22: 0.6700219259
B25: Inputs in $m, June 2014 | E25: =+E16 -> 2012-13 | F25: =+F16 -> 2013-14 | G25: 2014-15 | H25: 2015-16 | I25: 2016-17 | J25: =Year!F$6 -> 2017-18 | K25: =Year!G$6 -> 2018-19
C27: Network support | E27: =E18*$D$11 -> 0 | F27: =F18*$D$11 -> 0 | G27: 0 | H27: 0 | I27: 0 | J27: 0 | K27: 0
C28: Debt raising | G28: 0.9508858914 | H28: 0.9510829531 | I28: 0.9597156595 | J28: 0.9622680864 | K28: 0.9605707579
C29: Equity raising
C30: Insurance | E30: =E21*$D$11 -> 1.009056531 | F30: =F21*$D$11 -> 0.9820501515 | G30: 1.005 | H30: 1.029 | I30: 1.047 | J30: 1.064 | K30: 1.078
C31: Self Insurance | E31: =E22*$D$11 -> 0.9123119354 | F31: =F22*$D$11 -> 0.9111805529 | G31: 0.697 | H31: 0.697 | I31: 0.697 | J31: 0.697 | K31: 0.697
B34: Inputs in $m, Nominal | E34: =+E25 -> 2012-13 | F34: =+F25 -> 2013-14 | G34: 2014-15 | H34: 2015-16 | I34: 2016-17 | J34: 2017-18 | K34: 2018-19
C36: Network support | E36: =+E18 -> 0 | F36: =+F18*D12 -> 0
C37: Debt raising
C38: Equity raising
C39: Insurance | E39: 0.97 | F39: 0.97
C40: Self Insurance | E40: 0.877 | F40: 0.9

Sheet Calculations >>>>

Sheet Calculations
B5: Inputs | D5: =Year!A$6 -> 2012-13 | E5: =Year!B$6 -> 2013-14 | F5: =Year!C$6 -> 2014-15 | G5: =Year!D$6 -> 2015-16 | H5: =Year!E$6 -> 2016-17 | I5: =Year!F$6 -> 2017-18 | J5: =Year!G$6 -> 2018-19 | K5: =Year!#REF! -> 
B6: Rates | D6: Yr0 | E6: Yr1 | F6: Yr2 | G6: Yr3 | H6: Yr4 | I6: Yr5 | J6: Yr6 | K6: Yr7
B7: Total asset growth | D7: 0 | E7: ='Input Escalators'!G27 -> 0.0001589604529 | F7: ='Input Escalators'!H27 -> 0.0001140712796 | G7: ='Input Escalators'!I27 -> 0.0001195330658 | H7: ='Input Escalators'!J27 -> 0.004552216497 | I7: ='Input Escalators'!K27 -> 0.0001311097324 | J7: ='Input Escalators'!L27 -> 0.006716227348 | K7: ='Input Escalators'!M27 -> 0
B8: Substation growth | D8: 0 | E8: ='Input Escalators'!G28 -> 0.0001589604529 | F8: ='Input Escalators'!H28 -> 0.0001140712796 | G8: ='Input Escalators'!I28 -> 0.0001195330658 | H8: ='Input Escalators'!J28 -> 0.004552216497 | I8: ='Input Escalators'!K28 -> 0.0001311097324 | J8: ='Input Escalators'!L28 -> 0.006716227348 | K8: ='Input Escalators'!M28 -> 0
B9: Transmission lines growth | D9: 0 | E9: ='Input Escalators'!G29 -> 0.0001589604529 | F9: ='Input Escalators'!H29 -> 0.0001140712796 | G9: ='Input Escalators'!I29 -> 0.0001195330658 | H9: ='Input Escalators'!J29 -> 0.004552216497 | I9: ='Input Escalators'!K29 -> 0.0001311097324 | J9: ='Input Escalators'!L29 -> 0.006716227348 | K9: ='Input Escalators'!M29 -> 0
B10: Protection and Control growth | D10: 0 | E10: ='Input Escalators'!G30 -> 0.0001589604529 | F10: ='Input Escalators'!H30 -> 0.0001140712796 | G10: ='Input Escalators'!I30 -> 0.0001195330658 | H10: ='Input Escalators'!J30 -> 0.004552216497 | I10: ='Input Escalators'!K30 -> 0.0001311097324 | J10: ='Input Escalators'!L30 -> 0.006716227348 | K10: ='Input Escalators'!M30 -> 0
B11: Easements growth | D11: 0 | E11: ='Input Escalators'!G31 -> 0.0001589604529 | F11: ='Input Escalators'!H31 -> 0.0001140712796 | G11: ='Input Escalators'!I31 -> 0.0001195330658 | H11: ='Input Escalators'!J31 -> 0.004552216497 | I11: ='Input Escalators'!K31 -> 0.0001311097324 | J11: ='Input Escalators'!L31 -> 0.006716227348 | K11: ='Input Escalators'!M31 -> 0
B12: Labour growth | E12: ='Input Escalators'!G16 -> 0.002288776033 | F12: ='Input Escalators'!H16 -> -0.003195892254 | G12: ='Input Escalators'!I16 -> 0.01075331299 | H12: ='Input Escalators'!J16 -> 0.02012925432 | I12: ='Input Escalators'!K16 -> 0.0200180366 | J12: ='Input Escalators'!L16 -> 0.01975173733 | K12: ='Input Escalators'!M16 -> 0
B13: General Non labour growth | E13: 0 | F13: 0 | G13: 0 | H13: 0 | I13: 0 | J13: 0 | K13: ='Input Escalators'!M17 -> 0
B14: Corporate Non labour growth | E14: 0 | F14: 0 | G14: 0 | H14: 0 | I14: 0 | J14: 0
B15: CPI | E15: ='Input Escalators'!G15 -> 0.0275 | F15: ='Input Escalators'!H15 -> 0.025 | G15: ='Input Escalators'!I15 -> 0.025 | H15: ='Input Escalators'!J15 -> 0.025 | I15: ='Input Escalators'!K15 -> 0.025 | J15: ='Input Escalators'!L15 -> 0.025 | K15: ='Input Escalators'!M15 -> 0
B17: Index | D17: Yr0 | E17: Yr1 | F17: Yr2 | G17: Yr3 | H17: Yr4 | I17: Yr5 | J17: Yr6 | K17: Yr7
B18: Labour growth non base year | E18: =1*(1+E12) -> 1.002288776 | F18: =E18*(1+F12) -> 0.9990855691 | G18: 1.009829049 | H18: 1.030156155 | I18: 1.050777858 | J18: 1.071532547 | K18: 1.071532547
B19: Labour growth base year | E19: =1*(1+E12) -> 1.002288776 | F19: =E19*(1+F12) -> 0.9990855691 | G19: 1.009829049 | H19: 1.030156155 | I19: 1.050777858 | J19: 1.071532547 | K19: 1.071532547
B20: =B13 -> General Non labour growth | E20: =1*(1+E13) -> 1 | F20: =E20*(1+F13) -> 1 | G20: 1 | H20: =G20*(1+H13) -> 1 | I20: 1 | J20: 1 | K20: 1
B23: CPI | D23: 1 | E23: =D23*(1+E15) -> 1.0275 | F23: =E23*(1+F15) -> 1.0531875 | G23: 1.079517187 | H23: 1.106505117 | I23: 1.134167745 | J23: 1.162521939 | K23: 1.162521939
B24: Escalation on Base year | D24: 1
B25: CPI Dec 12 to Jun 14 | D25: 1 | E25: =D25*(1+E15) -> 1.0275 | F25: =E25*((1+F15)^0.5) -> 1.040264465
A29: Inputs | N29: Output in $ December 2012
A31: ='Input - Base Controllable'!B12 -> Preventive Substations | D31: =Year!A$6 -> 2012-13 | E31: =Year!B$6 -> 2013-14 | F31: =Year!C$6 -> 2014-15 | G31: =Year!D$6 -> 2015-16 | H31: =Year!E$6 -> 2016-17 | I31: =Year!F$6 -> 2017-18 | J31: =Year!G$6 -> 2018-19 | K31: =Year!#REF! ->  | P31: =Year!A$6 -> 2012-13 | Q31: =Year!B$6 -> 2013-14 | R31: =Year!C$6 -> 2014-15 | S31: =Year!D$6 -> 2015-16 | T31: =Year!E$6 -> 2016-17 | U31: =Year!F$6 -> 2017-18 | V31: =Year!G$6 -> 2018-19 | W31: =Year!#REF! -> 
B32: Base | C32: =D32 -> Yr0 | D32: Yr0 | E32: Yr1 | F32: Yr2 | G32: Yr3 | H32: Yr4 | I32: Yr5 | J32: Yr6 | K32: Yr7
B33: Labour split | C33: ='Input Escalators'!G37/100 -> 0.6
B34: Scale factor | C34: ='Input Escalators'!E37/100 -> 0.95 | D34: =$C34*D$8 -> 0 | E34: =$C34*E$8 -> 0.0001510124303 | F34: 0.0001083677156 | G34: 0.0001135564125 | H34: 0.004324605673 | I34: 0.0001245542458 | J34: 0.006380415981 | K34: 0
D35: =1+D34 -> 1 | E35: =D35*(1+E34) -> 1.000151012 | F35: 1.000259397 | G35: 1.000372982 | H35: 1.004699201 | I35: 1.004824341 | J35: 1.011235538 | K35: 1.011235538
B36: Base | C36: ='Input - Base Controllable'!E14 -> 4.278 | D36: =C36*$D$24 -> 4.278
B37: less One off | C37: ='Input - Base Controllable'!E15 -> 0 | D37: =C37*$D$24 -> 0 | N37: Summary of base data | P37: Yr0 | Q37: Yr1 | R37: Yr2 | S37: Yr3 | T37: Yr4 | U37: Yr5 | V37: Yr6 | W37: Yr7
B38: Total | D38: =D36-D37 -> 4.278 | E38: =IF(E47=0,$D38,0) -> 4.278 | F38: =E38 -> 4.278 | G38: 4.278 | H38: 4.278 | I38: 4.278 | J38: 4.278 | K38: 4.278 | N38: Base | P38: =D38 -> 4.278 | Q38: =E38 -> 4.278 | R38: 4.278 | S38: 4.278 | T38: 4.278 | U38: 4.278 | V38: 4.278 | W38: 4.278
B39: Labour split | E39: =E38*$C33 -> 2.5668 | F39: =F38*$C33 -> 2.5668 | G39: 2.5668 | H39: 2.5668 | I39: 2.5668 | J39: 2.5668 | K39: 2.5668 | N39: One-off | P39: =D37 -> 0
B40: Wage growth | E40: =E39*E$19 -> 2.57267483 | F40: =F39*F$19 -> 2.564452839 | G40: 2.592029203 | H40: 2.644204818 | I40: 2.697136607 | J40: 2.75040974 | K40: 2.75040974 | N40: Wage growth | Q40: =E40-E39 -> 0.005874830322 | R40: =F40-F39 -> -0.002347161239 | S40: 0.02522920278 | T40: 0.07740481782 | U40: 0.1303366066 | V40: 0.1836097405 | W40: 0.1836097405
B41: Total with wage growth | E41: =E38+(E40-E39) -> 4.28387483 | F41: 4.275652839 | G41: 4.303229203 | H41: 4.355404818 | I41: 4.408336607 | J41: 4.46160974 | K41: 4.46160974 | N41: Asset growth | Q41: =E42-E41 -> 0.0006469183492 | R41: =F42-F41 -> 0.001109089428 | S41: 0.001605028667 | T41: 0.02046692291 | U41: 0.02126731729 | V41: 0.05012858527 | W41: 0.05012858527
B42: Total with wage & asset growth | E42: =E41*E$35 -> 4.284521749 | F42: =F41*F$35 -> 4.276761928 | G42: 4.304834231 | H42: 4.375871741 | I42: 4.429603924 | J42: 4.511738326 | K42: 4.511738326 | N42: Productivity factor | Q42: =+E43-E42 -> 0 | R42: =+F43-F42 -> 0 | S42: 0 | T42: 0 | U42: 0 | V42: 0
B43: Total with productivity factor | E43: =+E42*E$20 -> 4.284521749 | F43: =+F42*F$20 -> 4.276761928 | G43: 4.304834231 | H43: 4.375871741 | I43: 4.429603924 | J43: 4.511738326
B44: Total | E44: =E43 -> 4.284521749 | F44: =F43 -> 4.276761928 | G44: 4.304834231 | H44: 4.375871741 | I44: 4.429603924 | J44: 4.511738326 | K44: =K42 -> 4.511738326 | N44: Total | Q44: =SUM(Q38:Q42) -> 4.284521749 | R44: =SUM(R38:R42) -> 4.276761928 | S44: 4.304834231 | T44: 4.375871741 | U44: 4.429603924 | V44: 4.511738326 | W44: 4.511738326
B46: Maintenance | D46: Yr0 | E46: Yr1 | F46: Yr2 | G46: Yr3 | H46: Yr4 | I46: Yr5 | J46: Yr6 | K46: Yr7 | N46: Summary of Maintenance data | P46: Yr0 | Q46: Yr1 | R46: Yr2 | S46: Yr3 | T46: Yr4 | U46: Yr5 | V46: Yr6 | W46: Yr7
B47: Input Maintenance | E47: ='Input - Base Controllable'!F16 -> 0 | F47: ='Input - Base Controllable'!G16 -> 0 | G47: ='Input - Base Controllable'!H16 -> 0 | H47: ='Input - Base Controllable'!I16 -> 0 | I47: ='Input - Base Controllable'!J16 -> 0 | J47: ='Input - Base Controllable'!K16 -> 0 | K47: ='Input - Base Controllable'!L16 -> 0 | N47: Forecast maintenance | Q47: =E47 -> 0 | R47: =F47 -> 0 | S47: 0 | T47: 0 | U47: 0 | V47: 0 | W47: 0
B48: Labour split | E48: =E47*$C33 -> 0 | F48: =F47*$C33 -> 0 | G48: 0 | H48: 0 | I48: 0 | J48: 0 | K48: 0 | N48: Wage growth | Q48: =E49-E48 -> 0 | R48: =F49-F48 -> 0 | S48: 0 | T48: 0 | U48: 0 | V48: 0 | W48: 0
B49: Wage growth | E49: =E48*E$18 -> 0 | F49: =F48*F$18 -> 0 | G49: 0 | H49: 0 | I49: 0 | J49: 0 | K49: 0 | N49: Asset growth | Q49: =E50-E51 -> 0 | R49: =F51-F50 -> 0 | S49: 0 | T49: 0 | U49: 0 | V49: 0 | W49: 0
B50: Total with wage growth | E50: =E47+(E49-E48) -> 0 | F50: 0 | G50: 0 | H50: 0 | I50: 0 | J50: 0 | K50: 0 | N50: Productivity factor | Q50: =+E52-E51 -> 0 | R50: =+F52-F51 -> 0 | S50: 0 | T50: 0 | U50: 0 | V50: 0
B51: Total with wage & asset growth | E51: =E50*E$35 -> 0 | F51: =F50*F$35 -> 0 | G51: 0 | H51: 0 | I51: 0 | J51: 0 | K51: 0
B52: Total with productivity factor | E52: =+E51*E$20 -> 0 | F52: =+F51*F$20 -> 0 | G52: =+G51*G$20 -> 0 | H52: =+H51*H$20 -> 0 | I52: =+I51*I$20 -> 0 | J52: =+J51*J$20 -> 0
B53: Total | E53: =E52 -> 0 | F53: =F52 -> 0 | G53: 0 | H53: 0 | I53: 0 | J53: 0 | K53: =K51 -> 0 | N53: Total | Q53: =SUM(Q47:Q51) -> 0 | R53: =SUM(R47:R51) -> 0 | S53: 0 | T53: 0 | U53: 0 | V53: 0 | W53: 0
B55: Scope | D55: Yr0 | E55: Yr1 | F55: Yr2 | G55: Yr3 | H55: Yr4 | I55: Yr5 | J55: Yr6 | K55: Yr7 | N55: Summary of scope changes | P55: Yr0 | Q55: Yr1 | R55: Yr2 | S55: Yr3 | T55: Yr4 | U55: Yr5 | V55: Yr6 | W55: Yr7
B56: Input scope | E56: ='Input - Base Controllable'!F17 -> 0 | F56: ='Input - Base Controllable'!G17 -> 0 | G56: ='Input - Base Controllable'!H17 -> 0 | H56: ='Input - Base Controllable'!I17 -> 0 | I56: ='Input - Base Controllable'!J17 -> 0 | J56: ='Input - Base Controllable'!K17 -> 0 | K56: ='Input - Base Controllable'!L17 -> 0 | N56: Forecast scope changes | P56: =D47 -> 0 | Q56: =E56 -> 0 | R56: 0 | S56: 0 | T56: 0 | U56: 0 | V56: 0 | W56: 0
B57: Labour split | E57: =E56*$C33 -> 0 | F57: =F56*$C33 -> 0 | G57: 0 | H57: 0 | I57: 0 | J57: 0 | K57: 0 | N57: Wage growth | Q57: =E58-E57 -> 0 | R57: 0 | S57: 0 | T57: 0 | U57: 0 | V57: 0 | W57: 0
B58: Wage growth | E58: =E57*E$18 -> 0 | F58: =F57*F$18 -> 0 | G58: 0 | H58: 0 | I58: 0 | J58: 0 | K58: 0 | N58: Asset growth | Q58: =E60-E59 -> 0 | R58: 0 | S58: 0 | T58: 0 | U58: 0 | V58: 0 | W58: 0
B59: Total with wage growth | E59: =E56+(E58-E57) -> 0 | F59: 0 | G59: 0 | H59: 0 | I59: 0 | J59: 0 | K59: 0 | N59: Productivity factor | Q59: =+E61-E60 -> 0 | R59: =+F61-F60 -> 0 | S59: =+G61-G60 -> 0 | T59: =+H61-H60 -> 0 | U59: =+I61-I60 -> 0 | V59: =+J61-J60 -> 0
B60: Total with wage & asset growth | E60: =E59*E$35 -> 0 | F60: 0 | G60: 0 | H60: 0 | I60: 0 | J60: 0 | K60: 0
B61: Total with productivity factor | E61: =+E60*E$20 -> 0 | F61: =+F60*F$20 -> 0 | G61: =+G60*G$20 -> 0 | H61: =+H60*H$20 -> 0 | I61: =+I60*I$20 -> 0 | J61: =+J60*J$20 -> 0
B62: Total | E62: =E61 -> 0 | F62: =F61 -> 0 | G62: 0 | H62: 0 | I62: 0 | J62: 0 | K62: =K60 -> 0 | N62: Total | Q62: =SUM(Q56:Q60) -> 0 | R62: =SUM(R56:R60) -> 0 | S62: 0 | T62: 0 | U62: 0 | V62: 0 | W62: 0
B64: Zero based | D64: Yr0 | E64: Yr1 | F64: Yr2 | G64: Yr3 | H64: Yr4 | I64: Yr5 | J64: Yr6 | K64: Yr7 | N64: Summary of zero based costs | P64: Yr0 | Q64: Yr1 | R64: Yr2 | S64: Yr3 | T64: Yr4 | U64: Yr5 | V64: Yr6 | W64: Yr7
B65: Input zero based | E65: ='Input - Base Controllable'!F18 -> 0 | F65: ='Input - Base Controllable'!G18 -> 0 | G65: ='Input - Base Controllable'!H18 -> 0 | H65: ='Input - Base Controllable'!I18 -> 0 | I65: ='Input - Base Controllable'!J18 -> 0 | J65: ='Input - Base Controllable'!K18 -> 0 | K65: ='Input - Base Controllable'!L18 -> 0 | N65: Forecast zero based | P65: =D56 -> 0 | Q65: =E65 -> 0 | R65: 0 | S65: 0 | T65: 0 | U65: 0 | V65: 0 | W65: 0
B66: Labour split | E66: =E65*$C33 -> 0 | F66: =F65*$C33 -> 0 | G66: 0 | H66: 0 | I66: 0 | J66: 0 | K66: 0 | N66: Wage growth | Q66: =E67-E66 -> 0 | R66: 0 | S66: 0 | T66: 0 | U66: 0 | V66: 0 | W66: 0
B67: Wage growth | E67: =E66*E$18 -> 0 | F67: 0 | G67: 0 | H67: 0 | I67: 0 | J67: 0 | K67: 0 | N67: Asset growth | Q67: =E69-E68 -> 0 | R67: 0 | S67: 0 | T67: 0 | U67: 0 | V67: 0 | W67: 0
B68: Total with wage growth | E68: =E65+(E67-E66) -> 0 | F68: 0 | G68: 0 | H68: 0 | I68: 0 | J68: 0 | K68: 0 | N68: Productivity factor | Q68: =+E70-E69 -> 0 | R68: =+F70-F69 -> 0 | S68: =+G70-G69 -> 0 | T68: =+H70-H69 -> 0 | U68: =+I70-I69 -> 0 | V68: =+J70-J69 -> 0
B69: Total with wage & asset growth | E69: =E68 -> 0 | F69: =F68 -> 0 | G69: 0 | H69: 0 | I69: 0 | J69: 0 | K69: =K68*K$35 -> 0
B70: Total with productivity factor | E70: =+E69*E$20 -> 0 | F70: =+F69*F$20 -> 0 | G70: =+G69*G$20 -> 0 | H70: =+H69*H$20 -> 0 | I70: =+I69*I$20 -> 0 | J70: =+J69*J$20 -> 0
B71: Total | E71: =E70 -> 0 | F71: =F70 -> 0 | G71: =G70 -> 0 | H71: =H70 -> 0 | I71: =I70 -> 0 | J71: =J70 -> 0 | K71: =K69 -> 0 | N71: Total | Q71: =SUM(Q65:Q69) -> 0 | R71: =SUM(R65:R69) -> 0 | S71: 0 | T71: 0 | U71: 0 | V71: 0 | W71: 0
B73: Check | N73: Summary
D74: Yr0 | E74: Yr1 | F74: Yr2 | G74: Yr3 | H74: Yr4 | I74: Yr5 | J74: Yr6 | K74: Yr7 | N74: =A31 -> Preventive Substations | P74: Yr0 | Q74: Yr1 | R74: Yr2 | S74: Yr3 | T74: Yr4 | U74: Yr5 | V74: Yr6 | W74: Yr7
B75: Base | D75: =D38 -> 4.278 | E75: =D75 -> 4.278 | F75: =E75 -> 4.278 | G75: 4.278 | H75: 4.278 | I75: 4.278 | J75: 4.278 | K75: 4.278 | N75: Base | P75: =P38 -> 4.278 | Q75: =P75 -> 4.278 | R75: =Q75 -> 4.278 | S75: 4.278 | T75: 4.278 | U75: 4.278 | V75: 4.278 | W75: 4.278
B76: One-Off | D76: =D37 -> 0 | N76: One-Off | P76: =D37 -> 0
B77: Maintenance | E77: =IF(E47>0,E47-E75,0) -> 0 | F77: =IF(F47>0,F47-F75,0) -> 0 | G77: 0 | H77: 0 | I77: 0 | J77: 0 | K77: 0 | N77: Maintenance | Q77: =IF(Q47>0,Q47-Q75,0) -> 0 | R77: =IF(R47>0,R47-R75,0) -> 0 | S77: 0 | T77: 0 | U77: 0 | V77: 0 | W77: 0
B78: Scope | E78: =E56 -> 0 | F78: 0 | G78: 0 | H78: 0 | I78: 0 | J78: 0 | K78: 0 | N78: Scope | Q78: =Q56 -> 0 | R78: =R56 -> 0 | S78: 0 | T78: 0 | U78: 0 | V78: 0 | W78: 0
B79: Zero based | E79: =E65 -> 0 | F79: 0 | G79: 0 | H79: 0 | I79: 0 | J79: 0 | K79: 0 | N79: Zero based | Q79: =Q65 -> 0 | R79: =R65 -> 0 | S79: 0 | T79: 0 | U79: 0 | V79: 0 | W79: 0
B80: Wage growth | E80: =(E40-E39)+(E49-E48)+(E58-E57)+(E67-E66) -> 0.005874830322 | F80: =(F40-F39)+(F49-F48)+(F58-F57)+(F67-F66) -> -0.002347161239 | G80: 0.02522920278 | H80: 0.07740481782 | I80: 0.1303366066 | J80: 0.1836097405 | K80: 0.1836097405 | N80: Wage growth | Q80: =Q40+Q48+Q57+Q66 -> 0.005874830322 | R80: =R40+R48+R57+R66 -> -0.002347161239 | S80: 0.02522920278 | T80: 0.07740481782 | U80: 0.1303366066 | V80: 0.1836097405 | W80: 0.1836097405
B81: Asset growth | E81: =(E42-E41)+(E51-E50)+(E60-E59)+(E69-E68) -> 0.0006469183492 | F81: =(F42-F41)+(F51-F50)+(F60-F59)+(F69-F68) -> 0.001109089428 | G81: 0.001605028667 | H81: 0.02046692291 | I81: 0.02126731729 | J81: 0.05012858527 | K81: 0.05012858527 | N81: Asset growth | Q81: =Q41+Q49+Q58+Q67 -> 0.0006469183492 | R81: =R41+R49+R58+R67 -> 0.001109089428 | S81: 0.001605028667 | T81: 0.02046692291 | U81: 0.02126731729 | V81: 0.05012858527 | W81: 0.05012858527
B82: Productivity factor | E82: =(E43-E42)+(E52-E51)+(E61-E60)+(E70-E69) -> 0 | F82: 0 | G82: 0 | H82: 0 | I82: 0 | J82: 0 | N82: Productivity factor | Q82: =Q42+Q50+Q59+Q68 -> 0 | R82: =R42+R50+R59+R68 -> 0 | S82: 0 | T82: 0 | U82: 0 | V82: 0
B83: Total | D83: =SUM(D75:D82) -> 4.278 | E83: =SUM(E75:E82) -> 4.284521749 | F83: 4.276761928 | G83: 4.304834231 | H83: 4.375871741 | I83: 4.429603924 | J83: 4.511738326 | K83: =SUM(K75:K81) -> 4.511738326 | N83: Total | P83: =SUM(P75:P82) -> 4.278 | Q83: =SUM(Q75:Q82) -> 4.284521749 | R83: 4.276761928 | S83: 4.304834231 | T83: 4.375871741 | U83: 4.429603924 | V83: 4.511738326 | W83: =SUM(W75:W81) -> 4.511738326
A86: ='Input - Base Controllable'!B19 -> Preventive Transmission Lines
B87: Base | C87: =D87 -> Yr0 | D87: Yr0 | E87: Yr1 | F87: Yr2 | G87: Yr3 | H87: Yr4 | I87: Yr5 | J87: Yr6 | K87: Yr7
B88: Labour split | C88: ='Input Escalators'!G38/100 -> 0.7
B89: Scale factor | C89: ='Input Escalators'!E38/100 -> 0.95 | D89: =$C89*D$9 -> 0 | E89: =$C89*E$9 -> 0.0001510124303 | F89: 0.0001083677156 | G89: 0.0001135564125 | H89: 0.004324605673 | I89: 0.0001245542458 | J89: 0.006380415981 | K89: 0
D90: =1+D89 -> 1 | E90: =D90*(1+E89) -> 1.000151012 | F90: 1.000259397 | G90: 1.000372982 | H90: 1.004699201 | I90: 1.004824341 | J90: 1.011235538 | K90: 1.011235538
B91: Input | C91: ='Input - Base Controllable'!E21 -> 2.74 | D91: =C91*$D$24 -> 2.74
B92: less Zero base | C92: ='Input - Base Controllable'!E22 -> 0 | D92: =C92*$D$24 -> 0 | N92: Summary of base data | P92: Yr0 | Q92: Yr1 | R92: Yr2 | S92: Yr3 | T92: Yr4 | U92: Yr5 | V92: Yr6 | W92: Yr7
B93: Total | D93: =D91-D92 -> 2.74 | E93: =IF(E102=0,$D93,0) -> 2.74 | F93: =E93 -> 2.74 | G93: 2.74 | H93: 2.74 | I93: 2.74 | J93: 2.74 | K93: 2.74 | N93: Base | P93: =D93 -> 2.74 | Q93: 2.74 | R93: 2.74 | S93: 2.74 | T93: 2.74 | U93: 2.74 | V93: 2.74 | W93: 2.74
B94: Labour split | E94: =E93*$C88 -> 1.918 | F94: 1.918 | G94: 1.918 | H94: 1.918 | I94: 1.918 | J94: 1.918 | K94: 1.918 | N94: One-off | P94: =D92 -> 0
B95: Wage growth | E95: =E94*E$19 -> 1.922389872 | F95: =F94*F$19 -> 1.916246122 | G95: 1.936852116 | H95: 1.975839505 | I95: 2.015391932 | J95: 2.055199424 | K95: 2.055199424 | N95: Wage growth | Q95: =E95-E94 -> 0.004389872432 | R95: -0.00175387847 | S95: 0.01885211584 | T95: 0.05783950467 | U95: 0.09739193219 | V95: 0.1371994243 | W95: 0.1371994243
B96: Total with wage growth | E96: =E93+(E95-E94) -> 2.744389872 | F96: 2.738246122 | G96: 2.758852116 | H96: 2.797839505 | I96: 2.837391932 | J96: 2.877199424 | K96: 2.877199424 | N96: Asset growth | Q96: =E97-E96 -> 0.0004144369843 | R96: 0.0007102914897 | S96: 0.001029003227 | T96: 0.01314761035 | U96: 0.01368854511 | V96: 0.03232688314 | W96: 0.03232688314
B97: Total with wage & asset growth | E97: =E96*E$90 -> 2.744804309 | F97: =F96*F$90 -> 2.738956413 | G97: 2.759881119 | H97: 2.810987115 | I97: 2.851080477 | J97: 2.909526307 | K97: 2.909526307 | N97: Productivity factor | Q97: =+E98-E97 -> 0 | R97: =+F98-F97 -> 0 | S97: 0 | T97: 0 | U97: 0 | V97: 0
B98: Total with productivity factor | E98: =+E97*E$20 -> 2.744804309 | F98: =+F97*F$20 -> 2.738956413 | G98: =+G97*G$20 -> 2.759881119 | H98: =+H97*H$20 -> 2.810987115 | I98: =+I97*I$20 -> 2.851080477 | J98: =+J97*J$20 -> 2.909526307
B99: Total | E99: =E98 -> 2.744804309 | F99: =F98 -> 2.738956413 | G99: =G98 -> 2.759881119 | H99: =H98 -> 2.810987115 | I99: =I98 -> 2.851080477 | J99: =J98 -> 2.909526307 | K99: =K97 -> 2.909526307 | N99: Total | Q99: =SUM(Q93:Q97) -> 2.744804309 | R99: =SUM(R93:R97) -> 2.738956413 | S99: 2.759881119 | T99: 2.810987115 | U99: 2.851080477 | V99: 2.909526307 | W99: 2.909526307
B101: Maintenance | D101: Yr0 | E101: Yr1 | F101: Yr2 | G101: Yr3 | H101: Yr4 | I101: Yr5 | J101: Yr6 | K101: Yr7 | N101: Summary of Maintenance data | P101: Yr0 | Q101: Yr1 | R101: Yr2 | S101: Yr3 | T101: Yr4 | U101: Yr5 | V101: Yr6 | W101: Yr7
B102: Input Maintenance | E102: ='Input - Base Controllable'!F23 -> 0 | F102: ='Input - Base Controllable'!G23 -> 0 | G102: ='Input - Base Controllable'!H23 -> 0 | H102: ='Input - Base Controllable'!I23 -> 0 | I102: ='Input - Base Controllable'!J23 -> 0 | J102: ='Input - Base Controllable'!K23 -> 0 | K102: ='Input - Base Controllable'!L23 -> 0 | N102: Forecast maintenance | Q102: =E102 -> 0 | R102: 0 | S102: 0 | T102: 0 | U102: 0 | V102: 0 | W102: 0
B103: Labour split | E103: =E102*$C88 -> 0 | F103: 0 | G103: 0 | H103: 0 | I103: 0 | J103: 0 | K103: 0 | N103: Wage growth | Q103: =E104-E103 -> 0 | R103: 0 | S103: 0 | T103: 0 | U103: 0 | V103: 0 | W103: 0
B104: Wage growth | E104: =E103*E$18 -> 0 | F104: 0 | G104: 0 | H104: 0 | I104: 0 | J104: 0 | K104: 0 | N104: Asset growth | Q104: =E105-E106 -> 0 | R104: =F106-F105 -> 0 | S104: 0 | T104: 0 | U104: 0 | V104: 0 | W104: 0
B105: Total with wage growth | E105: =E102+(E104-E103) -> 0 | F105: 0 | G105: 0 | H105: 0 | I105: 0 | J105: 0 | K105: 0 | N105: Productivity factor | Q105: =+E107-E106 -> 0 | R105: =+F107-F106 -> 0 | S105: 0 | T105: 0 | U105: 0 | V105: 0
B106: Total with wage & asset growth | E106: =E105*E$90 -> 0 | F106: 0 | G106: 0 | H106: 0 | I106: 0 | J106: 0 | K106: 0
B107: Total with productivity factor | E107: =+E106*E$20 -> 0 | F107: =+F106*F$20 -> 0 | G107: =+G106*G$20 -> 0 | H107: =+H106*H$20 -> 0 | I107: =+I106*I$20 -> 0 | J107: =+J106*J$20 -> 0
B108: Total | E108: =E107 -> 0 | F108: =F107 -> 0 | G108: =G107 -> 0 | H108: =H107 -> 0 | I108: =I107 -> 0 | J108: =J107 -> 0 | K108: =K106 -> 0 | N108: Total | Q108: =SUM(Q102:Q106) -> 0 | R108: 0 | S108: 0 | T108: 0 | U108: 0 | V108: 0 | W108: 0
B110: Scope | D110: Yr0 | E110: Yr1 | F110: Yr2 | G110: Yr3 | H110: Yr4 | I110: Yr5 | J110: Yr6 | K110: Yr7 | N110: Summary of scope changes | P110: Yr0 | Q110: Yr1 | R110: Yr2 | S110: Yr3 | T110: Yr4 | U110: Yr5 | V110: Yr6 | W110: Yr7
B111: Input scope | E111: ='Input - Base Controllable'!F66 -> 0 | F111: ='Input - Base Controllable'!G66 -> 0 | G111: ='Input - Base Controllable'!H66 -> 0 | H111: ='Input - Base Controllable'!I66 -> 0 | I111: ='Input - Base Controllable'!J66 -> 0 | J111: ='Input - Base Controllable'!K66 -> 0 | K111: ='Input - Base Controllable'!L66 -> 0 | N111: Forecast scope changes | P111: =D102 -> 0 | Q111: =E111 -> 0 | R111: 0 | S111: 0 | T111: 0 | U111: 0 | V111: 0 | W111: 0
B112: Labour split | E112: =E111*$C88 -> 0 | F112: 0 | G112: 0 | H112: 0 | I112: 0 | J112: 0 | K112: 0 | N112: Wage growth | Q112: =E113-E112 -> 0 | R112: 0 | S112: 0 | T112: 0 | U112: 0 | V112: 0 | W112: 0
B113: Wage growth | E113: =E112*E$18 -> 0 | F113: 0 | G113: 0 | H113: 0 | I113: 0 | J113: 0 | K113: 0 | N113: Asset growth | Q113: =E115-E114 -> 0 | R113: 0 | S113: 0 | T113: 0 | U113: 0 | V113: 0 | W113: 0
B114: Total with wage growth | E114: =E111+(E113-E112) -> 0 | F114: 0 | G114: 0 | H114: 0 | I114: 0 | J114: 0 | K114: 0 | N114: Productivity factor | Q114: =+E116-E115 -> 0 | R114: =+F116-F115 -> 0 | S114: =+G116-G115 -> 0 | T114: =+H116-H115 -> 0 | U114: =+I116-I115 -> 0 | V114: =+J116-J115 -> 0
B115: Total with wage & asset growth | E115: =E114*E$90 -> 0 | F115: 0 | G115: 0 | H115: 0 | I115: 0 | J115: 0 | K115: 0
B116: Total with productivity factor | E116: =+E115*E$20 -> 0 | F116: =+F115*F$20 -> 0 | G116: =+G115*G$20 -> 0 | H116: =+H115*H$20 -> 0 | I116: =+I115*I$20 -> 0 | J116: =+J115*J$20 -> 0
B117: Total | E117: =E116 -> 0 | F117: =F116 -> 0 | G117: =G116 -> 0 | H117: =H116 -> 0 | I117: =I116 -> 0 | J117: =J116 -> 0 | K117: =K115 -> 0 | N117: Total | Q117: =SUM(Q111:Q115) -> 0 | R117: =SUM(R111:R115) -> 0 | S117: 0 | T117: =SUM(T111:T115) -> 0 | U117: 0 | V117: 0 | W117: 0
B119: Zero based | D119: Yr0 | E119: Yr1 | F119: Yr2 | G119: Yr3 | H119: Yr4 | I119: Yr5 | J119: Yr6 | K119: Yr7 | N119: Summary of zero based costs | P119: Yr0 | Q119: Yr1 | R119: Yr2 | S119: Yr3 | T119: Yr4 | U119: Yr5 | V119: Yr6 | W119: Yr7
B120: Input zero based | E120: ='Input - Base Controllable'!F67 -> 0 | F120: ='Input - Base Controllable'!G67 -> 0 | G120: ='Input - Base Controllable'!H67 -> 0 | H120: ='Input - Base Controllable'!I67 -> 0 | I120: ='Input - Base Controllable'!J67 -> 0 | J120: ='Input - Base Controllable'!K67 -> 0 | K120: ='Input - Base Controllable'!L67 -> 0 | N120: Forecast zero based | P120: =D111 -> 0 | Q120: =E120 -> 0 | R120: 0 | S120: 0 | T120: 0 | U120: 0 | V120: 0 | W120: 0
B121: Labour split | E121: =E120*$C88 -> 0 | F121: 0 | G121: 0 | H121: 0 | I121: 0 | J121: 0 | K121: 0 | N121: Wage growth | Q121: =E122-E121 -> 0 | R121: 0 | S121: 0 | T121: 0 | U121: 0 | V121: 0 | W121: 0
B122: Wage growth | E122: =E121*E$18 -> 0 | F122: 0 | G122: 0 | H122: 0 | I122: 0 | J122: 0 | K122: 0 | N122: Asset growth | Q122: =E124-E123 -> 0 | R122: 0 | S122: 0 | T122: 0 | U122: 0 | V122: 0 | W122: 0
B123: Total with wage growth | E123: =E120+(E122-E121) -> 0 | F123: 0 | G123: 0 | H123: 0 | I123: 0 | J123: 0 | K123: 0 | N123: Productivity factor | Q123: =+E125-E124 -> 0 | R123: =+F125-F124 -> 0 | S123: =+G125-G124 -> 0 | T123: =+H125-H124 -> 0 | U123: =+I125-I124 -> 0 | V123: =+J125-J124 -> 0
B124: Total with wage & asset growth | E124: =E123 -> 0 | F124: =F123 -> 0 | G124: 0 | H124: 0 | I124: 0 | J124: 0 | K124: =K123*K$90 -> 0
B125: Total with productivity factor | E125: =+E124*E$20 -> 0 | F125: =+F124*F$20 -> 0 | G125: =+G124*G$20 -> 0 | H125: =+H124*H$20 -> 0 | I125: =+I124*I$20 -> 0 | J125: =+J124*J$20 -> 0
B126: Total | E126: =E125 -> 0 | F126: =F125 -> 0 | G126: =G125 -> 0 | H126: =H125 -> 0 | I126: =I125 -> 0 | J126: =J125 -> 0 | K126: =K124 -> 0 | N126: Total | Q126: =SUM(Q120:Q124) -> 0 | R126: 0 | S126: 0 | T126: 0 | U126: 0 | V126: 0 | W126: 0
B128: Check | N128: Summary
D129: Yr0 | E129: Yr1 | F129: Yr2 | G129: Yr3 | H129: Yr4 | I129: Yr5 | J129: Yr6 | K129: Yr7 | N129: =A86 -> Preventive Transmission Lines | P129: 06/07 | Q129: 07/08 | R129: 08/09 | S129: 09/10 | T129: 10/11 | U129: 11/12 | V129: 12/13 | W129: 13/14
B130: Base | D130: =D93 -> 2.74 | E130: =D130 -> 2.74 | F130: =E130 -> 2.74 | G130: 2.74 | H130: 2.74 | I130: 2.74 | J130: 2.74 | K130: 2.74 | N130: Base | P130: =P93 -> 2.74 | Q130: =P130 -> 2.74 | R130: =Q130 -> 2.74 | S130: 2.74 | T130: 2.74 | U130: 2.74 | V130: 2.74 | W130: 2.74
B131: One-Off | D131: =D92 -> 0 | N131: One-Off | P131: =D92 -> 0
B132: Maintenance | E132: =IF(E102>0,E102-E130,0) -> 0 | F132: 0 | G132: 0 | H132: 0 | I132: 0 | J132: 0 | K132: 0 | N132: Maintenance | Q132: =IF(Q102>0,Q102-Q130,0) -> 0 | R132: 0 | S132: 0 | T132: 0 | U132: 0 | V132: 0 | W132: 0
B133: Scope | E133: =E111 -> 0 | F133: 0 | G133: 0 | H133: 0 | I133: 0 | J133: 0 | K133: 0 | N133: Scope | Q133: =Q111 -> 0 | R133: 0 | S133: 0 | T133: 0 | U133: 0 | V133: 0 | W133: 0
B134: Zero based | E134: =E120 -> 0 | F134: 0 | G134: 0 | H134: 0 | I134: 0 | J134: 0 | K134: 0 | N134: Zero based | Q134: =Q120 -> 0 | R134: =R120 -> 0 | S134: 0 | T134: 0 | U134: 0 | V134: 0 | W134: 0
B135: Wage growth | E135: =(E95-E94)+(E104-E103)+(E113-E112)+(E122-E121) -> 0.004389872432 | F135: -0.00175387847 | G135: 0.01885211584 | H135: 0.05783950467 | I135: 0.09739193219 | J135: 0.1371994243 | K135: 0.1371994243 | N135: Wage growth | Q135: =Q95+Q103+Q112+Q121 -> 0.004389872432 | R135: -0.00175387847 | S135: 0.01885211584 | T135: 0.05783950467 | U135: 0.09739193219 | V135: 0.1371994243 | W135: 0.1371994243
B136: Asset growth | E136: =(E97-E96)+(E106-E105)+(E115-E114)+(E124-E123) -> 0.0004144369843 | F136: 0.0007102914897 | G136: 0.001029003227 | H136: 0.01314761035 | I136: 0.01368854511 | J136: 0.03232688314 | K136: 0.03232688314 | N136: Asset growth | Q136: 0.0004144369843 | R136: 0.0007102914897 | S136: 0.001029003227 | T136: 0.01314761035 | U136: 0.01368854511 | V136: 0.03232688314 | W136: 0.03232688314
B137: Productivity factor | E137: =(E98-E97)+(E107-E106)+(E116-E115)+(E125-E124) -> 0 | F137: 0 | G137: 0 | H137: 0 | I137: 0 | J137: 0 | N137: Productivity factor | Q137: =Q97+Q105+Q114+Q123 -> 0 | R137: 0 | S137: 0 | T137: 0 | U137: 0 | V137: 0
B138: Total | D138: =SUM(D130:D137) -> 2.74 | E138: =SUM(E130:E137) -> 2.744804309 | F138: =SUM(F130:F137) -> 2.738956413 | G138: =SUM(G130:G137) -> 2.759881119 | H138: =SUM(H130:H137) -> 2.810987115 | I138: =SUM(I130:I137) -> 2.851080477 | J138: =SUM(J130:J137) -> 2.909526307 | K138: =SUM(K130:K136) -> 2.909526307 | N138: Total | P138: =SUM(P130:P137) -> 2.74 | Q138: =SUM(Q130:Q137) -> 2.744804309 | R138: 2.738956413 | S138: 2.759881119 | T138: 2.810987115 | U138: 2.851080477 | V138: 2.909526307 | W138: =SUM(W130:W136) -> 2.909526307
A143: ='Input - Base Controllable'!B26 -> Preventive Protection & Control
B144: Base | C144: =D144 -> Yr0 | D144: Yr0 | E144: Yr1 | F144: Yr2 | G144: Yr3 | H144: Yr4 | I144: Yr5 | J144: Yr6 | K144: Yr7
B145: Labour split | C145: ='Input Escalators'!G39/100 -> 0.85
B146: Scale factor | C146: ='Input Escalators'!E39/100 -> 0.95 | D146: =$C146*D$10 -> 0 | E146: =$C146*E$10 -> 0.0001510124303 | F146: 0.0001083677156 | G146: 0.0001135564125 | H146: 0.004324605673 | I146: 0.0001245542458 | J146: 0.006380415981 | K146: 0
D147: =1+D146 -> 1 | E147: =D147*(1+E146) -> 1.000151012 | F147: 1.000259397 | G147: 1.000372982 | H147: 1.004699201 | I147: 1.004824341 | J147: 1.011235538 | K147: 1.011235538
B148: Input | C148: ='Input - Base Controllable'!E28 -> 1.199 | D148: =C148*$D$24 -> 1.199
B149: less Zero base | C149: ='Input - Base Controllable'!E29 -> 0 | D149: =C149*$D$24 -> 0 | N149: Summary of base data | P149: Yr0 | Q149: Yr1 | R149: Yr2 | S149: Yr3 | T149: Yr4 | U149: Yr5 | V149: Yr6 | W149: Yr7
B150: Total | D150: =D148-D149 -> 1.199 | E150: =IF(E159=0,$D150,0) -> 1.199 | F150: =E150 -> 1.199 | G150: 1.199 | H150: 1.199 | I150: 1.199 | J150: 1.199 | K150: 1.199 | N150: Base | P150: =D150 -> 1.199 | Q150: 1.199 | R150: 1.199 | S150: 1.199 | T150: 1.199 | U150: 1.199 | V150: 1.199 | W150: 1.199
B151: Labour split | E151: =E150*$C145 -> 1.01915 | F151: 1.01915 | G151: 1.01915 | H151: 1.01915 | I151: 1.01915 | J151: 1.01915 | K151: 1.01915 | N151: One-off | P151: =D149 -> 0
B152: Wage growth | E152: =E151*E$19 -> 1.021482606 | F152: 1.018218058 | G152: 1.029167275 | H152: 1.049883645 | I152: 1.070900254 | J152: 1.092052395 | K152: 1.092052395 | N152: Wage growth | Q152: =E152-E151 -> 0.002332606094 | R152: -0.0009319422539 | S152: 0.01001727521 | T152: 0.03073364504 | U152: 0.05175025427 | V152: 0.07290239481 | W152: 0.07290239481
B153: Total with wage growth | E153: =E150+(E152-E151) -> 1.201332606 | F153: 1.198068058 | G153: 1.209017275 | H153: 1.229733645 | I153: 1.250750254 | J153: 1.271902395 | K153: 1.271902395 | N153: Asset growth | Q153: =E154-E153 -> 0.0001814161564 | R153: 0.0003107746739 | S153: 0.0004509421401 | T153: 0.005778765641 | U153: 0.006034045238 | V153: 0.01429050754 | W153: 0.01429050754
B154: Total with wage & asset growth | E154: =E153*E$147 -> 1.201514022 | F154: =F153*F$147 -> 1.198378832 | G154: 1.209468217 | H154: 1.235512411 | I154: 1.2567843 | J154: 1.286192902 | K154: 1.286192902 | N154: Productivity factor | Q154: =E155-E154 -> 0 | R154: =F155-F154 -> 0 | S154: =G155-G154 -> 0 | T154: =H155-H154 -> 0 | U154: =I155-I154 -> 0 | V154: =J155-J154 -> 0
B155: Total with productivity factor | E155: =+E154*E$20 -> 1.201514022 | F155: =+F154*F$20 -> 1.198378832 | G155: =+G154*G$20 -> 1.209468217 | H155: =+H154*H$20 -> 1.235512411 | I155: =+I154*I$20 -> 1.2567843 | J155: =+J154*J$20 -> 1.286192902
B156: Total | E156: =E155 -> 1.201514022 | F156: =F155 -> 1.198378832 | G156: =G155 -> 1.209468217 | H156: =H155 -> 1.235512411 | I156: =I155 -> 1.2567843 | J156: =J155 -> 1.286192902 | K156: =K154 -> 1.286192902 | N156: Total | Q156: =SUM(Q150:Q154) -> 1.201514022 | R156: 1.198378832 | S156: 1.209468217 | T156: 1.235512411 | U156: 1.2567843 | V156: 1.286192902 | W156: 1.286192902
B158: Maintenance | D158: Yr0 | E158: Yr1 | F158: Yr2 | G158: Yr3 | H158: Yr4 | I158: Yr5 | J158: Yr6 | K158: Yr7 | N158: Summary of Maintenance data | P158: Yr0 | Q158: Yr1 | R158: Yr2 | S158: Yr3 | T158: Yr4 | U158: Yr5 | V158: Yr6 | W158: Yr7
B159: Input Maintenance | E159: ='Input - Base Controllable'!F30 -> 0 | F159: ='Input - Base Controllable'!G30 -> 0 | G159: ='Input - Base Controllable'!H30 -> 0 | H159: ='Input - Base Controllable'!I30 -> 0 | I159: ='Input - Base Controllable'!J30 -> 0 | J159: ='Input - Base Controllable'!K30 -> 0 | K159: ='Input - Base Controllable'!L30 -> 0 | N159: Forecast maintenance | Q159: =E159 -> 0 | R159: 0 | S159: 0 | T159: 0 | U159: 0 | V159: 0 | W159: 0
B160: Labour split | E160: =E159*$C145 -> 0 | F160: 0 | G160: 0 | H160: 0 | I160: 0 | J160: 0 | K160: 0 | N160: Wage growth | Q160: =E161-E160 -> 0 | R160: 0 | S160: 0 | T160: 0 | U160: 0 | V160: 0 | W160: 0
B161: Wage growth | E161: =E160*E$18 -> 0 | F161: 0 | G161: 0 | H161: 0 | I161: 0 | J161: 0 | K161: 0 | N161: Asset growth | Q161: =E162-E163 -> 0 | R161: =F163-F162 -> 0 | S161: 0 | T161: 0 | U161: 0 | V161: 0 | W161: 0
B162: Total with wage growth | E162: =E159+(E161-E160) -> 0 | F162: 0 | G162: 0 | H162: 0 | I162: 0 | J162: 0 | K162: 0 | N162: Productivity factor | Q162: =E163-E164 -> 0 | R162: =F164-F163 -> 0 | S162: =G164-G163 -> 0 | T162: =H164-H163 -> 0 | U162: =I164-I163 -> 0 | V162: =J164-J163 -> 0
B163: Total with wage & asset growth | E163: =E162*E$147 -> 0 | F163: 0 | G163: 0 | H163: 0 | I163: 0 | J163: 0 | K163: 0
B164: Total with productivity factor | E164: =+E163*E$20 -> 0 | F164: =+F163*F$20 -> 0 | G164: =+G163*G$20 -> 0 | H164: =+H163*H$20 -> 0 | I164: =+I163*I$20 -> 0 | J164: =+J163*J$20 -> 0
B165: Total | E165: =E164 -> 0 | F165: =F164 -> 0 | G165: =G164 -> 0 | H165: =H164 -> 0 | I165: =I164 -> 0 | J165: =J164 -> 0 | K165: =K163 -> 0 | N165: Total | Q165: =SUM(Q159:Q163) -> 0 | R165: 0 | S165: 0 | T165: 0 | U165: 0 | V165: 0 | W165: 0
B167: Scope | D167: Yr0 | E167: Yr1 | F167: Yr2 | G167: Yr3 | H167: Yr4 | I167: Yr5 | J167: Yr6 | K167: Yr7 | N167: Summary of scope changes | P167: Yr0 | Q167: Yr1 | R167: Yr2 | S167: Yr3 | T167: Yr4 | U167: Yr5 | V167: Yr6 | W167: Yr7
B168: Input scope | E168: ='Input - Base Controllable'!F31 -> 0 | F168: ='Input - Base Controllable'!G31 -> 0 | G168: ='Input - Base Controllable'!H31 -> 0 | H168: ='Input - Base Controllable'!I31 -> 0 | I168: ='Input - Base Controllable'!J31 -> 0 | J168: ='Input - Base Controllable'!K31 -> 0 | K168: ='Input - Base Controllable'!L31 -> 0 | N168: Forecast scope changes | P168: =D159 -> 0 | Q168: =E168 -> 0 | R168: 0 | S168: 0 | T168: 0 | U168: 0 | V168: 0 | W168: 0
B169: Labour split | E169: =E168*$C145 -> 0 | F169: 0 | G169: 0 | H169: 0 | I169: 0 | J169: 0 | K169: 0 | N169: Wage growth | Q169: =E170-E169 -> 0 | R169: 0 | S169: 0 | T169: 0 | U169: 0 | V169: 0 | W169: 0
B170: Wage growth | E170: =E169*E$18 -> 0 | F170: 0 | G170: 0 | H170: 0 | I170: 0 | J170: 0 | K170: 0 | N170: Asset growth | Q170: =E172-E171 -> 0 | R170: 0 | S170: 0 | T170: 0 | U170: 0 | V170: 0 | W170: 0
B171: Total with wage growth | E171: =E168+(E170-E169) -> 0 | F171: 0 | G171: 0 | H171: 0 | I171: 0 | J171: 0 | K171: 0 | N171: Productivity factor | Q171: =E173-E172 -> 0 | R171: =F173-F172 -> 0 | S171: =G173-G172 -> 0 | T171: =H173-H172 -> 0 | U171: =I173-I172 -> 0 | V171: =J173-J172 -> 0
B172: Total with wage & asset growth | E172: =E171*E$147 -> 0 | F172: 0 | G172: 0 | H172: 0 | I172: 0 | J172: 0 | K172: 0
B173: Total with productivity factor | E173: =+E172*E$20 -> 0 | F173: =+F172*F$20 -> 0 | G173: =+G172*G$20 -> 0 | H173: =+H172*H$20 -> 0 | I173: =+I172*I$20 -> 0 | J173: =+J172*J$20 -> 0
B174: Total | E174: =E173 -> 0 | F174: =F173 -> 0 | G174: =G173 -> 0 | H174: =H173 -> 0 | I174: =I173 -> 0 | J174: =J173 -> 0 | K174: =K172 -> 0 | N174: Total | Q174: =SUM(Q168:Q172) -> 0 | R174: 0 | S174: 0 | T174: 0 | U174: 0 | V174: 0 | W174: 0
B176: Zero based | D176: Yr0 | E176: Yr1 | F176: Yr2 | G176: Yr3 | H176: Yr4 | I176: Yr5 | J176: Yr6 | K176: Yr7 | N176: Summary of zero based costs | P176: Yr0 | Q176: Yr1 | R176: Yr2 | S176: Yr3 | T176: Yr4 | U176: Yr5 | V176: Yr6 | W176: Yr7
B177: Input zero based | E177: ='Input - Base Controllable'!F32 -> 0 | F177: ='Input - Base Controllable'!F32 -> 0 | G177: ='Input - Base Controllable'!G32 -> 0 | H177: ='Input - Base Controllable'!H32 -> 0 | I177: ='Input - Base Controllable'!I32 -> 0 | J177: ='Input - Base Controllable'!J32 -> 0 | K177: ='Input - Base Controllable'!K32 -> 0 | N177: Forecast zero based | P177: =D168 -> 0 | Q177: =E177 -> 0 | R177: 0 | S177: 0 | T177: 0 | U177: 0 | V177: 0 | W177: 0
B178: Labour split | E178: =E177*$C145 -> 0 | F178: 0 | G178: 0 | H178: 0 | I178: 0 | J178: 0 | K178: 0 | N178: Wage growth | Q178: =E179-E178 -> 0 | R178: 0 | S178: 0 | T178: 0 | U178: 0 | V178: 0 | W178: 0
B179: Wage growth | E179: =E178*E$18 -> 0 | F179: 0 | G179: 0 | H179: 0 | I179: 0 | J179: 0 | K179: 0 | N179: Asset growth | Q179: =E181-E180 -> 0 | R179: 0 | S179: 0 | T179: 0 | U179: 0 | V179: 0 | W179: 0
B180: Total with wage growth | E180: =E177+(E179-E178) -> 0 | F180: 0 | G180: 0 | H180: 0 | I180: 0 | J180: 0 | K180: 0 | N180: Productivity factor | Q180: =E182-E181 -> 0 | R180: =F182-F181 -> 0 | S180: =G182-G181 -> 0 | T180: =H182-H181 -> 0 | U180: =I182-I181 -> 0 | V180: =J182-J181 -> 0
B181: Total with wage & asset growth | E181: =E180 -> 0 | F181: =F180 -> 0 | G181: 0 | H181: 0 | I181: 0 | J181: 0 | K181: 0
B182: Total with productivity factor | E182: =+E181*E$20 -> 0 | F182: =+F181*F$20 -> 0 | G182: =+G181*G$20 -> 0 | H182: =+H181*H$20 -> 0 | I182: =+I181*I$20 -> 0 | J182: =+J181*J$20 -> 0
B183: Total | E183: =E182 -> 0 | F183: =F182 -> 0 | G183: =G182 -> 0 | H183: =H182 -> 0 | I183: =I182 -> 0 | J183: =J182 -> 0 | K183: =K181 -> 0 | N183: Total | Q183: =SUM(Q177:Q181) -> 0 | R183: 0 | S183: 0 | T183: 0 | U183: 0 | V183: 0 | W183: 0
B185: Check | N185: Summary
D186: Yr0 | E186: Yr1 | F186: Yr2 | G186: Yr3 | H186: Yr4 | I186: Yr5 | J186: Yr6 | K186: Yr7 | N186: =A143 -> Preventive Protection & Control | P186: Yr0 | Q186: Yr1 | R186: Yr2 | S186: Yr3 | T186: Yr4 | U186: Yr5 | V186: Yr6 | W186: Yr7
B187: Base | D187: =D150 -> 1.199 | E187: =D187 -> 1.199 | F187: =E187 -> 1.199 | G187: 1.199 | H187: 1.199 | I187: 1.199 | J187: 1.199 | K187: 1.199 | N187: Base | P187: =P150 -> 1.199 | Q187: =P187 -> 1.199 | R187: =Q187 -> 1.199 | S187: 1.199 | T187: 1.199 | U187: 1.199 | V187: 1.199 | W187: 1.199
B188: One-Off | D188: =D149 -> 0 | N188: One-Off | P188: =D149 -> 0
B189: Maintenance | E189: =IF(E159>0,E159-E187,0) -> 0 | F189: =IF(F159>0,F159-F187,0) -> 0 | G189: 0 | H189: 0 | I189: 0 | J189: 0 | K189: 0 | N189: Maintenance | Q189: =IF(Q159>0,Q159-Q187,0) -> 0 | R189: =IF(R159>0,R159-R187,0) -> 0 | S189: 0 | T189: 0 | U189: 0 | V189: 0 | W189: 0
B190: Scope | E190: =E168 -> 0 | F190: 0 | G190: 0 | H190: 0 | I190: 0 | J190: 0 | K190: 0 | N190: Scope | Q190: =Q168 -> 0 | R190: =R168 -> 0 | S190: 0 | T190: 0 | U190: 0 | V190: 0 | W190: 0
B191: Zero based | E191: =E177 -> 0 | F191: 0 | G191: 0 | H191: 0 | I191: 0 | J191: 0 | K191: 0 | N191: Zero based | Q191: =Q177 -> 0 | R191: =R177 -> 0 | S191: 0 | T191: 0 | U191: 0 | V191: 0 | W191: 0
B192: Wage growth | E192: =(E152-E151)+(E161-E160)+(E170-E169)+(E179-E178) -> 0.002332606094 | F192: =(F152-F151)+(F161-F160)+(F170-F169)+(F179-F178) -> -0.0009319422539 | G192: 0.01001727521 | H192: 0.03073364504 | I192: 0.05175025427 | J192: 0.07290239481 | K192: 0.07290239481 | N192: Wage growth | Q192: =Q152+Q160+Q169+Q178 -> 0.002332606094 | R192: =R152+R160+R169+R178 -> -0.0009319422539 | S192: 0.01001727521 | T192: 0.03073364504 | U192: 0.05175025427 | V192: 0.07290239481 | W192: 0.07290239481
B193: Asset growth | E193: =(E154-E153)+(E163-E162)+(E172-E171)+(E181-E180) -> 0.0001814161564 | F193: =(F154-F153)+(F163-F162)+(F172-F171)+(F181-F180) -> 0.0003107746739 | G193: 0.0004509421401 | H193: 0.005778765641 | I193: 0.006034045238 | J193: 0.01429050754 | K193: 0.01429050754 | N193: Asset growth | Q193: =Q153+Q161+Q170+Q179 -> 0.0001814161564 | R193: =R153+R161+R170+R179 -> 0.0003107746739 | S193: 0.0004509421401 | T193: 0.005778765641 | U193: 0.006034045238 | V193: 0.01429050754 | W193: 0.01429050754
B194: Productivity factor | E194: =(E155-E154)+(E164-E163)+(E173-E172)+(E182-E181) -> 0 | F194: 0 | G194: 0 | H194: 0 | I194: 0 | J194: 0 | N194: Productivity factor | Q194: =Q154+Q162+Q171+Q180 -> 0 | R194: =R154+R162+R171+R180 -> 0 | S194: =S154+S162+S171+S180 -> 0 | T194: =T154+T162+T171+T180 -> 0 | U194: =U154+U162+U171+U180 -> 0 | V194: =V154+V162+V171+V180 -> 0
B195: Total | D195: =SUM(D187:D194) -> 1.199 | E195: =SUM(E187:E194) -> 1.201514022 | F195: =SUM(F187:F194) -> 1.198378832 | G195: =SUM(G187:G194) -> 1.209468217 | H195: =SUM(H187:H194) -> 1.235512411 | I195: =SUM(I187:I194) -> 1.2567843 | J195: =SUM(J187:J194) -> 1.286192902 | K195: =SUM(K187:K193) -> 1.286192902 | N195: Total | P195: =SUM(P187:P194) -> 1.199 | Q195: =SUM(Q187:Q194) -> 1.201514022 | R195: =SUM(R187:R194) -> 1.198378832 | S195: =SUM(S187:S194) -> 1.209468217 | T195: =SUM(T187:T194) -> 1.235512411 | U195: =SUM(U187:U194) -> 1.2567843 | V195: =SUM(V187:V194) -> 1.286192902 | W195: =SUM(W187:W193) -> 1.286192902
A198: ='Input - Base Controllable'!B33 -> Preventive Easements
B199: Base | C199: =D199 -> Yr0 | D199: =D$6 -> Yr0 | E199: =E$6 -> Yr1 | F199: Yr2 | G199: Yr3 | H199: Yr4 | I199: Yr5 | J199: Yr6 | K199: Yr7
B200: Labour split | C200: ='Input Escalators'!G40/100 -> 0.7
B201: Scale factor | C201: ='Input Escalators'!E40/100 -> 0.95 | D201: =$C201*D$11 -> 0 | E201: =$C201*E$11 -> 0.0001510124303 | F201: 0.0001083677156 | G201: 0.0001135564125 | H201: 0.004324605673 | I201: 0.0001245542458 | J201: 0.006380415981 | K201: 0
D202: =1+D201 -> 1 | E202: =D202*(1+E201) -> 1.000151012 | F202: 1.000259397 | G202: 1.000372982 | H202: 1.004699201 | I202: 1.004824341 | J202: 1.011235538 | K202: 1.011235538
B203: Input | C203: ='Input - Base Controllable'!E35 -> 3.103 | D203: =C203*$D$24 -> 3.103
B204: less Zero base | C204: ='Input - Base Controllable'!E36 -> 0 | D204: =C204*$D$24 -> 0 | N204: Summary of base data | P204: Yr0 | Q204: Yr1 | R204: Yr2 | S204: Yr3 | T204: Yr4 | U204: Yr5 | V204: Yr6 | W204: Yr7
B205: Total | D205: =D203-D204 -> 3.103 | E205: =IF(E214=0,$D205,0) -> 3.103 | F205: =E205 -> 3.103 | G205: 3.103 | H205: 3.103 | I205: 3.103 | J205: 3.103 | K205: 3.103 | N205: Base | P205: =D205 -> 3.103 | Q205: 3.103 | R205: 3.103 | S205: 3.103 | T205: 3.103 | U205: 3.103 | V205: 3.103 | W205: 3.103
B206: Labour split | E206: =E205*$C200 -> 2.1721 | F206: 2.1721 | G206: 2.1721 | H206: 2.1721 | I206: 2.1721 | J206: 2.1721 | K206: 2.1721 | N206: One-off | P206: =D204 -> 0
B207: Wage growth | E207: =E206*E$19 -> 2.17707145 | F207: 2.170113765 | G207: 2.193449677 | H207: 2.237602184 | I207: 2.282394586 | J207: 2.327475844 | K207: 2.327475844 | N207: Wage growth | Q207: =E207-E206 -> 0.004971450422 | R207: -0.001986235362 | S207: 0.02134967717 | T207: 0.06550218357 | U207: 0.110294586 | V207: 0.1553758443 | W207: 0.1553758443
B208: Total with wage growth | E208: =E205+(E207-E206) -> 3.10797145 | F208: 3.101013765 | G208: 3.124349677 | H208: 3.168502184 | I208: 3.213294586 | J208: 3.258375844 | K208: 3.258375844 | N208: Asset growth | Q208: =E209-E208 -> 0.000469342322 | R208: 0.0008043921505 | S208: 0.001165327377 | T208: 0.0148894288 | U208: 0.01550202755 | V208: 0.03660960525 | W208: 0.03660960525
B209: Total with wage & asset growth | E209: =E208*E$202 -> 3.108440793 | F209: =F208*F$202 -> 3.101818157 | G209: 3.125515005 | H209: 3.183391612 | I209: 3.228796614 | J209: 3.29498545 | K209: 3.29498545 | N209: Productivity factor | Q209: =E210-E209 -> 0 | R209: =F210-F209 -> 0 | S209: =G210-G209 -> 0 | T209: =H210-H209 -> 0 | U209: =I210-I209 -> 0 | V209: =J210-J209 -> 0
B210: Total with productivity factor | E210: =+E209*E$20 -> 3.108440793 | F210: =+F209*F$20 -> 3.101818157 | G210: =+G209*G$20 -> 3.125515005 | H210: =+H209*H$20 -> 3.183391612 | I210: =+I209*I$20 -> 3.228796614 | J210: =+J209*J$20 -> 3.29498545
B211: Total | E211: =E210 -> 3.108440793 | F211: =F210 -> 3.101818157 | G211: =G210 -> 3.125515005 | H211: =H210 -> 3.183391612 | I211: =I210 -> 3.228796614 | J211: =J210 -> 3.29498545 | K211: =K209 -> 3.29498545 | N211: Total | Q211: =SUM(Q205:Q209) -> 3.108440793 | R211: 3.101818157 | S211: 3.125515005 | T211: 3.183391612 | U211: 3.228796614 | V211: 3.29498545 | W211: 3.29498545
B213: Maintenance | D213: Yr0 | E213: Yr1 | F213: Yr2 | G213: Yr3 | H213: Yr4 | I213: Yr5 | J213: Yr6 | K213: Yr7 | N213: Summary of Maintenance data | P213: Yr0 | Q213: Yr1 | R213: Yr2 | S213: Yr3 | T213: Yr4 | U213: Yr5 | V213: Yr6 | W213: Yr7
B214: Input Maintenance | E214: ='Input - Base Controllable'!F37 -> 0 | F214: ='Input - Base Controllable'!G37 -> 0 | G214: ='Input - Base Controllable'!H37 -> 0 | H214: ='Input - Base Controllable'!I37 -> 0 | I214: ='Input - Base Controllable'!J37 -> 0 | J214: ='Input - Base Controllable'!K37 -> 0 | K214: ='Input - Base Controllable'!L37 -> 0 | N214: Forecast maintenance | Q214: =E214 -> 0 | R214: 0 | S214: 0 | T214: 0 | U214: 0 | V214: 0 | W214: 0
B215: Labour split | E215: =E214*$C200 -> 0 | F215: 0 | G215: 0 | H215: 0 | I215: 0 | J215: 0 | K215: 0 | N215: Wage growth | Q215: =E216-E215 -> 0 | R215: 0 | S215: 0 | T215: 0 | U215: 0 | V215: 0 | W215: 0
B216: Wage growth | E216: =E215*E$18 -> 0 | F216: 0 | G216: 0 | H216: 0 | I216: 0 | J216: 0 | K216: 0 | N216: Asset growth | Q216: =E217-E218 -> 0 | R216: =F218-F217 -> 0 | S216: 0 | T216: 0 | U216: 0 | V216: 0 | W216: 0
B217: Total with wage growth | E217: =E214+(E216-E215) -> 0 | F217: 0 | G217: 0 | H217: 0 | I217: 0 | J217: 0 | K217: 0 | N217: Productivity factor | Q217: =E218-E219 -> 0 | R217: =F219-F218 -> 0 | S217: =G219-G218 -> 0 | T217: =H219-H218 -> 0 | U217: =I219-I218 -> 0 | V217: =J219-J218 -> 0
B218: Total with wage & asset growth | E218: =E217*E$202 -> 0 | F218: 0 | G218: 0 | H218: 0 | I218: 0 | J218: 0 | K218: 0
B219: Total with productivity factor | E219: =+E218*E$20 -> 0 | F219: =+F218*F$20 -> 0 | G219: =+G218*G$20 -> 0 | H219: =+H218*H$20 -> 0 | I219: =+I218*I$20 -> 0 | J219: =+J218*J$20 -> 0
B220: Total | E220: =E219 -> 0 | F220: =F219 -> 0 | G220: =G219 -> 0 | H220: =H219 -> 0 | I220: =I219 -> 0 | J220: =J219 -> 0 | K220: =K218 -> 0 | N220: Total | Q220: =SUM(Q214:Q218) -> 0 | R220: 0 | S220: 0 | T220: 0 | U220: 0 | V220: 0 | W220: 0
B222: Scope | D222: Yr0 | E222: Yr1 | F222: Yr2 | G222: Yr3 | H222: Yr4 | I222: Yr5 | J222: Yr6 | K222: Yr7 | N222: Summary of scope changes | P222: Yr0 | Q222: Yr1 | R222: Yr2 | S222: Yr3 | T222: Yr4 | U222: Yr5 | V222: Yr6 | W222: Yr7
B223: Input scope | E223: ='Input - Base Controllable'!F38 -> 0 | F223: ='Input - Base Controllable'!G38 -> 0 | G223: ='Input - Base Controllable'!H38 -> 0 | H223: ='Input - Base Controllable'!I38 -> 0 | I223: ='Input - Base Controllable'!J38 -> 0 | J223: ='Input - Base Controllable'!K38 -> 0 | K223: ='Input - Base Controllable'!L38 -> 0 | N223: Forecast scope changes | P223: =D214 -> 0 | Q223: =E223 -> 0 | R223: 0 | S223: 0 | T223: 0 | U223: 0 | V223: 0 | W223: 0
B224: Labour split | E224: =E223*$C200 -> 0 | F224: 0 | G224: 0 | H224: 0 | I224: 0 | J224: 0 | K224: 0 | N224: Wage growth | Q224: =E225-E224 -> 0 | R224: 0 | S224: 0 | T224: 0 | U224: 0 | V224: 0 | W224: 0
B225: Wage growth | E225: =E224*E$18 -> 0 | F225: 0 | G225: 0 | H225: 0 | I225: 0 | J225: 0 | K225: 0 | N225: Asset growth | Q225: =E227-E226 -> 0 | R225: 0 | S225: 0 | T225: 0 | U225: 0 | V225: 0 | W225: 0
B226: Total with wage growth | E226: =E223+(E225-E224) -> 0 | F226: 0 | G226: 0 | H226: 0 | I226: 0 | J226: 0 | K226: 0 | N226: Productivity factor | Q226: =E228-E227 -> 0 | R226: =F228-F227 -> 0 | S226: =G228-G227 -> 0 | T226: =H228-H227 -> 0 | U226: =I228-I227 -> 0 | V226: =J228-J227 -> 0
B227: Total with wage & asset growth | E227: =E226*E$202 -> 0 | F227: 0 | G227: 0 | H227: 0 | I227: 0 | J227: 0 | K227: 0
B228: Total with productivity factor | E228: =+E227*E$20 -> 0 | F228: =+F227*F$20 -> 0 | G228: =+G227*G$20 -> 0 | H228: =+H227*H$20 -> 0 | I228: =+I227*I$20 -> 0 | J228: =+J227*J$20 -> 0
B229: Total | E229: =E228 -> 0 | F229: =F228 -> 0 | G229: =G228 -> 0 | H229: =H228 -> 0 | I229: =I228 -> 0 | J229: =J228 -> 0 | K229: =K227 -> 0 | N229: Total | Q229: =SUM(Q223:Q227) -> 0 | R229: 0 | S229: 0 | T229: 0 | U229: 0 | V229: 0 | W229: 0
B231: Zero based | D231: Yr0 | E231: Yr1 | F231: Yr2 | G231: Yr3 | H231: Yr4 | I231: Yr5 | J231: Yr6 | K231: Yr7 | N231: Summary of zero based costs | P231: Yr0 | Q231: Yr1 | R231: Yr2 | S231: Yr3 | T231: Yr4 | U231: Yr5 | V231: Yr6 | W231: Yr7
B232: Input zero based | E232: ='Input - Base Controllable'!F39 -> 0 | F232: ='Input - Base Controllable'!G39 -> 0 | G232: ='Input - Base Controllable'!H39 -> 0 | H232: ='Input - Base Controllable'!I39 -> 0 | I232: ='Input - Base Controllable'!J39 -> 0 | J232: ='Input - Base Controllable'!K39 -> 0 | K232: ='Input - Base Controllable'!L39 -> 0 | N232: Forecast zero based | P232: =D223 -> 0 | Q232: =E232 -> 0 | R232: 0 | S232: 0 | T232: 0 | U232: 0 | V232: 0 | W232: 0
B233: Labour split | E233: =E232*$C200 -> 0 | F233: 0 | G233: 0 | H233: 0 | I233: 0 | J233: 0 | K233: 0 | N233: Wage growth | Q233: =E234-E233 -> 0 | R233: 0 | S233: 0 | T233: 0 | U233: 0 | V233: 0 | W233: 0
B234: Wage growth | E234: =E233*E$18 -> 0 | F234: 0 | G234: 0 | H234: 0 | I234: 0 | J234: 0 | K234: 0 | N234: Asset growth | Q234: =E236-E235 -> 0 | R234: 0 | S234: 0 | T234: 0 | U234: 0 | V234: 0 | W234: 0
... 701 more rows

Sheet Output June 2014 >>>>

Sheet Output $Jun 2014
B3: CPI | C3: =Calculations!$F$25 -> 1.040264465 | D3: =C3 -> 1.040264465 | E3: 1.040264465 | F3: 1.040264465 | G3: 1.040264465 | H3: 1.040264465 | I3: 1.040264465 | J3: =I3 -> 1.040264465
B6: Output ($Jun 2014)
B7: Note: these are base forecasts and exclude the productivity factors calculated elsewhere
B9: Total controllable ($m) | C9: =Year!A$6 -> 2012-13 | D9: =Year!B$6 -> 2013-14 | E9: =Year!C$6 -> 2014-15 | F9: =Year!D$6 -> 2015-16 | G9: =Year!E$6 -> 2016-17 | H9: =Year!F$6 -> 2017-18 | I9: =Year!G$6 -> 2018-19 | J9: =Year!#REF! -> 
B10: =B42 -> Base | C10: =SUM(C42,C54,C66,C78,C90,C102,C114,C126,C138,C149,C161,C173,C185,C197,C209,C221,C233,) -> 44.42449396 | D10: 44.42449396 | E10: 44.42449396 | F10: 44.42449396 | G10: 44.42449396 | H10: 44.42449396 | I10: 44.42449396 | J10: 44.42449396 | P10: Table 6.2 | Q10: Audited base year ($m, 2013-14)
B11: =B43 -> One-Off | C11: =SUM(C43,C55,C67,C79,C91,C103,C115,C127,C139,C150,C162,C174,C186,C198,C210,C222,C234) -> 0.4514747776 | D11: 0 | E11: 0 | F11: 0 | G11: 0 | H11: 0 | I11: 0 | J11: 0 | Q11: Category | R11: 2011-12
B12: Maintenance regime | C12: =SUM(C44,C56,C68,C80,C92,C104,C116,C128,C140,C151,C163,C175,C187,C199,C211,C223) -> 0 | D12: 0 | E12: 0 | F12: 0 | G12: 0 | H12: 0 | I12: 0 | J12: 0 | Q12: Field operations and maintenance | R12: =SUM(C22:C30) -> 15.10568029
B13: Scope changes | C13: 0 | D13: 0.7906009931 | E13: 0.7906009931 | F13: 0.7906009931 | G13: 0.7906009931 | H13: 0.7906009931 | I13: 0.7906009931 | J13: 0 | Q13: Transmission services | R13: =SUM(C31:C32) -> 7.24648226
B14: Zero Base | C14: =SUM(C46,C58,C70,C82,C94,C106,C118,C130,C142,C153,C165,C177,C189,C201,C213,C225,C235,C237) -> 0 | D14: 0.7094603648 | E14: 0.4161057858 | F14: 0 | G14: 0.4161057858 | H14: 0.8322115717 | I14: 0.5430180505 | J14: 0 | Q14: Transmission operations | R14: =C33 -> 5.164913067
B15: =B47 -> Wage growth | C15: =SUM(C47,C59,C71,C83,C95,C107,C119,C131,C143,C154,C166,C178,C190,C202,C214,C226,C238) -> 0 | D15: 0.08266466253 | E15: -0.03278544862 | F15: 0.348723802 | G15: 1.081200403 | H15: 1.839574469 | I15: 2.572854878 | J15: 2.485657999 | Q15: Asset management | R15: =+C34+C35 -> 8.133827848
B16: =B48 -> Asset growth | C16: 0 | D16: 0.003263234496 | E16: 0.005592007355 | F16: 0.008104323353 | G16: 0.1036209351 | H16: 0.107960688 | I16: 0.2549980224 | J16: 0.2525113818 | Q16: Corporate | R16: =SUM(C36:C37) -> 9.225065272
B17: Productivity factor | C17: =SUM(C49,C61,C73,C85,C97,C109,C121,C133,C145,C156,C168,C180,C192,C204,C216,C228,C240) -> 0 | D17: 0 | E17: 0 | F17: 0 | G17: 0 | H17: 0 | I17: 0
B18: =B50 -> Total | C18: =SUM(C10:C17) -> 44.87596874 | D18: =SUM(D10:D17) -> 46.01048321 | E18: 45.6040073 | F18: 45.57192308 | G18: 46.81602208 | H18: 47.99484168 | I18: 48.5859659 | J18: =SUM(J10:J16) -> 47.16266334 | Q18: Total controllable | R18: =SUM(R12:R16) -> 44.87596874
B19: Check | C19: =C18-SUM(C22:C37) -> 0 | D19: =D18-SUM(D22:D37) -> 0 | E19: 0 | F19: 0 | G19: 0 | H19: 0 | I19: 0 | J19: 0 | Q19: Network support | R19: =+'Other operating Inputs'!#REF! -> 
Q20: Debt raising costs | R20: 0
B21: Total controllable ($m) | C21: =Year!A$6 -> 2012-13 | D21: =Year!B$6 -> 2013-14 | E21: =Year!C$6 -> 2014-15 | F21: =Year!D$6 -> 2015-16 | G21: =Year!E$6 -> 2016-17 | H21: =Year!F$6 -> 2017-18 | I21: =Year!G$6 -> 2018-19 | J21: =Year!#REF! ->  | Q21: Equity raising costs | R21: 0
B22: =B41 -> Preventive Substations | C22: =C50 -> 4.450251379 | D22: 4.457035723 | E22: 4.448963457 | F22: 4.478166077 | G22: 4.552063873 | H22: 4.607959554 | I22: 4.693401054 | J22: 4.693401054 | Q22: Insurance | R22: =+'Other operating Inputs'!#REF! -> 
B23: =B53 -> Preventive Transmission Lines | C23: =C62 -> 2.850324633 | D23: 2.855322385 | E23: 2.849239026 | F23: 2.871006255 | G23: 2.924170006 | H23: 2.965877706 | I23: 3.026676826 | J23: 3.026676826 | Q23: Self insurance | R23: =+'Other operating Inputs'!#REF! -> 
B24: =B65 -> Preventive Protection & Control | C24: =C74 -> 1.247277093 | D24: 1.249892341 | E24: 1.246630914 | F24: 1.258166808 | G24: 1.285259656 | H24: 1.307388046 | I24: 1.337980771 | J24: 1.337980771 | Q24: Total Operating expenditure | R24: =SUM(R18:R23) -> 
B25: =B77 -> Preventive Easements | C25: =C86 -> 3.227940634 | D25: 3.233600497 | E25: 3.226711204 | F25: 3.251362193 | G25: 3.311569171 | H25: 3.35880238 | I25: 3.427656274 | J25: 3.427656274
B26: =B89 -> Corrective Substations | C26: =C98 -> 0.5502999018 | D26: 0.5511388259 | E26: 0.5501406426 | F26: 0.5537517192 | G26: 0.5628896188 | H26: 0.5698014503 | I26: 0.580366797 | J26: 0.580366797
B27: =B101 -> Corrective Transmission Lines | C27: =C110 -> 0.02912740501 | D27: 0.02917847693 | E27: 0.02911631122 | F27: 0.02933875005 | G27: 0.02988202926 | H27: 0.03030823933 | I27: 0.03092954421 | J27: 0.03092954421 | P27: Table 6.3
B28: =B113 -> Corrective Protection & Control | C28: =C122 -> 0.3318443642 | D28: 0.3325401641 | E28: 0.3316724451 | F28: 0.3347416277 | G28: 0.3419498168 | H28: 0.3478371867 | I28: 0.3559765354 | J28: 0.3559765354 | Q28: Adjusted audited base year ($m, 2013-14)
B29: =B125 -> Corrective Easements | C29: =C134 -> 0 | D29: 0 | E29: 0 | F29: 0 | G29: 0 | H29: 0 | I29: 0 | J29: 0 | Q29: Category | R29: =Year!A6 -> 2012-13 | S29: Adjusted | T29: Comments
B30: =B137 -> Operational communications | C30: =C146 -> 2.41861488 | D30: 2.422855674 | E30: 2.417693699 | F30: 2.436164066 | G30: 2.481275644 | H30: 2.516666302 | I30: 2.568256796 | J30: 2.568256796 | Q30: Field operations and maintenance | R30: =R12 -> 15.10568029 | S30: 0 | T30: Zero based
B31: =B148 -> Engineering services | C31: =C157 -> 4.415922652 | D31: 4.424689482 | E31: 4.412791497 | F31: 4.453253343 | G31: 4.534714202 | H31: 4.612365346 | I31: 4.698243042 | J31: 4.698243042 | Q31: Transmission services | R31: =R13 -> 7.24648226 | S31: =R31 -> 7.24648226 | T31: no change
B32: =B160 -> Works planning and coordination | C32: =C169 -> 2.830559608 | D32: 2.836179053 | E32: 2.828552571 | F32: 2.854488185 | G32: 2.906703733 | H32: 2.956477292 | I32: 3.011523985 | J32: 3.011523985 | Q32: Transmission operations | R32: =R14 -> 5.164913067 | S32: =R32 -> 5.164913067 | T32: no change
B33: =B172 -> Transmission operations | C33: =C181 -> 5.164913067 | D33: 5.551673431 | E33: 5.534973924 | F33: 5.591681771 | G33: 5.705147787 | H33: 5.813992947 | I33: 5.933297463 | J33: 5.532173128 | Q33: Asset management | R33: =R15 -> 8.133827848 | S33: =R33-C198 -> 7.682353071 | T33: Remove one-off costs
B34: =B184 -> Customer and asset management | C34: =C193 -> 6.52869978 | D34: 6.542408224 | E34: 6.523772015 | F34: 6.587100022 | G34: 6.714182775 | H34: 6.835726249 | I34: 6.969514632 | J34: 6.969514632 | Q34: Corporate | R34: =R16 -> 9.225065272 | S34: =R34-C233 -> 9.225065272 | T34: no change
B35: =B196 -> Regulation and compliance | C35: =C205 -> 1.605128069 | D35: 2.283976913 | E35: 1.984337582 | F35: 1.583800818 | G35: 2.041755687 | H35: 2.513824152 | I35: 2.253725667 | J35: 1.231547439 | Q35: Total controllable | R35: =SUM(R30:R34) -> 44.87596874 | S35: =SUM(S30:S34) -> 29.31881367
B36: =B208 -> Business services | C36: =C217 -> 6.519337399 | D36: 6.529886109 | E36: 6.515342247 | F36: 6.56445031 | G36: 6.660247944 | H36: 6.754490927 | I36: 6.853853891 | J36: 6.853853891 | Q36: Network support | R36: =R19 ->  | S36: 0 | T36: Remove zero base cost
B37: =B220 -> Corporate Governance and Business planning | C37: =C229 -> 2.705727872 | D37: 2.710105915 | E37: 2.70406976 | F37: 2.724451134 | G37: 2.764210133 | H37: 2.803323903 | I37: 2.844562625 | J37: 2.844562625 | Q37: Debt raising costs | R37: =R20 -> 0 | S37: 0 | T37: no change
B38: Total $ June 2014 | C38: =SUM(C22:C37) -> 44.87596874 | D38: =SUM(D22:D37) -> 46.01048321 | E38: 45.6040073 | F38: 45.57192308 | G38: 46.81602208 | H38: 47.99484168 | I38: 48.5859659 | J38: 47.16266334 | Q38: Equity raising costs | R38: =R21 -> 0 | S38: 0 | T38: no change
Q39: Insurance | R39: =+R22 ->  | S39: 0 | T39: Remove zero base cost
Q40: Self insurance | R40: =R23 ->  | S40: 0 | T40: Remove zero base cost
B41: =Calculations!N74 -> Preventive Substations | C41: =Year!A$6 -> 2012-13 | D41: =Year!B$6 -> 2013-14 | E41: =Year!C$6 -> 2014-15 | F41: =Year!D$6 -> 2015-16 | G41: =Year!E$6 -> 2016-17 | H41: =Year!F$6 -> 2017-18 | I41: =Year!G$6 -> 2018-19 | J41: =Year!#REF! ->  | Q41: Total Operating expenditure | R41: =SUM(R35:R40) ->  | S41: =SUM(S35:S40) -> 29.31881367
B42: =Calculations!N75 -> Base | C42: =Calculations!P75*C$3 -> 4.450251379 | D42: =Calculations!Q75*D$3 -> 4.450251379 | E42: =Calculations!R75*E$3 -> 4.450251379 | F42: =Calculations!S75*F$3 -> 4.450251379 | G42: =Calculations!T75*G$3 -> 4.450251379 | H42: =Calculations!U75*H$3 -> 4.450251379 | I42: =Calculations!V75*I$3 -> 4.450251379 | J42: =Calculations!W75*J$3 -> 4.450251379 | P42: Table 6.4
B43: =Calculations!N76 -> One-Off | C43: =Calculations!P76*C$3 -> 0 | D43: =Calculations!Q76*D$3 -> 0 | E43: =Calculations!R76*E$3 -> 0 | F43: =Calculations!S76*F$3 -> 0 | G43: =Calculations!T76*G$3 -> 0 | H43: =Calculations!U76*H$3 -> 0 | I43: =Calculations!V76*I$3 -> 0 | J43: =Calculations!W76*J$3 -> 0
B44: =Calculations!N77 -> Maintenance | C44: =Calculations!P77*C$3 -> 0 | D44: =Calculations!Q77*D$3 -> 0 | E44: =Calculations!R77*E$3 -> 0 | F44: =Calculations!S77*F$3 -> 0 | G44: =Calculations!T77*G$3 -> 0 | H44: =Calculations!U77*H$3 -> 0 | I44: =Calculations!V77*I$3 -> 0 | J44: =Calculations!W77*J$3 -> 0 | Q44: Scope changes excluding asset growth and wage growth factors ($m, 2013-14)
B45: =Calculations!N78 -> Scope | C45: =Calculations!P78*C$3 -> 0 | D45: =Calculations!Q78*D$3 -> 0 | E45: =Calculations!R78*E$3 -> 0 | F45: =Calculations!S78*F$3 -> 0 | G45: =Calculations!T78*G$3 -> 0 | H45: =Calculations!U78*H$3 -> 0 | I45: =Calculations!V78*I$3 -> 0 | J45: =Calculations!W78*J$3 -> 0 | P45: Table 6.11 | Q45: Item | R45: =Year!A$6 -> 2012-13 | S45: =Year!B$6 -> 2013-14 | T45: =Year!C$6 -> 2014-15 | U45: =Year!D$6 -> 2015-16 | V45: =Year!E$6 -> 2016-17 | W45: =Year!F$6 -> 2017-18 | X45: =Year!G$6 -> 2018-19 | Y45: 5 year Totals
B46: =Calculations!N79 -> Zero based | C46: =Calculations!P79*C$3 -> 0 | D46: =Calculations!Q79*D$3 -> 0 | E46: =Calculations!R79*E$3 -> 0 | F46: =Calculations!S79*F$3 -> 0 | G46: =Calculations!T79*G$3 -> 0 | H46: =Calculations!U79*H$3 -> 0 | I46: =Calculations!V79*I$3 -> 0 | J46: =Calculations!W79*J$3 -> 0 | P46: Table 6.12 | Q46: Separation costs | R46: =D224 -> 0 | S46: 0 | T46: 0 | U46: 0 | V46: 0 | W46: 0 | X46: 0 | Y46: =SUM(T46:X46) -> 0
B47: =Calculations!N80 -> Wage growth | C47: =Calculations!P80*C$3 -> 0 | D47: =Calculations!Q80*D$3 -> 0.006111377219 | E47: =Calculations!R80*E$3 -> -0.00244166843 | F47: =Calculations!S80*F$3 -> 0.02624504312 | G47: =Calculations!T80*G$3 -> 0.08052148136 | H47: =Calculations!U80*H$3 -> 0.1355845403 | I47: =Calculations!V80*I$3 -> 0.1910026883 | J47: =Calculations!W80*J$3 -> 0.1910026883 | Q47: Works program support | R47: =(D152+D164+D176+D188+D200+D212)-R48 -> 0.7906009931 | S47: 0.7906009931 | T47: 0.7906009931 | U47: 0.7906009931 | V47: 0.7906009931 | W47: 0.7906009931 | X47: 0 | Y47: =SUM(T47:X47) -> 3.162403972
B48: =Calculations!N81 -> Asset growth | C48: =Calculations!P81*C$3 -> 0 | D48: =Calculations!Q81*D$3 -> 0.0006729661702 | E48: =Calculations!R81*E$3 -> 0.00115374632 | F48: =Calculations!S81*F$3 -> 0.001669654287 | G48: =Calculations!T81*G$3 -> 0.0212910126 | H48: =Calculations!U81*H$3 -> 0.02212363444 | I48: =Calculations!V81*I$3 -> 0.05214698592 | J48: =Calculations!W81*J$3 -> 0.05214698592 | Q48: Skills development and training | R48: 0 | S48: 0 | T48: 0 | U48: 0 | V48: 0 | W48: 0 | X48: 0 | Y48: =SUM(T48:X48) -> 0
B49: Productivity factor | C49: =Calculations!P82*C$3 -> 0 | D49: =Calculations!Q82*D$3 -> 0 | E49: =Calculations!R82*E$3 -> 0 | F49: =Calculations!S82*F$3 -> 0 | G49: =Calculations!T82*G$3 -> 0 | H49: =Calculations!U82*H$3 -> 0 | I49: =Calculations!V82*I$3 -> 0
B50: =Calculations!N83 -> Total | C50: =SUM(C42:C49) -> 4.450251379 | D50: =SUM(D42:D49) -> 4.457035723 | E50: 4.448963457 | F50: 4.478166077 | G50: 4.552063873 | H50: 4.607959554 | I50: 4.693401054 | J50: =SUM(J42:J48) -> 4.693401054 | Q50: Total Operating expenditure | R50: =SUM(R46:R48) -> 0.7906009931 | S50: =SUM(S46:S48) -> 0.7906009931 | T50: 0.7906009931 | U50: 0.7906009931 | V50: 0.7906009931 | W50: 0.7906009931 | X50: 0 | Y50: =SUM(T50:X50) -> 3.162403972
B53: =Calculations!N129 -> Preventive Transmission Lines | C53: =Year!A$6 -> 2012-13 | D53: =Year!B$6 -> 2013-14 | E53: =Year!C$6 -> 2014-15 | F53: =Year!D$6 -> 2015-16 | G53: =Year!E$6 -> 2016-17 | H53: =Year!F$6 -> 2017-18 | I53: =Year!G$6 -> 2018-19 | J53: =Year!#REF! ->  | Q53: Scope changes applied to expenditure category ($m, 2013-14)
B54: =Calculations!N130 -> Base | C54: =Calculations!P130*C$3 -> 2.850324633 | D54: =Calculations!Q130*D$3 -> 2.850324633 | E54: =Calculations!R130*E$3 -> 2.850324633 | F54: =Calculations!S130*F$3 -> 2.850324633 | G54: =Calculations!T130*G$3 -> 2.850324633 | H54: =Calculations!U130*H$3 -> 2.850324633 | I54: =Calculations!V130*I$3 -> 2.850324633 | J54: =Calculations!W130*J$3 -> 2.850324633 | Q54: Category | R54: =Year!A$6 -> 2012-13 | S54: =Year!B$6 -> 2013-14 | T54: =Year!C$6 -> 2014-15 | U54: =Year!D$6 -> 2015-16 | V54: =Year!E$6 -> 2016-17 | W54: =Year!F$6 -> 2017-18 | X54: =Year!G$6 -> 2018-19 | Y54: 5 year Totals
B55: =Calculations!N131 -> One-Off | C55: =Calculations!P131*C$3 -> 0 | D55: =Calculations!Q131*D$3 -> 0 | E55: =Calculations!R131*E$3 -> 0 | F55: =Calculations!S131*F$3 -> 0 | G55: =Calculations!T131*G$3 -> 0 | H55: =Calculations!U131*H$3 -> 0 | I55: =Calculations!V131*I$3 -> 0 | J55: =Calculations!W131*J$3 -> 0 | Q55: Field operations and maintenance | R55: 0 | S55: 0 | T55: 0 | U55: 0 | V55: 0 | W55: 0 | X55: 0 | Y55: =SUM(T55:X55) -> 0
B56: =Calculations!N132 -> Maintenance | C56: =Calculations!P132*C$3 -> 0 | D56: =Calculations!Q132*D$3 -> 0 | E56: =Calculations!R132*E$3 -> 0 | F56: =Calculations!S132*F$3 -> 0 | G56: =Calculations!T132*G$3 -> 0 | H56: =Calculations!U132*H$3 -> 0 | I56: =Calculations!V132*I$3 -> 0 | J56: =Calculations!W132*J$3 -> 0 | Q56: Transmission services | R56: =D149+D152+D161+D164 -> 7.24648226 | S56: 7.24648226 | T56: 7.24648226 | U56: 7.24648226 | V56: 7.24648226 | W56: 7.24648226 | X56: 7.24648226 | Y56: 36.2324113
B57: =Calculations!N133 -> Scope | C57: =Calculations!P133*C$3 -> 0 | D57: =Calculations!Q133*D$3 -> 0 | E57: =Calculations!R133*E$3 -> 0 | F57: =Calculations!S133*F$3 -> 0 | G57: =Calculations!T133*G$3 -> 0 | H57: =Calculations!U133*H$3 -> 0 | I57: =Calculations!V133*I$3 -> 0 | J57: =Calculations!W133*J$3 -> 0 | Q57: Transmission operations | R57: =D173+D176 -> 5.539408274 | S57: 5.539408274 | T57: 5.539408274 | U57: 5.539408274 | V57: 5.539408274 | W57: 5.539408274 | X57: 5.164913067 | Y57: 27.32254616
B58: =Calculations!N134 -> Zero based | C58: =Calculations!P134*C$3 -> 0 | D58: =Calculations!Q134*D$3 -> 0 | E58: =Calculations!R134*E$3 -> 0 | F58: =Calculations!S134*F$3 -> 0 | G58: =Calculations!T134*G$3 -> 0 | H58: =Calculations!U134*H$3 -> 0 | I58: =Calculations!V134*I$3 -> 0 | J58: =Calculations!W134*J$3 -> 0 | Q58: Asset management | R58: =D185+D188+D197+D200 -> 8.098458857 | S58: 8.098458857 | T58: 8.098458857 | U58: 8.098458857 | V58: 8.098458857 | W58: 8.098458857 | X58: 7.682353071 | Y58: 40.0761885
B59: =Calculations!N135 -> Wage growth | C59: =Calculations!P135*C$3 -> 0 | D59: =Calculations!Q135*D$3 -> 0.004566628295 | E59: =Calculations!R135*E$3 -> -0.001824497448 | F59: =Calculations!S135*F$3 -> 0.01961118619 | G59: =Calculations!T135*G$3 -> 0.06016838135 | H59: =Calculations!U135*H$3 -> 0.1013133662 | I59: =Calculations!V135*I$3 -> 0.1427236856 | J59: =Calculations!W135*J$3 -> 0.1427236856 | Q59: Corporate | R59: =D209+D212+D221+D224 -> 9.225065272 | S59: 9.225065272 | T59: 9.225065272 | U59: 9.225065272 | V59: 9.225065272 | W59: 9.225065272 | X59: 9.225065272 | Y59: 46.12532636
B60: =Calculations!N136 -> Asset growth | C60: =Calculations!P136*C$3 -> 0 | D60: =Calculations!Q136*D$3 -> 0.0004311240676 | E60: =Calculations!R136*E$3 -> 0.0007388909962 | F60: =Calculations!S136*F$3 -> 0.001070435491 | G60: =Calculations!T136*G$3 -> 0.01367699184 | H60: =Calculations!U136*H$3 -> 0.01423970705 | I60: =Calculations!V136*I$3 -> 0.03362850778 | J60: =Calculations!W136*J$3 -> 0.03362850778 | Q60: Total Operating expenditure | R60: =SUM(R55:R59) -> 30.10941466 | S60: =SUM(S55:S59) -> 30.10941466 | T60: 30.10941466 | U60: 30.10941466 | V60: 30.10941466 | W60: 30.10941466 | X60: 29.31881367 | Y60: 149.7564723
B61: Productivity factor | C61: =Calculations!P137*C$3 -> 0 | D61: =Calculations!Q137*D$3 -> 0 | E61: =Calculations!R137*E$3 -> 0 | F61: =Calculations!S137*F$3 -> 0 | G61: =Calculations!T137*G$3 -> 0 | H61: =Calculations!U137*H$3 -> 0 | I61: =Calculations!V137*I$3 -> 0
B62: =Calculations!N138 -> Total | C62: =SUM(C54:C61) -> 2.850324633 | D62: =SUM(D54:D61) -> 2.855322385 | E62: =SUM(E54:E61) -> 2.849239026 | F62: =SUM(F54:F61) -> 2.871006255 | G62: =SUM(G54:G61) -> 2.924170006 | H62: =SUM(H54:H61) -> 2.965877706 | I62: =SUM(I54:I61) -> 3.026676826 | J62: =SUM(J54:J60) -> 3.026676826
B65: =Calculations!N186 -> Preventive Protection & Control | C65: =Year!A$6 -> 2012-13 | D65: =Year!B$6 -> 2013-14 | E65: =Year!C$6 -> 2014-15 | F65: =Year!D$6 -> 2015-16 | G65: =Year!E$6 -> 2016-17 | H65: =Year!F$6 -> 2017-18 | I65: =Year!G$6 -> 2018-19 | J65: =Year!#REF! ->  | Q65: Asset growth
B66: =Calculations!N187 -> Base | C66: =Calculations!P187*C$3 -> 1.247277093 | D66: =Calculations!Q187*D$3 -> 1.247277093 | E66: =Calculations!R187*E$3 -> 1.247277093 | F66: =Calculations!S187*F$3 -> 1.247277093 | G66: =Calculations!T187*G$3 -> 1.247277093 | H66: =Calculations!U187*H$3 -> 1.247277093 | I66: =Calculations!V187*I$3 -> 1.247277093 | J66: =Calculations!W187*J$3 -> 1.247277093 | R66: =Year!A$6 -> 2012-13 | S66: =Year!B$6 -> 2013-14 | T66: =Year!C$6 -> 2014-15 | U66: =Year!D$6 -> 2015-16 | V66: =Year!E$6 -> 2016-17 | W66: =Year!F$6 -> 2017-18 | X66: =Year!G$6 -> 2018-19 | AA66: The formula for asset growth:
B67: =Calculations!N188 -> One-Off | C67: =Calculations!P188*C$3 -> 0 | D67: =Calculations!Q188*D$3 -> 0 | E67: =Calculations!R188*E$3 -> 0 | F67: =Calculations!S188*F$3 -> 0 | G67: =Calculations!T188*G$3 -> 0 | H67: =Calculations!U188*H$3 -> 0 | I67: =Calculations!V188*I$3 -> 0 | J67: =Calculations!W188*J$3 -> 0 | Q67: Asset growth | R67: ='Input Escalators'!F27 -> 0 | S67: ='Input Escalators'!G27 -> 0.0001589604529 | T67: ='Input Escalators'!H27 -> 0.0001140712796 | U67: ='Input Escalators'!I27 -> 0.0001195330658 | V67: ='Input Escalators'!J27 -> 0.004552216497 | W67: ='Input Escalators'!K27 -> 0.0001311097324 | X67: ='Input Escalators'!L27 -> 0.006716227348
B68: =Calculations!N189 -> Maintenance | C68: =Calculations!P189*C$3 -> 0 | D68: =Calculations!Q189*D$3 -> 0 | E68: =Calculations!R189*E$3 -> 0 | F68: =Calculations!S189*F$3 -> 0 | G68: =Calculations!T189*G$3 -> 0 | H68: =Calculations!U189*H$3 -> 0 | I68: =Calculations!V189*I$3 -> 0 | J68: =Calculations!W189*J$3 -> 0 | P68: Table 6.9 | AA68: 1. Calculated asset growth factor for each expenditure category
B69: =Calculations!N190 -> Scope | C69: =Calculations!P190*C$3 -> 0 | D69: =Calculations!Q190*D$3 -> 0 | E69: =Calculations!R190*E$3 -> 0 | F69: =Calculations!S190*F$3 -> 0 | G69: =Calculations!T190*G$3 -> 0 | H69: =Calculations!U190*H$3 -> 0 | I69: =Calculations!V190*I$3 -> 0 | J69: =Calculations!W190*J$3 -> 0 | AB69: Asset Growth x efficiency factor = Asset growth multiplier
B70: =Calculations!N191 -> Zero based | C70: =Calculations!P191*C$3 -> 0 | D70: =Calculations!Q191*D$3 -> 0 | E70: =Calculations!R191*E$3 -> 0 | F70: =Calculations!S191*F$3 -> 0 | G70: =Calculations!T191*G$3 -> 0 | H70: =Calculations!U191*H$3 -> 0 | I70: =Calculations!V191*I$3 -> 0 | J70: =Calculations!W191*J$3 -> 0 | Q70: Efficiency factors
B71: =Calculations!N192 -> Wage growth | C71: =Calculations!P192*C$3 -> 0 | D71: =Calculations!Q192*D$3 -> 0.00242652723 | E71: =Calculations!R192*E$3 -> -0.0009694664097 | F71: =Calculations!S192*F$3 -> 0.01042061543 | G71: =Calculations!T192*G$3 -> 0.0319711188 | H71: =Calculations!U192*H$3 -> 0.05383395055 | I71: =Calculations!V192*I$3 -> 0.0758377707 | J71: =Calculations!W192*J$3 -> 0.0758377707 | Q71: Scale factors | R71: % | AA71: 2. Calculate asset growth yearly index
B72: =Calculations!N193 -> Asset growth | C72: =Calculations!P193*C$3 -> 0 | D72: =Calculations!Q193*D$3 -> 0.0001887207808 | E72: =Calculations!R193*E$3 -> 0.0003232878497 | F72: =Calculations!S193*F$3 -> 0.0004690990839 | G72: =Calculations!T193*G$3 -> 0.006011444545 | H72: =Calculations!U193*H$3 -> 0.006277002839 | I72: =Calculations!V193*I$3 -> 0.01486590718 | J72: =Calculations!W193*J$3 -> 0.01486590718 | Q72: Field operations and maintenance | R72: n/a | AB72: Asset growth multiplier index is calculated for each year
B73: Productivity factor | C73: =Calculations!P194*C$3 -> 0 | D73: =Calculations!Q194*D$3 -> 0 | E73: =Calculations!R194*E$3 -> 0 | F73: =Calculations!S194*F$3 -> 0 | G73: =Calculations!T194*G$3 -> 0 | H73: =Calculations!U194*H$3 -> 0 | I73: =Calculations!V194*I$3 -> 0
B74: =Calculations!N195 -> Total | C74: =SUM(C66:C73) -> 1.247277093 | D74: =SUM(D66:D73) -> 1.249892341 | E74: =SUM(E66:E73) -> 1.246630914 | F74: =SUM(F66:F73) -> 1.258166808 | G74: =SUM(G66:G73) -> 1.285259656 | H74: =SUM(H66:H73) -> 1.307388046 | I74: =SUM(I66:I73) -> 1.337980771 | J74: =SUM(J66:J72) -> 1.337980771 | Q74: Transmission services | R74: ='Input Escalators'!E46 -> 25
Q75: Transmission operations | R75: ='Input Escalators'!E47 -> 25 | AA75: 3. Apply appropriate asset growth index to each expenditure category
Q76: Asset management | R76: ='Input Escalators'!E48 -> 25 | AB76: Category totals in table 4 x the asset growth index
B77: =Calculations!N241 -> Preventive Easements | C77: =Year!A$6 -> 2012-13 | D77: =Year!B$6 -> 2013-14 | E77: =Year!C$6 -> 2014-15 | F77: =Year!D$6 -> 2015-16 | G77: =Year!E$6 -> 2016-17 | H77: =Year!F$6 -> 2017-18 | I77: =Year!G$6 -> 2018-19 | J77: =Year!#REF! ->  | Q77: Corporate | R77: ='Input Escalators'!E49 -> 10
B78: =Calculations!N242 -> Base | C78: =Calculations!P242*C$3 -> 3.227940634 | D78: =Calculations!Q242*D$3 -> 3.227940634 | E78: =Calculations!R242*E$3 -> 3.227940634 | F78: =Calculations!S242*F$3 -> 3.227940634 | G78: =Calculations!T242*G$3 -> 3.227940634 | H78: =Calculations!U242*H$3 -> 3.227940634 | I78: =Calculations!V242*I$3 -> 3.227940634 | J78: =Calculations!W242*J$3 -> 3.227940634 | AA78: 4. Results from applying asset growth and efficiency factors are shown in table 6.9a
B79: =Calculations!N243 -> One-Off | C79: =Calculations!P243*C$3 -> 0 | D79: =Calculations!Q243*D$3 -> 0 | E79: =Calculations!R243*E$3 -> 0 | F79: =Calculations!S243*F$3 -> 0 | G79: =Calculations!T243*G$3 -> 0 | H79: =Calculations!U243*H$3 -> 0 | I79: =Calculations!V243*I$3 -> 0 | J79: =Calculations!W243*J$3 -> 0 | P79: Table 6.9a
B80: =Calculations!N244 -> Maintenance | C80: =Calculations!P244*C$3 -> 0 | D80: =Calculations!Q244*D$3 -> 0 | E80: =Calculations!R244*E$3 -> 0 | F80: =Calculations!S244*F$3 -> 0 | G80: =Calculations!T244*G$3 -> 0 | H80: =Calculations!U244*H$3 -> 0 | I80: =Calculations!V244*I$3 -> 0 | J80: =Calculations!W244*J$3 -> 0
B81: =Calculations!N245 -> Scope | C81: =Calculations!P245*C$3 -> 0 | D81: =Calculations!Q245*D$3 -> 0 | E81: =Calculations!R245*E$3 -> 0 | F81: =Calculations!S245*F$3 -> 0 | G81: =Calculations!T245*G$3 -> 0 | H81: =Calculations!U245*H$3 -> 0 | I81: =Calculations!V245*I$3 -> 0 | J81: =Calculations!W245*J$3 -> 0 | Q81: Expenditure categories with asset growth ($m, 2013-14)
B82: =Calculations!N246 -> Zero based | C82: =Calculations!P246*C$3 -> 0 | D82: =Calculations!Q246*D$3 -> 0 | E82: =Calculations!R246*E$3 -> 0 | F82: =Calculations!S246*F$3 -> 0 | G82: =Calculations!T246*G$3 -> 0 | H82: =Calculations!U246*H$3 -> 0 | I82: =Calculations!V246*I$3 -> 0 | J82: =Calculations!W246*J$3 -> 0 | Q82: Category | R82: =Year!A$6 -> 2012-13 | S82: =Year!B$6 -> 2013-14 | T82: =Year!C$6 -> 2014-15 | U82: =Year!D$6 -> 2015-16 | V82: =Year!E$6 -> 2016-17 | W82: =Year!F$6 -> 2017-18 | X82: =Year!G$6 -> 2018-19 | Y82: 5 year Totals
B83: =Calculations!N247 -> Wage growth | C83: =Calculations!P247*C$3 -> 0 | D83: =Calculations!Q247*D$3 -> 0.005171623211 | E83: =Calculations!R247*E$3 -> -0.002066210066 | F83: =Calculations!S247*F$3 -> 0.02220931049 | G83: =Calculations!T247*G$3 -> 0.06813959392 | H83: =Calculations!U247*H$3 -> 0.1147355384 | I83: =Calculations!V247*I$3 -> 0.1616319695 | J83: =Calculations!W247*J$3 -> 0.1616319695 | Q83: Field operations and maintenance | R83: 0 | S83: 0 | T83: 0 | U83: 0 | V83: 0 | W83: 0 | X83: 0 | Y83: =SUM(T83:X83) -> 0
B84: =Calculations!N248 -> Asset growth | C84: =Calculations!P248*C$3 -> 0 | D84: =Calculations!Q248*D$3 -> 0.0004882401393 | E84: =Calculations!R248*E$3 -> 0.0008367805698 | F84: =Calculations!S248*F$3 -> 0.00121224866 | G84: =Calculations!T248*G$3 -> 0.01548894368 | H84: =Calculations!U248*H$3 -> 0.01612620839 | I84: =Calculations!V248*I$3 -> 0.0380836714 | J84: =Calculations!W248*J$3 -> 0.0380836714 | Q84: Transmission services | R84: =R56+D155+D167 -> 7.246770796 | S84: 7.246976514 | T84: 7.247199404 | U84: 7.255670801 | V84: 7.256075916 | W84: 7.269161597 | X84: 7.269161597 | Y84: 36.29726932
B85: Productivity factor | C85: =Calculations!P249*C$3 -> 0 | D85: =Calculations!Q249*D$3 -> 0 | E85: =Calculations!R249*E$3 -> 0 | F85: =Calculations!S249*F$3 -> 0 | G85: =Calculations!T249*G$3 -> 0 | H85: =Calculations!U249*H$3 -> 0 | I85: =Calculations!V249*I$3 -> 0
B86: =Calculations!N250 -> Total | C86: =SUM(C78:C85) -> 3.227940634 | D86: =SUM(D78:D85) -> 3.233600497 | E86: =SUM(E78:E85) -> 3.226711204 | F86: =SUM(F78:F85) -> 3.251362193 | G86: =SUM(G78:G85) -> 3.311569171 | H86: =SUM(H78:H85) -> 3.35880238 | I86: =SUM(I78:I85) -> 3.427656274 | J86: =SUM(J78:J84) -> 3.427656274 | Q86: Transmission operations | R86: =R57+D179 -> 5.539628889 | S86: 5.53978606 | T86: 5.539957012 | U86: 5.546452897 | V86: 5.546777623 | W86: 5.556861882 | X86: 5.181186713 | Y86: 27.37123613
Q87: Asset management | R87: =R58+D191+D203 -> 8.098781353 | S87: 8.099011195 | T87: 8.099260706 | U87: 8.108742801 | V87: 8.109206543 | W87: 8.123890084 | X87: 7.70647762 | Y87: 40.14757775
Q88: Corporate | R88: =R59+D215+D227 -> 9.225212149 | S88: 9.225316986 | T88: 9.225429912 | U88: 9.22972333 | V88: 9.229914491 | W88: 9.236491828 | X88: 9.236491828 | Y88: 46.15805139
B89: =Calculations!N295 -> Corrective Substations | C89: =Year!A$6 -> 2012-13 | D89: =Year!B$6 -> 2013-14 | E89: =Year!C$6 -> 2014-15 | F89: =Year!D$6 -> 2015-16 | G89: =Year!E$6 -> 2016-17 | H89: =Year!F$6 -> 2017-18 | I89: =Year!G$6 -> 2018-19 | J89: =Year!#REF! ->  | Q89: Total Operating expenditure | R89: =SUM(R83:R88) -> 30.11039319 | S89: 30.11109075 | T89: 30.11184703 | U89: 30.14058983 | V89: 30.14197457 | W89: 30.18640539 | X89: 29.39331776 | Y89: 149.9741346
B90: =Calculations!N296 -> Base | C90: =Calculations!P296*C$3 -> 0.5502999018 | D90: =Calculations!Q296*D$3 -> 0.5502999018 | E90: =Calculations!R296*E$3 -> 0.5502999018 | F90: =Calculations!S296*F$3 -> 0.5502999018 | G90: =Calculations!T296*G$3 -> 0.5502999018 | H90: =Calculations!U296*H$3 -> 0.5502999018 | I90: =Calculations!V296*I$3 -> 0.5502999018 | J90: =Calculations!W296*J$3 -> 0.5502999018
B91: =Calculations!N297 -> One-Off | C91: =Calculations!P297*C$3 -> 0 | D91: =Calculations!Q297*D$3 -> 0 | E91: =Calculations!R297*E$3 -> 0 | F91: =Calculations!S297*F$3 -> 0 | G91: =Calculations!T297*G$3 -> 0 | H91: =Calculations!U297*H$3 -> 0 | I91: =Calculations!V297*I$3 -> 0 | J91: =Calculations!W297*J$3 -> 0
B92: =Calculations!N298 -> Maintenance | C92: =Calculations!P298*C$3 -> 0 | D92: =Calculations!Q298*D$3 -> 0 | E92: =Calculations!R298*E$3 -> 0 | F92: =Calculations!S298*F$3 -> 0 | G92: =Calculations!T298*G$3 -> 0 | H92: =Calculations!U298*H$3 -> 0 | I92: =Calculations!V298*I$3 -> 0 | J92: =Calculations!W298*J$3 -> 0
B93: =Calculations!N299 -> Scope | C93: =Calculations!P299*C$3 -> 0 | D93: =Calculations!Q299*D$3 -> 0 | E93: =Calculations!R299*E$3 -> 0 | F93: =Calculations!S299*F$3 -> 0 | G93: =Calculations!T299*G$3 -> 0 | H93: =Calculations!U299*H$3 -> 0 | I93: =Calculations!V299*I$3 -> 0 | J93: =Calculations!W299*J$3 -> 0
B94: =Calculations!N300 -> Zero based | C94: =Calculations!P300*C$3 -> 0 | D94: =Calculations!Q300*D$3 -> 0 | E94: =Calculations!R300*E$3 -> 0 | F94: =Calculations!S300*F$3 -> 0 | G94: =Calculations!T300*G$3 -> 0 | H94: =Calculations!U300*H$3 -> 0 | I94: =Calculations!V300*I$3 -> 0 | J94: =Calculations!W300*J$3 -> 0
B95: =Calculations!N301 -> Wage growth | C95: =Calculations!P301*C$3 -> 0 | D95: =Calculations!Q301*D$3 -> 0.0007557079357 | E95: =Calculations!R301*E$3 -> -0.0003019267413 | F95: =Calculations!S301*F$3 -> 0.003245354795 | G95: =Calculations!T301*G$3 -> 0.009956957373 | H95: =Calculations!U301*H$3 -> 0.01676583026 | I95: =Calculations!V301*I$3 -> 0.023618612 | J95: =Calculations!W301*J$3 -> 0.023618612 | Q95: Field operations and maintenance ($m, 2013-14)
B96: =Calculations!N302 -> Asset growth | C96: =Calculations!P302*C$3 -> 0 | D96: =Calculations!Q302*D$3 -> 8.321624685e-05 | E96: =Calculations!R302*E$3 -> 0.0001426675557 | F96: =Calculations!S302*F$3 -> 0.0002064626269 | G96: =Calculations!T302*G$3 -> 0.002632759623 | H96: =Calculations!U302*H$3 -> 0.002735718237 | I96: =Calculations!V302*I$3 -> 0.006448283205 | J96: =Calculations!W302*J$3 -> 0.006448283205 | Q96: Category | R96: =Year!A$6 -> 2012-13 | S96: =Year!B$6 -> 2013-14 | T96: =Year!C$6 -> 2014-15 | U96: =Year!D$6 -> 2015-16 | V96: =Year!E$6 -> 2016-17 | W96: =Year!F$6 -> 2017-18 | X96: =Year!G$6 -> 2018-19 | Y96: 5 year Totals
B97: Productivity factor | C97: =Calculations!P303*C$3 -> 0 | D97: =Calculations!Q303*D$3 -> 0 | E97: =Calculations!R303*E$3 -> 0 | F97: =Calculations!S303*F$3 -> 0 | G97: =Calculations!T303*G$3 -> 0 | H97: =Calculations!U303*H$3 -> 0 | I97: =Calculations!V303*I$3 -> 0
B98: =Calculations!N304 -> Total | C98: =SUM(C90:C97) -> 0.5502999018 | D98: =SUM(D90:D97) -> 0.5511388259 | E98: =SUM(E90:E97) -> 0.5501406426 | F98: =SUM(F90:F97) -> 0.5537517192 | G98: =SUM(G90:G97) -> 0.5628896188 | H98: =SUM(H90:H97) -> 0.5698014503 | I98: =SUM(I90:I97) -> 0.580366797 | J98: =SUM(J90:J96) -> 0.580366797 | Q98: Substations | R98: =D42+D44+D90+D92 -> 5.000551281 | S98: 5.000551281 | T98: 5.000551281 | U98: 5.000551281 | V98: 5.000551281 | W98: 5.000551281 | X98: 5.000551281 | Y98: =SUM(T98:X98) -> 25.00275641
Q99: Secondary systems | R99: =D66+D68+D114+D116 -> 1.579121457 | S99: 1.579121457 | T99: 1.579121457 | U99: 1.579121457 | V99: 1.579121457 | W99: 1.579121457 | X99: 1.579121457 | Y99: 7.895607286
Q100: Operational communications | R100: =D138+D140 -> 2.41861488 | S100: 2.41861488 | T100: 2.41861488 | U100: 2.41861488 | V100: 2.41861488 | W100: 2.41861488 | X100: 2.41861488 | Y100: 12.0930744
B101: =Calculations!N350 -> Corrective Transmission Lines | C101: =Year!A$6 -> 2012-13 | D101: =Year!B$6 -> 2013-14 | E101: =Year!C$6 -> 2014-15 | F101: =Year!D$6 -> 2015-16 | G101: =Year!E$6 -> 2016-17 | H101: =Year!F$6 -> 2017-18 | I101: =Year!G$6 -> 2018-19 | J101: =Year!#REF! ->  | Q101: Transmission lines | R101: =D54+D56+D102+D104 -> 2.879452038 | S101: 2.879452038 | T101: 2.879452038 | U101: 2.879452038 | V101: 2.879452038 | W101: 2.879452038 | X101: 2.879452038 | Y101: 14.39726019
B102: =Calculations!N351 -> Base | C102: =Calculations!P351*C$3 -> 0.02912740501 | D102: =Calculations!Q351*D$3 -> 0.02912740501 | E102: =Calculations!R351*E$3 -> 0.02912740501 | F102: =Calculations!S351*F$3 -> 0.02912740501 | G102: =Calculations!T351*G$3 -> 0.02912740501 | H102: =Calculations!U351*H$3 -> 0.02912740501 | I102: =Calculations!V351*I$3 -> 0.02912740501 | J102: =Calculations!W351*J$3 -> 0.02912740501 | Q102: Easements | R102: =D78+D80+D126+D128 -> 3.227940634 | S102: 3.227940634 | T102: 3.227940634 | U102: 3.227940634 | V102: 3.227940634 | W102: 3.227940634 | X102: 3.227940634 | Y102: 16.13970317
B103: =Calculations!N352 -> One-Off | C103: =Calculations!P352*C$3 -> 0 | D103: =Calculations!Q352*D$3 -> 0 | E103: =Calculations!R352*E$3 -> 0 | F103: =Calculations!S352*F$3 -> 0 | G103: =Calculations!T352*G$3 -> 0 | H103: =Calculations!U352*H$3 -> 0 | I103: =Calculations!V352*I$3 -> 0 | J103: =Calculations!W352*J$3 -> 0 | Q103: Total Operating expenditure | R103: =SUM(R98:R102) -> 15.10568029 | S103: 15.10568029 | T103: 15.10568029 | U103: 15.10568029 | V103: 15.10568029 | W103: 15.10568029 | X103: 15.10568029 | Y103: 75.52840145
B104: =Calculations!N353 -> Maintenance | C104: =Calculations!P353*C$3 -> 0 | D104: =Calculations!Q353*D$3 -> 0 | E104: =Calculations!R353*E$3 -> 0 | F104: =Calculations!S353*F$3 -> 0 | G104: =Calculations!T353*G$3 -> 0 | H104: =Calculations!U353*H$3 -> 0 | I104: =Calculations!V353*I$3 -> 0 | J104: =Calculations!W353*J$3 -> 0
B105: =Calculations!N354 -> Scope | C105: =Calculations!P354*C$3 -> 0 | D105: =Calculations!Q354*D$3 -> 0 | E105: =Calculations!R354*E$3 -> 0 | F105: =Calculations!S354*F$3 -> 0 | G105: =Calculations!T354*G$3 -> 0 | H105: =Calculations!U354*H$3 -> 0 | I105: =Calculations!V354*I$3 -> 0 | J105: =Calculations!W354*J$3 -> 0 | P105: Table 6.5
B106: =Calculations!N355 -> Zero based | C106: =Calculations!P355*C$3 -> 0 | D106: =Calculations!Q355*D$3 -> 0 | E106: =Calculations!R355*E$3 -> 0 | F106: =Calculations!S355*F$3 -> 0 | G106: =Calculations!T355*G$3 -> 0 | H106: =Calculations!U355*H$3 -> 0 | I106: =Calculations!V355*I$3 -> 0 | J106: =Calculations!W355*J$3 -> 0
B107: =Calculations!N356 -> Wage growth | C107: =Calculations!P356*C$3 -> 0 | D107: =Calculations!Q356*D$3 -> 4.666627454e-05 | E107: =Calculations!R356*E$3 -> -1.864449947e-05 | F107: =Calculations!S356*F$3 -> 0.0002004062822 | G107: =Calculations!T356*G$3 -> 0.0006148593715 | H107: =Calculations!U356*H$3 -> 0.001035319071 | I107: =Calculations!V356*I$3 -> 0.001458490218 | J107: =Calculations!W356*J$3 -> 0.001458490218 | Q107: Zero based costs excluding wage growth ($m, 2013-14)
B108: =Calculations!N357 -> Asset growth | C108: =Calculations!P357*C$3 -> 0 | D108: =Calculations!Q357*D$3 -> 4.405647406e-06 | E108: =Calculations!R357*E$3 -> 7.55071091e-06 | F108: =Calculations!S357*F$3 -> 1.093875684e-05 | G108: =Calculations!T357*G$3 -> 0.0001397648801 | H108: =Calculations!U357*H$3 -> 0.0001455152545 | I108: =Calculations!V357*I$3 -> 0.0003436489846 | J108: =Calculations!W357*J$3 -> 0.0003436489846 | P108: Table 6.14 | Q108: Item | R108: =Year!A$6 -> 2012-13 | S108: =Year!B$6 -> 2013-14 | T108: =Year!C$6 -> 2014-15 | U108: =Year!D$6 -> 2015-16 | V108: =Year!E$6 -> 2016-17 | W108: =Year!F$6 -> 2017-18 | X108: =Year!G$6 -> 2018-19 | Y108: 5 year Totals
B109: Productivity factor | C109: =Calculations!P358*C$3 -> 0 | D109: =Calculations!Q358*D$3 -> 0 | E109: =Calculations!R358*E$3 -> 0 | F109: =Calculations!S358*F$3 -> 0 | G109: =Calculations!T358*G$3 -> 0 | H109: =Calculations!U358*H$3 -> 0 | I109: =Calculations!V358*I$3 -> 0
B110: =Calculations!N359 -> Total | C110: =SUM(C102:C109) -> 0.02912740501 | D110: =SUM(D102:D109) -> 0.02917847693 | E110: =SUM(E102:E109) -> 0.02911631122 | F110: =SUM(F102:F109) -> 0.02933875005 | G110: =SUM(G102:G109) -> 0.02988202926 | H110: =SUM(H102:H109) -> 0.03030823933 | I110: =SUM(I102:I109) -> 0.03092954421 | J110: =SUM(J102:J108) -> 0.03092954421 | Q110: Field operating and maintenance | R110: =R103 -> 15.10568029 | S110: =S103 -> 15.10568029 | T110: 15.10568029 | U110: 15.10568029 | V110: 15.10568029 | W110: 15.10568029 | X110: 15.10568029 | Y110: =SUM(T110:X110) -> 75.52840145
Q111: Revenue regulation | R111: =D201 -> 0.7094603648 | S111: 0.4161057858 | T111: 0 | U111: 0.4161057858 | V111: 0.8322115717 | W111: 0.5430180505 | X111: 0 | Y111: =SUM(T111:X111) -> 1.791335408
Q112: Total Operating expenditure | R112: =SUM(R107:R111) -> 15.81514065 | S112: 15.52178608 | T112: 15.10568029 | U112: 15.52178608 | V112: 15.93789186 | W112: 15.64869834 | X112: 15.10568029 | Y112: =SUM(T112:X112) -> 77.31973686
B113: =Calculations!N407 -> Corrective Protection & Control | C113: =Year!A$6 -> 2012-13 | D113: =Year!B$6 -> 2013-14 | E113: =Year!C$6 -> 2014-15 | F113: =Year!D$6 -> 2015-16 | G113: =Year!E$6 -> 2016-17 | H113: =Year!F$6 -> 2017-18 | I113: =Year!G$6 -> 2018-19 | J113: =Year!#REF! -> 
B114: =Calculations!N408 -> Base | C114: =Calculations!P408*C$3 -> 0.3318443642 | D114: =Calculations!Q408*D$3 -> 0.3318443642 | E114: =Calculations!R408*E$3 -> 0.3318443642 | F114: =Calculations!S408*F$3 -> 0.3318443642 | G114: =Calculations!T408*G$3 -> 0.3318443642 | H114: =Calculations!U408*H$3 -> 0.3318443642 | I114: =Calculations!V408*I$3 -> 0.3318443642 | J114: =Calculations!W408*J$3 -> 0.3318443642
B115: =Calculations!N409 -> One-Off | C115: =Calculations!P409*C$3 -> 0 | D115: =Calculations!Q409*D$3 -> 0 | E115: =Calculations!R409*E$3 -> 0 | F115: =Calculations!S409*F$3 -> 0 | G115: =Calculations!T409*G$3 -> 0 | H115: =Calculations!U409*H$3 -> 0 | I115: =Calculations!V409*I$3 -> 0 | J115: =Calculations!W409*J$3 -> 0
B116: =Calculations!N410 -> Maintenance | C116: =Calculations!P410*C$3 -> 0 | D116: =Calculations!Q410*D$3 -> 0 | E116: =Calculations!R410*E$3 -> 0 | F116: =Calculations!S410*F$3 -> 0 | G116: =Calculations!T410*G$3 -> 0 | H116: =Calculations!U410*H$3 -> 0 | I116: =Calculations!V410*I$3 -> 0 | J116: =Calculations!W410*J$3 -> 0 | Q116: Operating expenditure with scope changes and zero based forecasts ($m, 2013-14)
B117: =Calculations!N411 -> Scope | C117: =Calculations!P411*C$3 -> 0 | D117: =Calculations!Q411*D$3 -> 0 | E117: =Calculations!R411*E$3 -> 0 | F117: =Calculations!S411*F$3 -> 0 | G117: =Calculations!T411*G$3 -> 0 | H117: =Calculations!U411*H$3 -> 0 | I117: =Calculations!V411*I$3 -> 0 | J117: =Calculations!W411*J$3 -> 0 | Q117: Category | R117: =Year!A$6 -> 2012-13 | S117: =Year!B$6 -> 2013-14 | T117: =Year!C$6 -> 2014-15 | U117: =Year!D$6 -> 2015-16 | V117: =Year!E$6 -> 2016-17 | W117: =Year!F$6 -> 2017-18 | X117: =Year!G$6 -> 2018-19 | Y117: 5 year Totals
B118: =Calculations!N412 -> Zero based | C118: =Calculations!P412*C$3 -> 0 | D118: =Calculations!Q412*D$3 -> 0 | E118: =Calculations!R412*E$3 -> 0 | F118: =Calculations!S412*F$3 -> 0 | G118: =Calculations!T412*G$3 -> 0 | H118: =Calculations!U412*H$3 -> 0 | I118: =Calculations!V412*I$3 -> 0 | J118: =Calculations!W412*J$3 -> 0 | Q118: Field operations and maintenance | R118: =R103 -> 15.10568029 | S118: 15.10568029 | T118: 15.10568029 | U118: 15.10568029 | V118: 15.10568029 | W118: 15.10568029 | X118: 15.10568029 | Y118: =SUM(T118:X118) -> 75.52840145
B119: =Calculations!N413 -> Wage growth | C119: =Calculations!P413*C$3 -> 0 | D119: =Calculations!Q413*D$3 -> 0.0006455898134 | E119: =Calculations!R413*E$3 -> -0.0002579314301 | F119: =Calculations!S413*F$3 -> 0.002772457317 | G119: =Calculations!T413*G$3 -> 0.008506077478 | H119: =Calculations!U413*H$3 -> 0.01432279418 | I119: =Calculations!V413*I$3 -> 0.02017702156 | J119: =Calculations!W413*J$3 -> 0.02017702156 | Q119: Transmission services | R119: =R84 -> 7.246770796 | S119: 7.246976514 | T119: 7.247199404 | U119: 7.255670801 | V119: 7.256075916 | W119: 7.269161597 | X119: 7.269161597 | Y119: 36.29726932
B120: =Calculations!N414 -> Asset growth | C120: =Calculations!P414*C$3 -> 0 | D120: =Calculations!Q414*D$3 -> 5.0210116e-05 | E120: =Calculations!R414*E$3 -> 8.601236369e-05 | F120: =Calculations!S414*F$3 -> 0.0001248061783 | G120: =Calculations!T414*G$3 -> 0.001599375154 | H120: =Calculations!U414*H$3 -> 0.001670028278 | I120: =Calculations!V414*I$3 -> 0.003955149616 | J120: =Calculations!W414*J$3 -> 0.003955149616 | Q120: Transmission operations | R120: =R86 -> 5.539628889 | S120: 5.53978606 | T120: 5.539957012 | U120: 5.546452897 | V120: 5.546777623 | W120: 5.556861882 | X120: 5.181186713 | Y120: 27.37123613
B121: Productivity factor | C121: =Calculations!P415*C$3 -> 0 | D121: =Calculations!Q415*D$3 -> 0 | E121: =Calculations!R415*E$3 -> 0 | F121: =Calculations!S415*F$3 -> 0 | G121: =Calculations!T415*G$3 -> 0 | H121: =Calculations!U415*H$3 -> 0 | I121: =Calculations!V415*I$3 -> 0
B122: =Calculations!N416 -> Total | C122: =SUM(C114:C121) -> 0.3318443642 | D122: =SUM(D114:D121) -> 0.3325401641 | E122: =SUM(E114:E121) -> 0.3316724451 | F122: =SUM(F114:F121) -> 0.3347416277 | G122: =SUM(G114:G121) -> 0.3419498168 | H122: =SUM(H114:H121) -> 0.3478371867 | I122: =SUM(I114:I121) -> 0.3559765354 | J122: =SUM(J114:J120) -> 0.3559765354 | Q122: Asset management | R122: =R87+R111 -> 8.808241718 | S122: 8.515116981 | T122: 8.099260706 | U122: 8.524848586 | V122: 8.941418115 | W122: 8.666908135 | X122: 7.70647762 | Y122: 41.93891316
Q123: Corporate | R123: =R88 -> 9.225212149 | S123: 9.225316986 | T123: 9.225429912 | U123: 9.22972333 | V123: 9.229914491 | W123: 9.236491828 | X123: 9.236491828 | Y123: 46.15805139
Q124: Total Operating expenditure | R124: =SUM(R118:R123) -> 45.92553384 | S124: 45.63287683 | T124: 45.21752732 | U124: 45.6623759 | V124: 46.07986643 | W124: 45.83510373 | X124: 44.49899805 | Y124: 227.2938714
B125: =Calculations!N462 -> Corrective Easements | C125: =Year!A$6 -> 2012-13 | D125: =Year!B$6 -> 2013-14 | E125: =Year!C$6 -> 2014-15 | F125: =Year!D$6 -> 2015-16 | G125: =Year!E$6 -> 2016-17 | H125: =Year!F$6 -> 2017-18 | I125: =Year!G$6 -> 2018-19 | J125: =Year!#REF! -> 
B126: =Calculations!N463 -> Base | C126: =Calculations!P463*C$3 -> 0 | D126: =Calculations!Q463*D$3 -> 0 | E126: =Calculations!R463*E$3 -> 0 | F126: =Calculations!S463*F$3 -> 0 | G126: =Calculations!T463*G$3 -> 0 | H126: =Calculations!U463*H$3 -> 0 | I126: =Calculations!V463*I$3 -> 0 | J126: =Calculations!W463*J$3 -> 0
B127: =Calculations!N464 -> One-Off | C127: =Calculations!P464*C$3 -> 0 | D127: =Calculations!Q464*D$3 -> 0 | E127: =Calculations!R464*E$3 -> 0 | F127: =Calculations!S464*F$3 -> 0 | G127: =Calculations!T464*G$3 -> 0 | H127: =Calculations!U464*H$3 -> 0 | I127: =Calculations!V464*I$3 -> 0 | J127: =Calculations!W464*J$3 -> 0 | P127: Table 6.10
B128: =Calculations!N465 -> Maintenance | C128: =Calculations!P465*C$3 -> 0 | D128: =Calculations!Q465*D$3 -> 0 | E128: =Calculations!R465*E$3 -> 0 | F128: =Calculations!S465*F$3 -> 0 | G128: =Calculations!T465*G$3 -> 0 | H128: =Calculations!U465*H$3 -> 0 | I128: =Calculations!V465*I$3 -> 0 | J128: =Calculations!W465*J$3 -> 0 | Q128: Wage growth | AA128: Labour
B129: =Calculations!N466 -> Scope | C129: =Calculations!P466*C$3 -> 0 | D129: =Calculations!Q466*D$3 -> 0 | E129: =Calculations!R466*E$3 -> 0 | F129: =Calculations!S466*F$3 -> 0 | G129: =Calculations!T466*G$3 -> 0 | H129: =Calculations!U466*H$3 -> 0 | I129: =Calculations!V466*I$3 -> 0 | J129: =Calculations!W466*J$3 -> 0 | R129: =Year!A$6 -> 2012-13 | S129: =Year!B$6 -> 2013-14 | T129: =Year!C$6 -> 2014-15 | U129: =Year!D$6 -> 2015-16 | V129: =Year!E$6 -> 2016-17 | W129: =Year!F$6 -> 2017-18 | X129: =Year!G$6 -> 2018-19 | AA129: Labour
B130: =Calculations!N467 -> Zero based | C130: =Calculations!P467*C$3 -> 0 | D130: =Calculations!Q467*D$3 -> 0 | E130: =Calculations!R467*E$3 -> 0 | F130: =Calculations!S467*F$3 -> 0 | G130: =Calculations!T467*G$3 -> 0 | H130: =Calculations!U467*H$3 -> 0 | I130: =Calculations!V467*I$3 -> 0 | J130: =Calculations!W467*J$3 -> 0 | Q130: Wage growth | R130: ='Input Escalators'!F16 -> 0 | S130: ='Input Escalators'!G16 -> 0.002288776033 | T130: ='Input Escalators'!H16 -> -0.003195892254 | U130: ='Input Escalators'!I16 -> 0.01075331299 | V130: ='Input Escalators'!J16 -> 0.02012925432 | W130: ='Input Escalators'!K16 -> 0.0200180366 | X130: ='Input Escalators'!L16 -> 0.01975173733 | AA130: Field operations and maintenance
B131: =Calculations!N468 -> Wage growth | C131: =Calculations!P468*C$3 -> 0 | D131: =Calculations!Q468*D$3 -> 0 | E131: =Calculations!R468*E$3 -> 0 | F131: =Calculations!S468*F$3 -> 0 | G131: =Calculations!T468*G$3 -> 0 | H131: =Calculations!U468*H$3 -> 0 | I131: =Calculations!V468*I$3 -> 0 | J131: =Calculations!W468*J$3 -> 0 | P131: Table 6.6 & | AA131: Substations | AB131: ='Input Escalators'!G37 -> 60
B132: =Calculations!N469 -> Asset growth | C132: =Calculations!P469*C$3 -> 0 | D132: =Calculations!Q469*D$3 -> 0 | E132: =Calculations!R469*E$3 -> 0 | F132: =Calculations!S469*F$3 -> 0 | G132: =Calculations!T469*G$3 -> 0 | H132: =Calculations!U469*H$3 -> 0 | I132: =Calculations!V469*I$3 -> 0 | J132: =Calculations!W469*J$3 -> 0 | P132: Table 6.17 | AA132: Secondary systems | AB132: ='Input Escalators'!G39 -> 85
B133: Productivity factor | C133: =Calculations!P470*C$3 -> 0 | D133: =Calculations!Q470*D$3 -> 0 | E133: =Calculations!R470*E$3 -> 0 | F133: =Calculations!S470*F$3 -> 0 | G133: =Calculations!T470*G$3 -> 0 | H133: =Calculations!U470*H$3 -> 0 | I133: =Calculations!V470*I$3 -> 0
B134: =Calculations!N471 -> Total | C134: =SUM(C126:C133) -> 0 | D134: =SUM(D126:D133) -> 0 | E134: =SUM(E126:E133) -> 0 | F134: =SUM(F126:F133) -> 0 | G134: =SUM(G126:G133) -> 0 | H134: =SUM(H126:H133) -> 0 | I134: =SUM(I126:I133) -> 0 | J134: =SUM(J126:J132) -> 0 | Q134: Expenditure categories with wage escalation ($m, 2013-14) | AA134: Operational communications | AB134: n/a
P135: Table 6.13 | Q135: Category | R135: =Year!A$6 -> 2012-13 | S135: =Year!B$6 -> 2013-14 | T135: =Year!C$6 -> 2014-15 | U135: =Year!D$6 -> 2015-16 | V135: =Year!E$6 -> 2016-17 | W135: =Year!F$6 -> 2017-18 | X135: =Year!G$6 -> 2018-19 | Y135: 5 year Totals | AA135: Transmission lines | AB135: ='Input Escalators'!G38 -> 70
Q136: Field operations and maintenance | R136: =SUM(D22:D30) -> 15.13156409 | S136: 15.1001677 | T136: 15.2126975 | U136: 15.48905982 | V136: 15.70464087 | W136: 16.0212446 | X136: 16.0212446 | Y136: =SUM(T136:X136) -> 78.44888737 | AA136: Easements | AB136: ='Input Escalators'!G40 -> 70
B137: =Calculations!N518 -> Operational communications | C137: =Year!A$6 -> 2012-13 | D137: =Year!B$6 -> 2013-14 | E137: =Year!C$6 -> 2014-15 | F137: =Year!D$6 -> 2015-16 | G137: =Year!E$6 -> 2016-17 | H137: =Year!F$6 -> 2017-18 | I137: =Year!G$6 -> 2018-19 | J137: =Year!#REF! ->  | Q137: Transmission services | R137: =D31+D32 -> 7.260868535 | S137: 7.241344068 | T137: 7.307741528 | U137: 7.441417935 | V137: 7.568842638 | W137: 7.709767028 | X137: 7.709767028 | Y137: 37.73753616 | AA137: Transmission services | AB137: ='Input Escalators'!G46 -> 85
B138: =Calculations!N519 -> Base | C138: =Calculations!P519*C$3 -> 2.41861488 | D138: =Calculations!Q519*D$3 -> 2.41861488 | E138: =Calculations!R519*E$3 -> 2.41861488 | F138: =Calculations!S519*F$3 -> 2.41861488 | G138: =Calculations!T519*G$3 -> 2.41861488 | H138: =Calculations!U519*H$3 -> 2.41861488 | I138: =Calculations!V519*I$3 -> 2.41861488 | J138: =Calculations!W519*J$3 -> 2.41861488 | Q138: Transmission operations | R138: =D33 -> 5.551673431 | S138: 5.534973924 | T138: 5.591681771 | U138: 5.705147787 | V138: 5.813992947 | W138: 5.933297463 | X138: 5.532173128 | Y138: 28.5762931 | AA138: Transmission operations | AB138: ='Input Escalators'!G47 -> 95
B139: =Calculations!N520 -> One-Off | C139: =Calculations!P520*C$3 -> 0 | D139: =Calculations!Q520*D$3 -> 0 | E139: =Calculations!R520*E$3 -> 0 | F139: =Calculations!S520*F$3 -> 0 | G139: =Calculations!T520*G$3 -> 0 | H139: =Calculations!U520*H$3 -> 0 | I139: =Calculations!V520*I$3 -> 0 | J139: =Calculations!W520*J$3 -> 0 | Q139: Asset management | R139: =D34+D35 -> 8.826385137 | S139: 8.508109598 | T139: 8.170900839 | U139: 8.755938462 | V139: 9.349550401 | W139: 9.223240299 | X139: 8.201062071 | Y139: 43.70069207 | AA139: Asset management | AB139: ='Input Escalators'!G48 -> 90
B140: =Calculations!N521 -> Maintenance | C140: =Calculations!P521*C$3 -> 0 | D140: =Calculations!Q521*D$3 -> 0 | E140: =Calculations!R521*E$3 -> 0 | F140: =Calculations!S521*F$3 -> 0 | G140: =Calculations!T521*G$3 -> 0 | H140: =Calculations!U521*H$3 -> 0 | I140: =Calculations!V521*I$3 -> 0 | J140: =Calculations!W521*J$3 -> 0 | Q140: Corporate | R140: =D36+D37 -> 9.239992025 | S140: 9.219412006 | T140: 9.288901444 | U140: 9.424458077 | V140: 9.55781483 | W140: 9.698416516 | X140: 9.698416516 | Y140: 47.66800738 | AA140: Corporate | AB140: ='Input Escalators'!G49 -> 70
B141: =Calculations!N522 -> Scope | C141: =Calculations!P522*C$3 -> 0 | D141: =Calculations!Q522*D$3 -> 0 | E141: =Calculations!R522*E$3 -> 0 | F141: =Calculations!S522*F$3 -> 0 | G141: =Calculations!T522*G$3 -> 0 | H141: =Calculations!U522*H$3 -> 0 | I141: =Calculations!V522*I$3 -> 0 | J141: =Calculations!W522*J$3 -> 0 | Q141: Total Operating expenditure | R141: =SUM(R136:R140) -> 46.01048321 | S141: 45.6040073 | T141: 45.57192308 | U141: 46.81602208 | V141: 47.99484168 | W141: 48.5859659 | X141: 47.16266334 | Y141: 236.1314161
B142: =Calculations!N523 -> Zero based | C142: =Calculations!P523*C$3 -> 0 | D142: =Calculations!Q523*D$3 -> 0 | E142: =Calculations!R523*E$3 -> 0 | F142: =Calculations!S523*F$3 -> 0 | G142: =Calculations!T523*G$3 -> 0 | H142: =Calculations!U523*H$3 -> 0 | I142: =Calculations!V523*I$3 -> 0 | J142: =Calculations!W523*J$3 -> 0
B143: =Calculations!N524 -> Wage growth | C143: =Calculations!P524*C$3 -> 0 | D143: =Calculations!Q524*D$3 -> 0.00387496744 | E143: =Calculations!R524*E$3 -> -0.001548159331 | F143: =Calculations!S524*F$3 -> 0.01664087879 | G143: =Calculations!T524*G$3 -> 0.0510552871 | H143: =Calculations!U524*H$3 -> 0.08596845854 | I143: =Calculations!V524*I$3 -> 0.121106777 | J143: =Calculations!W524*J$3 -> 0.121106777
B144: =Calculations!N525 -> Asset growth | C144: =Calculations!P525*C$3 -> 0 | D144: =Calculations!Q525*D$3 -> 0.0003658260792 | E144: =Calculations!R525*E$3 -> 0.0006269786738 | F144: =Calculations!S525*F$3 -> 0.0009083074874 | G144: =Calculations!T525*G$3 -> 0.01160547665 | H144: =Calculations!U525*H$3 -> 0.0120829631 | I144: =Calculations!V525*I$3 -> 0.0285351389 | J144: =Calculations!W525*J$3 -> 0.0285351389
B145: Productivity factor | C145: =Calculations!P526*C$3 -> 0 | D145: =Calculations!Q526*D$3 -> 0 | E145: =Calculations!R526*E$3 -> 0 | F145: =Calculations!S526*F$3 -> 0 | G145: =Calculations!T526*G$3 -> 0 | H145: =Calculations!U526*H$3 -> 0 | I145: =Calculations!V526*I$3 -> 0
B146: =Calculations!N527 -> Total | C146: =SUM(C138:C145) -> 2.41861488 | D146: =SUM(D138:D145) -> 2.422855674 | E146: =SUM(E138:E145) -> 2.417693699 | F146: =SUM(F138:F145) -> 2.436164066 | G146: =SUM(G138:G145) -> 2.481275644 | H146: =SUM(H138:H145) -> 2.516666302 | I146: =SUM(I138:I145) -> 2.568256796 | J146: =SUM(J138:J144) -> 2.568256796 | K146: After AER adjustment | P146: Table 6.21
P147: Table 6.17 | Q147: Category | R147: =Year!A$6 -> 2012-13 | S147: =Year!B$6 -> 2013-14 | T147: =Year!C$6 -> 2014-15 | U147: =Year!D$6 -> 2015-16 | V147: =Year!E$6 -> 2016-17 | W147: =Year!F$6 -> 2017-18 | X147: =Year!G$6 -> 2018-19 | Y147: 5 year Totals
B148: =Calculations!N573 -> Engineering services | C148: =Year!A$6 -> 2012-13 | D148: =Year!B$6 -> 2013-14 | E148: =Year!C$6 -> 2014-15 | F148: =Year!D$6 -> 2015-16 | G148: =Year!E$6 -> 2016-17 | H148: =Year!F$6 -> 2017-18 | I148: =Year!G$6 -> 2018-19 | J148: =Year!#REF! ->  | P148: Table 6.18 | Q148: Network support | R148: ='Other operating Inputs'!E27 -> 0 | S148: ='Other operating Inputs'!F27 -> 0 | T148: ='Other operating Inputs'!G27 -> 0 | U148: ='Other operating Inputs'!H27 -> 0 | V148: 0 | W148: 0 | X148: 0 | Y148: =SUM(T148:X148) -> 0
B149: =Calculations!N574 -> Base | C149: =Calculations!P574*C$3 -> 4.415922652 | D149: =Calculations!Q574*D$3 -> 4.415922652 | E149: =Calculations!R574*E$3 -> 4.415922652 | F149: =Calculations!S574*F$3 -> 4.415922652 | G149: =Calculations!T574*G$3 -> 4.415922652 | H149: =Calculations!U574*H$3 -> 4.415922652 | I149: =Calculations!V574*I$3 -> 4.415922652 | J149: =Calculations!W574*J$3 -> 4.415922652 | P149: Table 6.19 | Q149: Debt raising | R149: 0 | S149: 0 | T149: ='Other operating Inputs'!G28 -> 0.9508858914 | U149: ='Other operating Inputs'!H28 -> 0.9510829531 | V149: ='Other operating Inputs'!I28 -> 0.9597156595 | W149: ='Other operating Inputs'!J28 -> 0.9622680864 | X149: ='Other operating Inputs'!K28 -> 0.9605707579 | Y149: 4.784523348
B150: =Calculations!N575 -> One-Off | C150: =Calculations!P575*C$3 -> 0 | D150: =Calculations!Q575*D$3 -> 0 | E150: =Calculations!R575*E$3 -> 0 | F150: =Calculations!S575*F$3 -> 0 | G150: =Calculations!T575*G$3 -> 0 | H150: =Calculations!U575*H$3 -> 0 | I150: =Calculations!V575*I$3 -> 0 | J150: =Calculations!W575*J$3 -> 0 | P150: Table 6.20 | Q150: Equity raising | R150: 0 | S150: 0 | T150: ='Other operating Inputs'!G29 -> 0 | U150: ='Other operating Inputs'!H29 -> 0 | V150: ='Other operating Inputs'!I29 -> 0 | W150: ='Other operating Inputs'!J29 -> 0 | X150: ='Other operating Inputs'!K29 -> 0 | Y150: 0
B151: =Calculations!N576 -> Maintenance | C151: =Calculations!P576*C$3 -> 0 | D151: =Calculations!Q576*D$3 -> 0 | E151: =Calculations!R576*E$3 -> 0 | F151: =Calculations!S576*F$3 -> 0 | G151: =Calculations!T576*G$3 -> 0 | H151: =Calculations!U576*H$3 -> 0 | I151: =Calculations!V576*I$3 -> 0 | J151: =Calculations!W576*J$3 -> 0 | Q151: Insurance | R151: ='Other operating Inputs'!#REF! ->  | S151: ='Other operating Inputs'!E30 -> 1.009056531 | T151: ='Other operating Inputs'!F30 -> 0.9820501515 | U151: ='Other operating Inputs'!G30 -> 1.005 | V151: ='Other operating Inputs'!H30 -> 1.029 | W151: ='Other operating Inputs'!I30 -> 1.047 | X151: ='Other operating Inputs'!J30 -> 1.064 | Y151: 5.127050151
B152: =Calculations!N577 -> Scope | C152: =Calculations!P577*C$3 -> 0 | D152: =Calculations!Q577*D$3 -> 0 | E152: =Calculations!R577*E$3 -> 0 | F152: =Calculations!S577*F$3 -> 0 | G152: =Calculations!T577*G$3 -> 0 | H152: =Calculations!U577*H$3 -> 0 | I152: =Calculations!V577*I$3 -> 0 | J152: =Calculations!W577*J$3 -> 0 | Q152: Self Insurance | R152: ='Other operating Inputs'!#REF! ->  | S152: ='Other operating Inputs'!E31 -> 0.9123119354 | T152: ='Other operating Inputs'!F31 -> 0.9111805529 | U152: ='Other operating Inputs'!G31 -> 0.697 | V152: ='Other operating Inputs'!H31 -> 0.697 | W152: ='Other operating Inputs'!I31 -> 0.697 | X152: ='Other operating Inputs'!J31 -> 0.697 | Y152: 3.699180553
B153: =Calculations!N578 -> Zero based | C153: =Calculations!P578*C$3 -> 0 | D153: =Calculations!Q578*D$3 -> 0 | E153: =Calculations!R578*E$3 -> 0 | F153: =Calculations!S578*F$3 -> 0 | G153: =Calculations!T578*G$3 -> 0 | H153: =Calculations!U578*H$3 -> 0 | I153: =Calculations!V578*I$3 -> 0 | J153: =Calculations!W578*J$3 -> 0 | Q153: Total Operating expenditure | R153: =SUM(R147:R152) ->  | S153: 1.921368466 | T153: 2.844116596 | U153: 2.653082953 | V153: 2.68571566 | W153: 2.706268086 | X153: 2.721570758 | Y153: 13.61075405
B154: =Calculations!N579 -> Wage growth | C154: =Calculations!P579*C$3 -> 0 | D154: =Calculations!Q579*D$3 -> 0.008590999241 | E154: =Calculations!R579*E$3 -> -0.003432347714 | F154: =Calculations!S579*F$3 -> 0.03689367183 | G154: =Calculations!T579*G$3 -> 0.1131921595 | H154: =Calculations!U579*H$3 -> 0.1905964304 | I154: =Calculations!V579*I$3 -> 0.2684998637 | J154: =Calculations!W579*J$3 -> 0.2684998637
B155: =Calculations!N580 -> Asset growth | C155: =Calculations!P580*C$3 -> 0 | D155: =Calculations!Q580*D$3 -> 0.0001758306735 | E155: =Calculations!R580*E$3 -> 0.0003011924689 | F155: =Calculations!S580*F$3 -> 0.0004370188648 | G155: =Calculations!T580*G$3 -> 0.005599390796 | H155: =Calculations!U580*H$3 -> 0.005846263027 | I155: =Calculations!V580*I$3 -> 0.01382052633 | J155: =Calculations!W580*J$3 -> 0.01382052633
B156: Productivity factor | C156: =Calculations!P581*C$3 -> 0 | D156: =Calculations!Q581*D$3 -> 0 | E156: =Calculations!R581*E$3 -> 0 | F156: =Calculations!S581*F$3 -> 0 | G156: =Calculations!T581*G$3 -> 0 | H156: =Calculations!U581*H$3 -> 0 | I156: =Calculations!V581*I$3 -> 0
B157: =Calculations!N582 -> Total | C157: =SUM(C149:C156) -> 4.415922652 | D157: =SUM(D149:D156) -> 4.424689482 | E157: =SUM(E149:E156) -> 4.412791497 | F157: =SUM(F149:F156) -> 4.453253343 | G157: =SUM(G149:G156) -> 4.534714202 | H157: =SUM(H149:H156) -> 4.612365346 | I157: =SUM(I149:I156) -> 4.698243042 | J157: =SUM(J149:J155) -> 4.698243042 | P157: Table 6.22
Q159: Total forecast operating expenditure ($m, 2013-14)
B160: =Calculations!N628 -> Works planning and coordination | C160: =Year!A$6 -> 2012-13 | D160: =Year!B$6 -> 2013-14 | E160: =Year!C$6 -> 2014-15 | F160: =Year!D$6 -> 2015-16 | G160: =Year!E$6 -> 2016-17 | H160: =Year!F$6 -> 2017-18 | I160: =Year!G$6 -> 2018-19 | J160: =Year!#REF! ->  | Q160: Category | R160: =Year!A$6 -> 2012-13 | S160: =Year!B$6 -> 2013-14 | T160: =Year!C$6 -> 2014-15 | U160: =Year!D$6 -> 2015-16 | V160: =Year!E$6 -> 2016-17 | W160: =Year!F$6 -> 2017-18 | X160: =Year!G$6 -> 2018-19 | Y160: 5 year Totals
B161: =Calculations!N629 -> Base | C161: =Calculations!P629*C$3 -> 2.830559608 | D161: =Calculations!Q629*D$3 -> 2.830559608 | E161: =Calculations!R629*E$3 -> 2.830559608 | F161: =Calculations!S629*F$3 -> 2.830559608 | G161: =Calculations!T629*G$3 -> 2.830559608 | H161: =Calculations!U629*H$3 -> 2.830559608 | I161: =Calculations!V629*I$3 -> 2.830559608 | J161: =Calculations!W629*J$3 -> 2.830559608 | Q161: Field operations and maintenance | R161: =R136 -> 15.13156409 | S161: 15.1001677 | T161: 15.2126975 | U161: 15.48905982 | V161: 15.70464087 | W161: 16.0212446 | X161: 16.0212446 | Y161: =SUM(T161:X161) -> 78.44888737
B162: =Calculations!N630 -> One-Off | C162: =Calculations!P630*C$3 -> 0 | D162: =Calculations!Q630*D$3 -> 0 | E162: =Calculations!R630*E$3 -> 0 | F162: =Calculations!S630*F$3 -> 0 | G162: =Calculations!T630*G$3 -> 0 | H162: =Calculations!U630*H$3 -> 0 | I162: =Calculations!V630*I$3 -> 0 | J162: =Calculations!W630*J$3 -> 0 | Q162: Transmission services | R162: 7.260868535 | S162: 7.241344068 | T162: 7.307741528 | U162: 7.441417935 | V162: 7.568842638 | W162: 7.709767028 | X162: 7.709767028 | Y162: =SUM(T162:X162) -> 37.73753616
B163: =Calculations!N631 -> Maintenance | C163: =Calculations!P631*C$3 -> 0 | D163: =Calculations!Q631*D$3 -> 0 | E163: =Calculations!R631*E$3 -> 0 | F163: =Calculations!S631*F$3 -> 0 | G163: =Calculations!T631*G$3 -> 0 | H163: =Calculations!U631*H$3 -> 0 | I163: =Calculations!V631*I$3 -> 0 | J163: =Calculations!W631*J$3 -> 0 | Q163: Transmission operations | R163: 5.551673431 | S163: 5.534973924 | T163: 5.591681771 | U163: 5.705147787 | V163: 5.813992947 | W163: 5.933297463 | X163: 5.532173128 | Y163: 28.5762931
B164: =Calculations!N632 -> Scope | C164: =Calculations!P632*C$3 -> 0 | D164: =Calculations!Q632*D$3 -> 0 | E164: =Calculations!R632*E$3 -> 0 | F164: =Calculations!S632*F$3 -> 0 | G164: =Calculations!T632*G$3 -> 0 | H164: =Calculations!U632*H$3 -> 0 | I164: =Calculations!V632*I$3 -> 0 | J164: =Calculations!W632*J$3 -> 0 | Q164: Asset management | R164: 8.826385137 | S164: 8.508109598 | T164: 8.170900839 | U164: 8.755938462 | V164: 9.349550401 | W164: 9.223240299 | X164: 8.201062071 | Y164: 43.70069207
B165: =Calculations!N633 -> Zero based | C165: =Calculations!P633*C$3 -> 0 | D165: =Calculations!Q633*D$3 -> 0 | E165: =Calculations!R633*E$3 -> 0 | F165: =Calculations!S633*F$3 -> 0 | G165: =Calculations!T633*G$3 -> 0 | H165: =Calculations!U633*H$3 -> 0 | I165: =Calculations!V633*I$3 -> 0 | J165: =Calculations!W633*J$3 -> 0 | Q165: Corporate | R165: 9.239992025 | S165: 9.219412006 | T165: 9.288901444 | U165: 9.424458077 | V165: 9.55781483 | W165: 9.698416516 | X165: 9.698416516 | Y165: 47.66800738
B166: =Calculations!N634 -> Wage growth | C166: =Calculations!P634*C$3 -> 0 | D166: =Calculations!Q634*D$3 -> 0.005506739443 | E166: =Calculations!R634*E$3 -> -0.002200098499 | F166: =Calculations!S634*F$3 -> 0.02364845254 | G166: =Calculations!T634*G$3 -> 0.07255497435 | H166: =Calculations!U634*H$3 -> 0.1221702915 | I166: =Calculations!V634*I$3 -> 0.1721055664 | J166: =Calculations!W634*J$3 -> 0.1721055664 | Q166: Total controllable expenditure | R166: =SUM(R161:R165) -> 46.01048321 | S166: 45.6040073 | T166: 45.57192308 | U166: 46.81602208 | V166: 47.99484168 | W166: 48.5859659 | X166: 47.16266334 | Y166: 236.1314161
B167: =Calculations!N635 -> Asset growth | C167: =Calculations!P635*C$3 -> 0 | D167: =Calculations!Q635*D$3 -> 0.0001127055978 | E167: =Calculations!R635*E$3 -> 0.0001930611797 | F167: =Calculations!S635*F$3 -> 0.0002801244596 | G167: =Calculations!T635*G$3 -> 0.003589150143 | H167: =Calculations!U635*H$3 -> 0.003747392626 | I167: =Calculations!V635*I$3 -> 0.008858810873 | J167: =Calculations!W635*J$3 -> 0.008858810873 | Q167: Network support | R167: =R148 -> 0 | S167: 0 | T167: 0 | U167: 0 | V167: 0 | W167: 0 | X167: 0 | Y167: =SUM(T167:X167) -> 0
B168: Productivity factor | C168: =Calculations!P636*C$3 -> 0 | D168: =Calculations!Q636*D$3 -> 0 | E168: =Calculations!R636*E$3 -> 0 | F168: =Calculations!S636*F$3 -> 0 | G168: =Calculations!T636*G$3 -> 0 | H168: =Calculations!U636*H$3 -> 0 | I168: =Calculations!V636*I$3 -> 0
B169: =Calculations!N637 -> Total | C169: =SUM(C161:C168) -> 2.830559608 | D169: =SUM(D161:D168) -> 2.836179053 | E169: =SUM(E161:E168) -> 2.828552571 | F169: =SUM(F161:F168) -> 2.854488185 | G169: =SUM(G161:G168) -> 2.906703733 | H169: =SUM(H161:H168) -> 2.956477292 | I169: =SUM(I161:I168) -> 3.011523985 | J169: =SUM(J161:J167) -> 3.011523985 | Q169: Debt raising | R169: =R149 -> 0 | S169: 0 | T169: 0.9508858914 | U169: 0.9510829531 | V169: 0.9597156595 | W169: 0.9622680864 | X169: 0.9605707579 | Y169: 4.784523348
Q170: Equity raising | R170: 0 | S170: 0 | T170: 0 | U170: 0 | V170: 0 | W170: 0 | X170: 0 | Y170: 0
Q171: Insurance | S171: 1.009056531 | T171: 0.9820501515 | U171: 1.005 | V171: 1.029 | W171: 1.047 | X171: 1.064 | Y171: 5.127050151
B172: =Calculations!N683 -> Transmission operations | C172: =Year!A$6 -> 2012-13 | D172: =Year!B$6 -> 2013-14 | E172: =Year!C$6 -> 2014-15 | F172: =Year!D$6 -> 2015-16 | G172: =Year!E$6 -> 2016-17 | H172: =Year!F$6 -> 2017-18 | I172: =Year!G$6 -> 2018-19 | J172: =Year!#REF! ->  | Q172: Self Insurance | S172: 0.9123119354 | T172: 0.9111805529 | U172: 0.697 | V172: 0.697 | W172: 0.697 | X172: 0.697 | Y172: 3.699180553
B173: =Calculations!N684 -> Base | C173: =Calculations!P684*C$3 -> 5.164913067 | D173: =Calculations!Q684*D$3 -> 5.164913067 | E173: =Calculations!R684*E$3 -> 5.164913067 | F173: =Calculations!S684*F$3 -> 5.164913067 | G173: =Calculations!T684*G$3 -> 5.164913067 | H173: =Calculations!U684*H$3 -> 5.164913067 | I173: =Calculations!V684*I$3 -> 5.164913067 | J173: =Calculations!W684*J$3 -> 5.164913067 | Q173: Total Operating expenditure | R173: =SUM(R166:R172) ->  | S173: 47.52537576 | T173: 48.41603967 | U173: 49.46910503 | V173: 50.68055734 | W173: 51.29223399 | X173: 49.8842341 | Y173: 249.7421701
B174: =Calculations!N685 -> One-Off | C174: =Calculations!P685*C$3 -> 0 | D174: =Calculations!Q685*D$3 -> 0 | E174: =Calculations!R685*E$3 -> 0 | F174: =Calculations!S685*F$3 -> 0 | G174: =Calculations!T685*G$3 -> 0 | H174: =Calculations!U685*H$3 -> 0 | I174: =Calculations!V685*I$3 -> 0 | J174: =Calculations!W685*J$3 -> 0
B175: =Calculations!N686 -> Maintenance | C175: =Calculations!P686*C$3 -> 0 | D175: =Calculations!Q686*D$3 -> 0 | E175: =Calculations!R686*E$3 -> 0 | F175: =Calculations!S686*F$3 -> 0 | G175: =Calculations!T686*G$3 -> 0 | H175: =Calculations!U686*H$3 -> 0 | I175: =Calculations!V686*I$3 -> 0 | J175: =Calculations!W686*J$3 -> 0
B176: =Calculations!N687 -> Scope | C176: =Calculations!P687*C$3 -> 0 | D176: =Calculations!Q687*D$3 -> 0.3744952072 | E176: =Calculations!R687*E$3 -> 0.3744952072 | F176: =Calculations!S687*F$3 -> 0.3744952072 | G176: =Calculations!T687*G$3 -> 0.3744952072 | H176: =Calculations!U687*H$3 -> 0.3744952072 | I176: =Calculations!V687*I$3 -> 0.3744952072 | J176: =Calculations!W687*J$3 -> 0 | Q176: Check total controllable | R176: =R166-D38 -> 0 | S176: 0 | T176: 0 | U176: 0 | V176: 0 | W176: 0 | X176: 0
B177: =Calculations!N688 -> Zero based | C177: =Calculations!P688*C$3 -> 0 | D177: =Calculations!Q688*D$3 -> 0 | E177: =Calculations!R688*E$3 -> 0 | F177: =Calculations!S688*F$3 -> 0 | G177: =Calculations!T688*G$3 -> 0 | H177: =Calculations!U688*H$3 -> 0 | I177: =Calculations!V688*I$3 -> 0 | J177: =Calculations!W688*J$3 -> 0
B178: =Calculations!N689 -> Wage growth | C178: =Calculations!P689*C$3 -> 0 | D178: =Calculations!Q689*D$3 -> 0.01204454165 | E178: =Calculations!R689*E$3 -> -0.0048121358 | F178: =Calculations!S689*F$3 -> 0.05172475919 | G178: =Calculations!T689*G$3 -> 0.1586948901 | H178: =Calculations!U689*H$3 -> 0.2672153239 | I178: =Calculations!V689*I$3 -> 0.3764355811 | J178: =Calculations!W689*J$3 -> 0.3509864151 | P178: Table 6.24
B179: =Calculations!N690 -> Asset growth | C179: =Calculations!P690*C$3 -> 0 | D179: =Calculations!Q690*D$3 -> 0.0002206153635 | E179: =Calculations!R690*E$3 -> 0.0003777863655 | F179: =Calculations!S690*F$3 -> 0.0005487382441 | G179: =Calculations!T690*G$3 -> 0.007044623009 | H179: =Calculations!U690*H$3 -> 0.007369349446 | I179: =Calculations!V690*I$3 -> 0.01745360832 | J179: =Calculations!W690*J$3 -> 0.01627364607
B180: Productivity factor | C180: =Calculations!P691*C$3 -> 0 | D180: =Calculations!Q691*D$3 -> 0 | E180: =Calculations!R691*E$3 -> 0 | F180: =Calculations!S691*F$3 -> 0 | G180: =Calculations!T691*G$3 -> 0 | H180: =Calculations!U691*H$3 -> 0 | I180: =Calculations!V691*I$3 -> 0
B181: =Calculations!N692 -> Total | C181: =SUM(C173:C180) -> 5.164913067 | D181: =SUM(D173:D180) -> 5.551673431 | E181: =SUM(E173:E180) -> 5.534973924 | F181: =SUM(F173:F180) -> 5.591681771 | G181: =SUM(G173:G180) -> 5.705147787 | H181: =SUM(H173:H180) -> 5.813992947 | I181: =SUM(I173:I180) -> 5.933297463 | J181: =SUM(J173:J179) -> 5.532173128
Q182: 5 year comparison of historical and forecast operating categories ($m, 2013-14)
Q183: Category | R183: Historic | S183: Forecast | T183: Difference
B184: =Calculations!N738 -> Customer and asset management | C184: =Year!A$6 -> 2012-13 | D184: =Year!B$6 -> 2013-14 | E184: =Year!C$6 -> 2014-15 | F184: =Year!D$6 -> 2015-16 | G184: =Year!E$6 -> 2016-17 | H184: =Year!F$6 -> 2017-18 | I184: =Year!G$6 -> 2018-19 | J184: =Year!#REF! ->  | Q184: Field operations and maintenance | R184: =(SUM(#REF!)) ->  | S184: =SUM(#REF!) ->  | T184: =S184-R184 -> 
B185: =Calculations!N739 -> Base | C185: =Calculations!P739*C$3 -> 6.52869978 | D185: =Calculations!Q739*D$3 -> 6.52869978 | E185: =Calculations!R739*E$3 -> 6.52869978 | F185: =Calculations!S739*F$3 -> 6.52869978 | G185: =Calculations!T739*G$3 -> 6.52869978 | H185: =Calculations!U739*H$3 -> 6.52869978 | I185: =Calculations!V739*I$3 -> 6.52869978 | J185: =Calculations!W739*J$3 -> 6.52869978 | Q185: Transmission services | R185: =(SUM(#REF!)) ->  | S185: =SUM(#REF!) -> 
B186: =Calculations!N740 -> One-Off | C186: =Calculations!P740*C$3 -> 0 | D186: =Calculations!Q740*D$3 -> 0 | E186: =Calculations!R740*E$3 -> 0 | F186: =Calculations!S740*F$3 -> 0 | G186: =Calculations!T740*G$3 -> 0 | H186: =Calculations!U740*H$3 -> 0 | I186: =Calculations!V740*I$3 -> 0 | J186: =Calculations!W740*J$3 -> 0 | Q186: Transmission operations | R186: =(SUM(#REF!)) ->  | S186: =SUM(#REF!) -> 
B187: =Calculations!N741 -> Maintenance | C187: =Calculations!P741*C$3 -> 0 | D187: =Calculations!Q741*D$3 -> 0 | E187: =Calculations!R741*E$3 -> 0 | F187: =Calculations!S741*F$3 -> 0 | G187: =Calculations!T741*G$3 -> 0 | H187: =Calculations!U741*H$3 -> 0 | I187: =Calculations!V741*I$3 -> 0 | J187: =Calculations!W741*J$3 -> 0 | Q187: Asset management | R187: =(SUM(#REF!)) ->  | S187: =SUM(#REF!) -> 
B188: =Calculations!N742 -> Scope | C188: =Calculations!P742*C$3 -> 0 | D188: =Calculations!Q742*D$3 -> 0 | E188: =Calculations!R742*E$3 -> 0 | F188: =Calculations!S742*F$3 -> 0 | G188: =Calculations!T742*G$3 -> 0 | H188: =Calculations!U742*H$3 -> 0 | I188: =Calculations!V742*I$3 -> 0 | J188: =Calculations!W742*J$3 -> 0 | Q188: Corporate | R188: =(SUM(#REF!)) ->  | S188: =SUM(#REF!) -> 
B189: =Calculations!N743 -> Zero based | C189: =Calculations!P743*C$3 -> 0 | D189: =Calculations!Q743*D$3 -> 0 | E189: =Calculations!R743*E$3 -> 0 | F189: =Calculations!S743*F$3 -> 0 | G189: =Calculations!T743*G$3 -> 0 | H189: =Calculations!U743*H$3 -> 0 | I189: =Calculations!V743*I$3 -> 0 | J189: =Calculations!W743*J$3 -> 0 | P189: Table 6.15 | Q189: Total controllable expenditure | R189: =SUM(R184:R188) ->  | S189: =SUM(S184:S188) -> 
B190: =Calculations!N744 -> Wage growth | C190: =Calculations!P744*C$3 -> 0 | D190: =Calculations!Q744*D$3 -> 0.01344845842 | E190: =Calculations!R744*E$3 -> -0.005373040346 | F190: =Calculations!S744*F$3 -> 0.05775381859 | G190: =Calculations!T744*G$3 -> 0.1771924323 | H190: =Calculations!U744*H$3 -> 0.298362053 | I190: =Calculations!V744*I$3 -> 0.4203130687 | J190: =Calculations!W744*J$3 -> 0.4203130687
B191: =Calculations!N745 -> Asset growth | C191: =Calculations!P745*C$3 -> 0 | D191: =Calculations!Q745*D$3 -> 0.0002599857118 | E191: =Calculations!R745*E$3 -> 0.0004452761933 | F191: =Calculations!S745*F$3 -> 0.0006464233566 | G191: =Calculations!T745*G$3 -> 0.008290562879 | H191: =Calculations!U745*H$3 -> 0.008664416332 | I191: =Calculations!V745*I$3 -> 0.02050178325 | J191: =Calculations!W745*J$3 -> 0.02050178325
B192: Productivity factor | C192: =Calculations!P746*C$3 -> 0 | D192: =Calculations!Q746*D$3 -> 0 | E192: =Calculations!R746*E$3 -> 0 | F192: =Calculations!S746*F$3 -> 0 | G192: =Calculations!T746*G$3 -> 0 | H192: =Calculations!U746*H$3 -> 0 | I192: =Calculations!V746*I$3 -> 0
B193: =Calculations!N747 -> Total | C193: =SUM(C185:C192) -> 6.52869978 | D193: =SUM(D185:D192) -> 6.542408224 | E193: =SUM(E185:E192) -> 6.523772015 | F193: =SUM(F185:F192) -> 6.587100022 | G193: =SUM(G185:G192) -> 6.714182775 | H193: =SUM(H185:H192) -> 6.835726249 | I193: =SUM(I185:I192) -> 6.969514632 | J193: =SUM(J185:J191) -> 6.969514632 | Q193: Revenue Regulation ($m, 2013-14)
Q194: Revenue Regulation (with Wage Growth) | T194: =Calculations!G790*'Output $Jun 2014'!F3 -> 0 | U194: =Calculations!H790*'Output $Jun 2014'!G3 -> 0.4273991212 | V194: =Calculations!I790*'Output $Jun 2014'!H3 -> 0.8702437008 | W194: =Calculations!J790*'Output $Jun 2014'!I3 -> 0.5779771681 | X194: =Calculations!K790*'Output $Jun 2014'!J3 -> 0 | Y194: =SUM(T194:X194) -> 1.87561999
B196: =Calculations!N793 -> Regulation and compliance | C196: =Year!A$6 -> 2012-13 | D196: =Year!B$6 -> 2013-14 | E196: =Year!C$6 -> 2014-15 | F196: =Year!D$6 -> 2015-16 | G196: =Year!E$6 -> 2016-17 | H196: =Year!F$6 -> 2017-18 | I196: =Year!G$6 -> 2018-19 | J196: =Year!#REF! -> 
B197: =Calculations!N794 -> Base | C197: =Calculations!P794*C$3 -> 1.153653291 | D197: =Calculations!Q794*D$3 -> 1.153653291 | E197: =Calculations!R794*E$3 -> 1.153653291 | F197: =Calculations!S794*F$3 -> 1.153653291 | G197: =Calculations!T794*G$3 -> 1.153653291 | H197: =Calculations!U794*H$3 -> 1.153653291 | I197: =Calculations!V794*I$3 -> 1.153653291 | J197: =Calculations!W794*J$3 -> 1.153653291
B198: =Calculations!N795 -> One-Off | C198: =Calculations!P795*C$3 -> 0.4514747776 | D198: =Calculations!Q795*D$3 -> 0 | E198: =Calculations!R795*E$3 -> 0 | F198: =Calculations!S795*F$3 -> 0 | G198: =Calculations!T795*G$3 -> 0 | H198: =Calculations!U795*H$3 -> 0 | I198: =Calculations!V795*I$3 -> 0 | J198: =Calculations!W795*J$3 -> 0
B199: =Calculations!N796 -> Maintenance | C199: =Calculations!P796*C$3 -> 0 | D199: =Calculations!Q796*D$3 -> 0 | E199: =Calculations!R796*E$3 -> 0 | F199: =Calculations!S796*F$3 -> 0 | G199: =Calculations!T796*G$3 -> 0 | H199: =Calculations!U796*H$3 -> 0 | I199: =Calculations!V796*I$3 -> 0 | J199: =Calculations!W796*J$3 -> 0
B200: =Calculations!N797 -> Scope | C200: =Calculations!P797*C$3 -> 0 | D200: =Calculations!Q797*D$3 -> 0.4161057858 | E200: =Calculations!R797*E$3 -> 0.4161057858 | F200: =Calculations!S797*F$3 -> 0.4161057858 | G200: =Calculations!T797*G$3 -> 0.4161057858 | H200: =Calculations!U797*H$3 -> 0.4161057858 | I200: =Calculations!V797*I$3 -> 0.4161057858 | J200: =Calculations!W797*J$3 -> 0
B201: =Calculations!N798 -> Zero based | C201: =Calculations!P798*C$3 -> 0 | D201: =Calculations!Q798*D$3 -> 0.7094603648 | E201: =Calculations!R798*E$3 -> 0.4161057858 | F201: =Calculations!S798*F$3 -> 0 | G201: =Calculations!T798*G$3 -> 0.4161057858 | H201: =Calculations!U798*H$3 -> 0.8322115717 | I201: =Calculations!V798*I$3 -> 0.5430180505 | J201: =Calculations!W798*J$3 -> 0
B202: =Calculations!N799 -> Wage growth | C202: =Calculations!P799*C$3 -> 0 | D202: =Calculations!Q799*D$3 -> 0.00469496055 | E202: =Calculations!R799*E$3 -> -0.001634342578 | F202: =Calculations!S799*F$3 -> 0.01388631489 | G202: =Calculations!T799*G$3 -> 0.05389744317 | H202: =Calculations!U799*H$3 -> 0.1097702327 | I202: =Calculations!V799*I$3 -> 0.1360190954 | J202: =Calculations!W799*J$3 -> 0.07427138197
B203: =Calculations!N800 -> Asset growth | C203: =Calculations!P800*C$3 -> 0 | D203: =Calculations!Q800*D$3 -> 6.251090489e-05 | E203: =Calculations!R800*E$3 -> 0.0001070621058 | F203: =Calculations!S800*F$3 -> 0.0001554258835 | G203: =Calculations!T800*G$3 -> 0.001993381036 | H203: =Calculations!U800*H$3 -> 0.002083270275 | I203: =Calculations!V800*I$3 -> 0.004929444061 | J203: =Calculations!W800*J$3 -> 0.003622765715
B204: Productivity factor | C204: =Calculations!P801*C$3 -> 0 | D204: =Calculations!Q801*D$3 -> 0 | E204: =Calculations!R801*E$3 -> 0 | F204: =Calculations!S801*F$3 -> 0 | G204: =Calculations!T801*G$3 -> 0 | H204: =Calculations!U801*H$3 -> 0 | I204: =Calculations!V801*I$3 -> 0
B205: =Calculations!N802 -> Total | C205: =SUM(C197:C204) -> 1.605128069 | D205: =SUM(D197:D204) -> 2.283976913 | E205: =SUM(E197:E204) -> 1.984337582 | F205: =SUM(F197:F204) -> 1.583800818 | G205: =SUM(G197:G204) -> 2.041755687 | H205: =SUM(H197:H204) -> 2.513824152 | I205: =SUM(I197:I204) -> 2.253725667 | J205: =SUM(J197:J203) -> 1.231547439
B208: =Calculations!N849 -> Business services | C208: =Year!A$6 -> 2012-13 | D208: =Year!B$6 -> 2013-14 | E208: =Year!C$6 -> 2014-15 | F208: =Year!D$6 -> 2015-16 | G208: =Year!E$6 -> 2016-17 | H208: =Year!F$6 -> 2017-18 | I208: =Year!G$6 -> 2018-19 | J208: =Year!#REF! -> 
B209: =Calculations!N850 -> Base | C209: =Calculations!P850*C$3 -> 6.519337399 | D209: =Calculations!Q850*D$3 -> 6.519337399 | E209: =Calculations!R850*E$3 -> 6.519337399 | F209: =Calculations!S850*F$3 -> 6.519337399 | G209: =Calculations!T850*G$3 -> 6.519337399 | H209: =Calculations!U850*H$3 -> 6.519337399 | I209: =Calculations!V850*I$3 -> 6.519337399 | J209: =Calculations!W850*J$3 -> 6.519337399
B210: =Calculations!N851 -> One-Off | C210: =Calculations!P851*C$3 -> 0 | D210: =Calculations!Q851*D$3 -> 0 | E210: =Calculations!R851*E$3 -> 0 | F210: =Calculations!S851*F$3 -> 0 | G210: =Calculations!T851*G$3 -> 0 | H210: =Calculations!U851*H$3 -> 0 | I210: =Calculations!V851*I$3 -> 0 | J210: =Calculations!W851*J$3 -> 0
B211: =Calculations!N852 -> Maintenance | C211: =Calculations!P852*C$3 -> 0 | D211: =Calculations!Q852*D$3 -> 0 | E211: =Calculations!R852*E$3 -> 0 | F211: =Calculations!S852*F$3 -> 0 | G211: =Calculations!T852*G$3 -> 0 | H211: =Calculations!U852*H$3 -> 0 | I211: =Calculations!V852*I$3 -> 0 | J211: =Calculations!W852*J$3 -> 0
B212: =Calculations!N853 -> Scope | C212: =Calculations!P853*C$3 -> 0 | D212: =Calculations!Q853*D$3 -> 0 | E212: =Calculations!R853*E$3 -> 0 | F212: =Calculations!S853*F$3 -> 0 | G212: =Calculations!T853*G$3 -> 0 | H212: =Calculations!U853*H$3 -> 0 | I212: =Calculations!V853*I$3 -> 0 | J212: =Calculations!W853*J$3 -> 0
B213: =Calculations!N854 -> Zero based | C213: =Calculations!P854*C$3 -> 0 | D213: =Calculations!Q854*D$3 -> 0 | E213: =Calculations!R854*E$3 -> 0 | F213: =Calculations!S854*F$3 -> 0 | G213: =Calculations!T854*G$3 -> 0 | H213: =Calculations!U854*H$3 -> 0 | I213: =Calculations!V854*I$3 -> 0 | J213: =Calculations!W854*J$3 -> 0
... 24 more rows

Sheet Summary tables $Jun 2014
B2: 1. Base year Controllable operating expenditure 2012–13 ($m 2013–14)
B3: Category | C3: 2012-13
B4: Field operations and maintenance | C4: =+'Output $Jun 2014'!C42+'Output $Jun 2014'!C54+'Output $Jun 2014'!C66+'Output $Jun 2014'!C78+'Output $Jun 2014'!C90+'Output $Jun 2014'!C102+'Output $Jun 2014'!C114+'Output $Jun 2014'!C126+'Output $Jun 2014'!C138 -> 15.10568029
B5: Transmission services | C5: =+'Output $Jun 2014'!C149+'Output $Jun 2014'!C161 -> 7.24648226
B6: Transmission operations | C6: =+'Output $Jun 2014'!C173 -> 5.164913067
B7: Asset management | C7: =+'Output $Jun 2014'!C185+'Output $Jun 2014'!C197+'Output $Jun 2014'!C198 -> 8.133827848
B8: Corporate | C8: =+'Output $Jun 2014'!C209+'Output $Jun 2014'!C221 -> 9.225065272
B9: Controllable expenditure | C9: =SUM(C4:C8) -> 44.87596874
B11: 2. Adjustments to base year Controllable operating expenditure ($m 2013–14)
B12: Category | C12: 2012–13 | D12: Adjusted | E12: Comments
B13: Field operations and maintenance | C13: =+C4 -> 15.10568029 | D13: =+C13 -> 15.10568029 | E13: no change
B14: Transmission services | C14: =+C5 -> 7.24648226 | D14: =+C14 -> 7.24648226 | E14: no change
B15: Transmission operations | C15: =+C6 -> 5.164913067 | D15: =+C15 -> 5.164913067 | E15: no change
B16: Asset management | C16: =+C7 -> 8.133827848 | D16: =+C16-'Output $Jun 2014'!C198 -> 7.682353071 | E16: Remove non-recurrent revenue reset costs from base
B17: Corporate | C17: =+C8 -> 9.225065272 | D17: =+C17 -> 9.225065272 | E17: no change
B18: Controllable expenditure | C18: =SUM(C13:C17) -> 44.87596874 | D18: =SUM(D13:D17) -> 44.42449396
B20: 3. Base year extrapolated Controllable expenditure forecasts ($m 2013-14)
B21: Category | C21: 2012-13 | D21: 2013-14 | E21: 2014–15 | F21: 2015–16 | G21: 2016–17 | H21: 2017–18 | I21: 2018–19 | J21: Total 2014-19
B22: Field operations and maintenance | C22: =+'Output $Jun 2014'!C42+'Output $Jun 2014'!C54+'Output $Jun 2014'!C66+'Output $Jun 2014'!C78+'Output $Jun 2014'!C90+'Output $Jun 2014'!C102+'Output $Jun 2014'!C114+'Output $Jun 2014'!C126+'Output $Jun 2014'!C138 -> 15.10568029 | D22: =+'Output $Jun 2014'!D42+'Output $Jun 2014'!D54+'Output $Jun 2014'!D66+'Output $Jun 2014'!D78+'Output $Jun 2014'!D90+'Output $Jun 2014'!D102+'Output $Jun 2014'!D114+'Output $Jun 2014'!D126+'Output $Jun 2014'!D138 -> 15.10568029 | E22: =+'Output $Jun 2014'!E42+'Output $Jun 2014'!E54+'Output $Jun 2014'!E66+'Output $Jun 2014'!E78+'Output $Jun 2014'!E90+'Output $Jun 2014'!E102+'Output $Jun 2014'!E114+'Output $Jun 2014'!E126+'Output $Jun 2014'!E138 -> 15.10568029 | F22: =+'Output $Jun 2014'!F42+'Output $Jun 2014'!F54+'Output $Jun 2014'!F66+'Output $Jun 2014'!F78+'Output $Jun 2014'!F90+'Output $Jun 2014'!F102+'Output $Jun 2014'!F114+'Output $Jun 2014'!F126+'Output $Jun 2014'!F138 -> 15.10568029 | G22: =+'Output $Jun 2014'!G42+'Output $Jun 2014'!G54+'Output $Jun 2014'!G66+'Output $Jun 2014'!G78+'Output $Jun 2014'!G90+'Output $Jun 2014'!G102+'Output $Jun 2014'!G114+'Output $Jun 2014'!G126+'Output $Jun 2014'!G138 -> 15.10568029 | H22: =+'Output $Jun 2014'!H42+'Output $Jun 2014'!H54+'Output $Jun 2014'!H66+'Output $Jun 2014'!H78+'Output $Jun 2014'!H90+'Output $Jun 2014'!H102+'Output $Jun 2014'!H114+'Output $Jun 2014'!H126+'Output $Jun 2014'!H138 -> 15.10568029 | I22: =+'Output $Jun 2014'!I42+'Output $Jun 2014'!I54+'Output $Jun 2014'!I66+'Output $Jun 2014'!I78+'Output $Jun 2014'!I90+'Output $Jun 2014'!I102+'Output $Jun 2014'!I114+'Output $Jun 2014'!I126+'Output $Jun 2014'!I138 -> 15.10568029 | J22: =SUM(E22:I22) -> 75.52840145
B23: Transmission services | C23: =+'Output $Jun 2014'!C149+'Output $Jun 2014'!C161 -> 7.24648226 | D23: =+'Output $Jun 2014'!D149+'Output $Jun 2014'!D161 -> 7.24648226 | E23: =+'Output $Jun 2014'!E149+'Output $Jun 2014'!E161 -> 7.24648226 | F23: =+'Output $Jun 2014'!F149+'Output $Jun 2014'!F161 -> 7.24648226 | G23: =+'Output $Jun 2014'!G149+'Output $Jun 2014'!G161 -> 7.24648226 | H23: =+'Output $Jun 2014'!H149+'Output $Jun 2014'!H161 -> 7.24648226 | I23: =+'Output $Jun 2014'!I149+'Output $Jun 2014'!I161 -> 7.24648226 | J23: =SUM(E23:I23) -> 36.2324113
B24: Transmission operations | C24: =+'Output $Jun 2014'!C173 -> 5.164913067 | D24: =+'Output $Jun 2014'!D173 -> 5.164913067 | E24: =+'Output $Jun 2014'!E173 -> 5.164913067 | F24: =+'Output $Jun 2014'!F173 -> 5.164913067 | G24: =+'Output $Jun 2014'!G173 -> 5.164913067 | H24: =+'Output $Jun 2014'!H173 -> 5.164913067 | I24: =+'Output $Jun 2014'!I173 -> 5.164913067 | J24: 25.82456533
B25: Asset management | C25: =+'Output $Jun 2014'!C185+'Output $Jun 2014'!C197 -> 7.682353071 | D25: =+'Output $Jun 2014'!D185+'Output $Jun 2014'!D197 -> 7.682353071 | E25: =+'Output $Jun 2014'!E185+'Output $Jun 2014'!E197 -> 7.682353071 | F25: =+'Output $Jun 2014'!F185+'Output $Jun 2014'!F197 -> 7.682353071 | G25: =+'Output $Jun 2014'!G185+'Output $Jun 2014'!G197 -> 7.682353071 | H25: =+'Output $Jun 2014'!H185+'Output $Jun 2014'!H197 -> 7.682353071 | I25: =+'Output $Jun 2014'!I185+'Output $Jun 2014'!I197 -> 7.682353071 | J25: 38.41176535
B26: Corporate | C26: =+'Output $Jun 2014'!C209+'Output $Jun 2014'!C221 -> 9.225065272 | D26: =+'Output $Jun 2014'!D209+'Output $Jun 2014'!D221 -> 9.225065272 | E26: =+'Output $Jun 2014'!E209+'Output $Jun 2014'!E221 -> 9.225065272 | F26: =+'Output $Jun 2014'!F209+'Output $Jun 2014'!F221 -> 9.225065272 | G26: =+'Output $Jun 2014'!G209+'Output $Jun 2014'!G221 -> 9.225065272 | H26: =+'Output $Jun 2014'!H209+'Output $Jun 2014'!H221 -> 9.225065272 | I26: =+'Output $Jun 2014'!I209+'Output $Jun 2014'!I221 -> 9.225065272 | J26: 46.12532636
B27: Base year extrapolation | C27: =SUM(C22:C26) -> 44.42449396 | D27: 44.42449396 | E27: =SUM(E22:E26) -> 44.42449396 | F27: =SUM(F22:F26) -> 44.42449396 | G27: 44.42449396 | H27: 44.42449396 | I27: 44.42449396 | J27: 222.1224698
B29: 4. Step changes ($m 2013-14)
B30: Item | D30: 2013-14 | E30: 2014–15 | F30: 2015–16 | G30: 2016–17 | H30: 2017–18 | I30: 2018–19 | J30: Total 2014-19
B31: Transmission operations - AEMO operating agreement | D31: =+'Output $Jun 2014'!D176 -> 0.3744952072 | E31: =+'Output $Jun 2014'!E176 -> 0.3744952072 | F31: =+'Output $Jun 2014'!F176 -> 0.3744952072 | G31: =+'Output $Jun 2014'!G176 -> 0.3744952072 | H31: =+'Output $Jun 2014'!H176 -> 0.3744952072 | I31: =+'Output $Jun 2014'!I176 -> 0.3744952072 | J31: =SUM(E31:I31) -> 1.872476036
B32: Asset management - Better Regulation program | D32: =+'Output $Jun 2014'!D200 -> 0.4161057858 | E32: =+'Output $Jun 2014'!E200 -> 0.4161057858 | F32: =+'Output $Jun 2014'!F200 -> 0.4161057858 | G32: =+'Output $Jun 2014'!G200 -> 0.4161057858 | H32: =+'Output $Jun 2014'!H200 -> 0.4161057858 | I32: =+'Output $Jun 2014'!I200 -> 0.4161057858 | J32: =SUM(E32:I32) -> 2.080528929
B33: Total step changes | D33: =SUM(D31:D32) -> 0.7906009931 | E33: =SUM(E31:E32) -> 0.7906009931 | F33: =SUM(F31:F32) -> 0.7906009931 | G33: 0.7906009931 | H33: 0.7906009931 | I33: 0.7906009931 | J33: 3.953004965
B35: 5. Labour growth ($m 2013-14)
B36: Category | D36: 2013-14 | E36: 2014–15 | F36: 2015–16 | G36: 2016–17 | H36: 2017–18 | I36: 2018–19 | J36: Total 2014-19
B37: Field operations and maintenance | D37: =+'Output $Jun 2014'!D47+'Output $Jun 2014'!D59+'Output $Jun 2014'!D71+'Output $Jun 2014'!D83+'Output $Jun 2014'!D95+'Output $Jun 2014'!D107+'Output $Jun 2014'!D119+'Output $Jun 2014'!D131+'Output $Jun 2014'!D143 -> 0.02359908742 | E37: =+'Output $Jun 2014'!E47+'Output $Jun 2014'!E59+'Output $Jun 2014'!E71+'Output $Jun 2014'!E83+'Output $Jun 2014'!E95+'Output $Jun 2014'!E107+'Output $Jun 2014'!E119+'Output $Jun 2014'!E131+'Output $Jun 2014'!E143 -> -0.009428504355 | F37: =+'Output $Jun 2014'!F47+'Output $Jun 2014'!F59+'Output $Jun 2014'!F71+'Output $Jun 2014'!F83+'Output $Jun 2014'!F95+'Output $Jun 2014'!F107+'Output $Jun 2014'!F119+'Output $Jun 2014'!F131+'Output $Jun 2014'!F143 -> 0.1013452524 | G37: =+'Output $Jun 2014'!G47+'Output $Jun 2014'!G59+'Output $Jun 2014'!G71+'Output $Jun 2014'!G83+'Output $Jun 2014'!G95+'Output $Jun 2014'!G107+'Output $Jun 2014'!G119+'Output $Jun 2014'!G131+'Output $Jun 2014'!G143 -> 0.3109337568 | H37: =+'Output $Jun 2014'!H47+'Output $Jun 2014'!H59+'Output $Jun 2014'!H71+'Output $Jun 2014'!H83+'Output $Jun 2014'!H95+'Output $Jun 2014'!H107+'Output $Jun 2014'!H119+'Output $Jun 2014'!H131+'Output $Jun 2014'!H143 -> 0.5235597976 | I37: =+'Output $Jun 2014'!I47+'Output $Jun 2014'!I59+'Output $Jun 2014'!I71+'Output $Jun 2014'!I83+'Output $Jun 2014'!I95+'Output $Jun 2014'!I107+'Output $Jun 2014'!I119+'Output $Jun 2014'!I131+'Output $Jun 2014'!I143 -> 0.737557015 | J37: =SUM(E37:I37) -> 1.663967317
B38: Transmission services | D38: =+'Output $Jun 2014'!D154+'Output $Jun 2014'!D166 -> 0.01409773868 | E38: =+'Output $Jun 2014'!E154+'Output $Jun 2014'!E166 -> -0.005632446214 | F38: =+'Output $Jun 2014'!F154+'Output $Jun 2014'!F166 -> 0.06054212437 | G38: =+'Output $Jun 2014'!G154+'Output $Jun 2014'!G166 -> 0.1857471339 | H38: =+'Output $Jun 2014'!H154+'Output $Jun 2014'!H166 -> 0.3127667219 | I38: =+'Output $Jun 2014'!I154+'Output $Jun 2014'!I166 -> 0.4406054301 | J38: =SUM(E38:I38) -> 0.994028964
B39: Transmission operations | D39: =+'Output $Jun 2014'!D178 -> 0.01204454165 | E39: =+'Output $Jun 2014'!E178 -> -0.0048121358 | F39: =+'Output $Jun 2014'!F178 -> 0.05172475919 | G39: =+'Output $Jun 2014'!G178 -> 0.1586948901 | H39: =+'Output $Jun 2014'!H178 -> 0.2672153239 | I39: =+'Output $Jun 2014'!I178 -> 0.3764355811 | J39: 0.8492584185
B40: Asset management | D40: =+'Output $Jun 2014'!D190+'Output $Jun 2014'!D202 -> 0.01814341897 | E40: =+'Output $Jun 2014'!E190+'Output $Jun 2014'!E202 -> -0.007007382924 | F40: =+'Output $Jun 2014'!F190+'Output $Jun 2014'!F202 -> 0.07164013349 | G40: =+'Output $Jun 2014'!G190+'Output $Jun 2014'!G202 -> 0.2310898755 | H40: =+'Output $Jun 2014'!H190+'Output $Jun 2014'!H202 -> 0.4081322857 | I40: =+'Output $Jun 2014'!I190+'Output $Jun 2014'!I202 -> 0.5563321641 | J40: 1.260187076
B41: Corporate | D41: =+'Output $Jun 2014'!D214+'Output $Jun 2014'!D226 -> 0.01477987581 | E41: =+'Output $Jun 2014'!E214+'Output $Jun 2014'!E226 -> -0.005904979331 | F41: =+'Output $Jun 2014'!F214+'Output $Jun 2014'!F226 -> 0.06347153252 | G41: =+'Output $Jun 2014'!G214+'Output $Jun 2014'!G226 -> 0.1947347467 | H41: =+'Output $Jun 2014'!H214+'Output $Jun 2014'!H226 -> 0.3279003399 | I41: =+'Output $Jun 2014'!I214+'Output $Jun 2014'!I226 -> 0.4619246876 | J41: =SUM(E41:I41) -> 1.042126327
B42: Total labour growth | D42: =SUM(D37:D41) -> 0.08266466253 | E42: =SUM(E37:E41) -> -0.03278544862 | F42: =SUM(F37:F41) -> 0.348723802 | G42: 1.081200403 | H42: 1.839574469 | I42: 2.572854878 | J42: =SUM(J37:J41) -> 5.809568103
B44: 6. Asset growth ($m 2013-14)
B45: Category | D45: 2013-14 | E45: 2014–15 | F45: 2015–16 | G45: 2016–17 | H45: 2017–18 | I45: 2018–19 | J45: Total 2014-19
B46: Field operations and maintenance | D46: =+'Output $Jun 2014'!D48+'Output $Jun 2014'!D60+'Output $Jun 2014'!D72+'Output $Jun 2014'!D84+'Output $Jun 2014'!D96+'Output $Jun 2014'!D108+'Output $Jun 2014'!D120+'Output $Jun 2014'!D132+'Output $Jun 2014'!D144 -> 0.002284709247 | E46: =+'Output $Jun 2014'!E48+'Output $Jun 2014'!E60+'Output $Jun 2014'!E72+'Output $Jun 2014'!E84+'Output $Jun 2014'!E96+'Output $Jun 2014'!E108+'Output $Jun 2014'!E120+'Output $Jun 2014'!E132+'Output $Jun 2014'!E144 -> 0.00391591504 | F46: =+'Output $Jun 2014'!F48+'Output $Jun 2014'!F60+'Output $Jun 2014'!F72+'Output $Jun 2014'!F84+'Output $Jun 2014'!F96+'Output $Jun 2014'!F108+'Output $Jun 2014'!F120+'Output $Jun 2014'!F132+'Output $Jun 2014'!F144 -> 0.005671952571 | G46: =+'Output $Jun 2014'!G48+'Output $Jun 2014'!G60+'Output $Jun 2014'!G72+'Output $Jun 2014'!G84+'Output $Jun 2014'!G96+'Output $Jun 2014'!G108+'Output $Jun 2014'!G120+'Output $Jun 2014'!G132+'Output $Jun 2014'!G144 -> 0.07244576897 | H46: =+'Output $Jun 2014'!H48+'Output $Jun 2014'!H60+'Output $Jun 2014'!H72+'Output $Jun 2014'!H84+'Output $Jun 2014'!H96+'Output $Jun 2014'!H108+'Output $Jun 2014'!H120+'Output $Jun 2014'!H132+'Output $Jun 2014'!H144 -> 0.07540077758 | I46: =+'Output $Jun 2014'!I48+'Output $Jun 2014'!I60+'Output $Jun 2014'!I72+'Output $Jun 2014'!I84+'Output $Jun 2014'!I96+'Output $Jun 2014'!I108+'Output $Jun 2014'!I120+'Output $Jun 2014'!I132+'Output $Jun 2014'!I144 -> 0.178007293 | J46: =SUM(E46:I46) -> 0.3354417071
B47: Transmission services | D47: =+'Output $Jun 2014'!D155+'Output $Jun 2014'!D167 -> 0.0002885362713 | E47: =+'Output $Jun 2014'!E155+'Output $Jun 2014'!E167 -> 0.0004942536486 | F47: =+'Output $Jun 2014'!F155+'Output $Jun 2014'!F167 -> 0.0007171433244 | G47: =+'Output $Jun 2014'!G155+'Output $Jun 2014'!G167 -> 0.009188540939 | H47: =+'Output $Jun 2014'!H155+'Output $Jun 2014'!H167 -> 0.009593655652 | I47: =+'Output $Jun 2014'!I155+'Output $Jun 2014'!I167 -> 0.02267933721 | J47: =SUM(E47:I47) -> 0.04267293077
B48: Transmission operations | D48: =+'Output $Jun 2014'!D179 -> 0.0002206153635 | E48: =+'Output $Jun 2014'!E179 -> 0.0003777863655 | F48: =+'Output $Jun 2014'!F179 -> 0.0005487382441 | G48: =+'Output $Jun 2014'!G179 -> 0.007044623009 | H48: =+'Output $Jun 2014'!H179 -> 0.007369349446 | I48: =+'Output $Jun 2014'!I179 -> 0.01745360832 | J48: 0.03279410538
B49: Asset management | D49: =+'Output $Jun 2014'!D191+'Output $Jun 2014'!D203 -> 0.0003224966167 | E49: =+'Output $Jun 2014'!E191+'Output $Jun 2014'!E203 -> 0.0005523382991 | F49: =+'Output $Jun 2014'!F191+'Output $Jun 2014'!F203 -> 0.0008018492402 | G49: =+'Output $Jun 2014'!G191+'Output $Jun 2014'!G203 -> 0.01028394392 | H49: =+'Output $Jun 2014'!H191+'Output $Jun 2014'!H203 -> 0.01074768661 | I49: =+'Output $Jun 2014'!I191+'Output $Jun 2014'!I203 -> 0.02543122731 | J49: 0.04781704537
B50: Corporate | D50: =+'Output $Jun 2014'!D215+'Output $Jun 2014'!D227 -> 0.000146876997 | E50: =+'Output $Jun 2014'!E215+'Output $Jun 2014'!E227 -> 0.0002517140024 | F50: =+'Output $Jun 2014'!F215+'Output $Jun 2014'!F227 -> 0.0003646399735 | G50: =+'Output $Jun 2014'!G215+'Output $Jun 2014'!G227 -> 0.004658058214 | H50: =+'Output $Jun 2014'!H215+'Output $Jun 2014'!H227 -> 0.004849218747 | I50: =+'Output $Jun 2014'!I215+'Output $Jun 2014'!I227 -> 0.0114265566 | J50: 0.02155018754
B51: Total asset growth | D51: =SUM(D46:D50) -> 0.003263234496 | E51: =SUM(E46:E50) -> 0.005592007355 | F51: =SUM(F46:F50) -> 0.008104323353 | G51: 0.1036209351 | H51: 0.107960688 | I51: 0.2549980224 | J51: =SUM(J46:J50) -> 0.4802759762
B53: 7. Pre-efficiencies Controllable expenditure forecasts - excluding revenue reset costs ($m 2013-14)
B54: Category | C54: 2012-13 | D54: 2013-14 | E54: 2014–15 | F54: 2015–16 | G54: 2016–17 | H54: 2017–18 | I54: 2018–19 | J54: Total 2014-19
B55: Field operations and maintenance | C55: =C22+C37+C46 -> 15.10568029 | D55: 15.13156409 | E55: 15.1001677 | F55: 15.2126975 | G55: 15.48905982 | H55: 15.70464087 | I55: 16.0212446 | J55: =SUM(E55:I55) -> 77.52781047
B56: Transmission services | C56: 7.24648226 | D56: 7.260868535 | E56: 7.241344068 | F56: 7.307741528 | G56: 7.441417935 | H56: 7.568842638 | I56: 7.709767028 | J56: =SUM(E56:I56) -> 37.2691132
B57: Transmission operations | C57: =C24+C31+C39+C48 -> 5.164913067 | D57: 5.551673431 | E57: 5.534973924 | F57: 5.591681771 | G57: 5.705147787 | H57: 5.813992947 | I57: 5.933297463 | J57: 28.57909389
B58: Asset management | C58: 7.682353071 | D58: 8.116924772 | E58: 8.092003812 | F58: 8.170900839 | G58: 8.339832676 | H58: 8.517338829 | I58: 8.680222248 | J58: 41.8002984
B59: Corporate | C59: =C26+C41+C50 -> 9.225065272 | D59: 9.239992025 | E59: 9.219412006 | F59: 9.288901444 | G59: 9.424458077 | H59: 9.55781483 | I59: 9.698416516 | J59: 47.18900287
B60: Controllable expenditure (pre-efficiency reductions) | C60: =SUM(C55:C59) -> 44.42449396 | D60: 45.30102285 | E60: =SUM(E55:E59) -> 45.18790151 | F60: =SUM(F55:F59) -> 45.57192308 | G60: 46.39991629 | H60: 47.16263011 | I60: 48.04294785 | J60: 232.3653188
B62: 8. Less: Total efficiencies by group ($m 2013-14)
B63: Category | D63: 2013-14 | E63: 2014–15 | F63: 2015–16 | G63: 2016–17 | H63: 2017–18 | I63: 2018–19 | J63: Total 2014-19
B64: Field operations and maintenance | D64: =D73-D55 -> -0.02588379667 | E64: =E73-E55 -> 0.005512589315 | F64: -0.107017205 | G64: -0.3833795257 | H64: -0.5989605751 | I64: -0.915564308 | J64: =SUM(E64:I64) -> -1.999409024
B65: Transmission services | D65: =D74-D56 -> -0.01438627495 | E65: -0.1448618074 | F65: -0.2112592677 | G65: -0.3449356748 | H65: -0.4723603775 | I65: -0.6132847673 | J65: =SUM(E65:I65) -> -1.786701895
B66: Transmission operations | D66: =D75-D57 -> -0.3867603643 | E66: -0.5200608578 | F66: -0.5767687047 | G66: -0.6902347203 | H66: -0.7990798806 | I66: -0.9183843967 | J66: -3.50452856
B67: Asset management | D67: =D76-D58 -> -0.4345717014 | E67: -0.9496507412 | F67: -1.028547769 | G67: -1.197479605 | H67: -1.374985758 | I67: -1.537869177 | J67: -6.08853305
B68: Corporate | D68: =D77-D59 -> -0.7923553971 | E68: -2.640633419 | F68: -2.918859912 | G68: -3.263020436 | H68: -3.604883319 | I68: -3.953929621 | J68: =SUM(E68:I68) -> -16.38132671
B69: Total efficiency reductions | D69: =SUM(D64:D68) -> -1.653957534 | E69: =SUM(E64:E68) -> -4.249694236 | F69: =SUM(F64:F68) -> -4.842452858 | G69: -5.879049962 | H69: -6.850269911 | I69: -7.93903227 | J69: =SUM(J64:J68) -> -29.76049924
B71: 9. Controllable operating expenditure forecasts - excluding revenue reset costs ($m 2013-14)
B72: Category | D72: 2013-14 | E72: 2014–15 | F72: 2015–16 | G72: 2016–17 | H72: 2017–18 | I72: 2018–19 | J72: Total 2014-19
B73: Field operations and maintenance | D73: =D22-D133-D118 -> 15.10568029 | E73: 15.10568029 | F73: 15.10568029 | G73: 15.10568029 | H73: 15.10568029 | I73: 15.10568029 | J73: =SUM(E73:I73) -> 75.52840145
B74: Transmission services | D74: 7.24648226 | E74: 7.09648226 | F74: 7.09648226 | G74: 7.09648226 | H74: 7.09648226 | I74: 7.09648226 | J74: =SUM(E74:I74) -> 35.4824113
B75: Transmission operations | D75: 5.164913067 | E75: 5.014913067 | F75: 5.014913067 | G75: 5.014913067 | H75: 5.014913067 | I75: 5.014913067 | J75: 25.07456533
B76: Asset management | D76: 7.682353071 | E76: 7.142353071 | F76: 7.142353071 | G76: 7.142353071 | H76: 7.142353071 | I76: 7.142353071 | J76: 35.71176535
B77: Corporate | D77: 8.447636628 | E77: 6.578778587 | F77: 6.370041532 | G77: 6.161437641 | H77: 5.952931511 | I77: 5.744486895 | J77: 30.80767617
B78: Total Controllable expenditure (excluding revenue reset) | D78: =SUM(D73:D77) -> 43.64706532 | E78: =SUM(E73:E77) -> 40.93820727 | F78: =SUM(F73:F77) -> 40.72947022 | G78: 40.52086633 | H78: 40.3123602 | I78: =SUM(I73:I77) -> 40.10391558 | J78: =SUM(J73:J77) -> 202.6048196
B79: % real reduction per annum | D79: =+(D78-D18)/D18 -> -0.0175 | E79: =+(E78-D78)/E78 -> -0.06616943488 | F79: =+(F78-E78)/F78 -> -0.005124963666 | G79: -0.005148060997 | H79: -0.005172263007 | I79: =+(I78-H78)/I78 -> -0.005197612577
B81: 10. Revenue reset costs ($m 2013-14)
B82: Item | D82: 2013-14 | E82: 2014–15 | F82: 2015–16 | G82: 2016–17 | H82: 2017–18 | I82: 2018–19 | J82: Total 2014-19
B83: Revenue reset costs | D83: =+'Output $Jun 2014'!D201 -> 0.7094603648 | E83: =+'Output $Jun 2014'!E201 -> 0.4161057858 | F83: =+'Output $Jun 2014'!F201 -> 0 | G83: =+'Output $Jun 2014'!G201 -> 0.4161057858 | H83: =+'Output $Jun 2014'!H201 -> 0.8322115717 | I83: =+'Output $Jun 2014'!I201 -> 0.5430180505 | J83: =SUM(E83:I83) -> 2.207441194
B85: 11. Total Controllable operating expenditure forecast ($m 2013-14)
B86: Category | D86: 2013-14 | E86: 2014–15 | F86: 2015–16 | G86: 2016–17 | H86: 2017–18 | I86: 2018–19 | J86: Total 2014-19
B87: Field operations and maintenance | D87: =+D73 -> 15.10568029 | E87: 15.10568029 | F87: 15.10568029 | G87: 15.10568029 | H87: 15.10568029 | I87: 15.10568029 | J87: =SUM(E87:I87) -> 75.52840145
B88: Transmission services | D88: 7.24648226 | E88: 7.09648226 | F88: 7.09648226 | G88: 7.09648226 | H88: 7.09648226 | I88: 7.09648226 | J88: =SUM(E88:I88) -> 35.4824113
B89: Transmission operations | D89: 5.164913067 | E89: 5.014913067 | F89: 5.014913067 | G89: 5.014913067 | H89: 5.014913067 | I89: 5.014913067 | J89: 25.07456533
B90: Asset management | D90: =+D76+D83 -> 8.391813436 | E90: =+E76+E83 -> 7.558458857 | F90: 7.142353071 | G90: 7.558458857 | H90: 7.974564643 | I90: 7.685371121 | J90: 37.91920655
B91: Corporate | D91: =+D77 -> 8.447636628 | E91: 6.578778587 | F91: 6.370041532 | G91: 6.161437641 | H91: 5.952931511 | I91: 5.744486895 | J91: 30.80767617
B92: Total Controllable expenditure | D92: =SUM(D87:D91) -> 44.35652568 | E92: =SUM(E87:E91) -> 41.35431306 | F92: =SUM(F87:F91) -> 40.72947022 | G92: 40.93697211 | H92: 41.14457177 | I92: 40.64693363 | J92: =SUM(J87:J91) -> 204.8122608
B94: 12. Other operating expenditure ($m 2013-14)
B95: Category | E95: 2014–15 | F95: 2015–16 | G95: 2016–17 | H95: 2017–18 | I95: 2018–19 | J95: Total 2014-19
B96: Network support | E96: =+'Other operating Inputs'!G27 -> 0 | F96: =+'Other operating Inputs'!H27 -> 0 | G96: =+'Other operating Inputs'!I27 -> 0 | H96: =+'Other operating Inputs'!J27 -> 0 | I96: =+'Other operating Inputs'!K27 -> 0 | J96: =SUM(E96:I96) -> 0
B97: Insurance premiums | E97: =+'Other operating Inputs'!G30 -> 1.005 | F97: =+'Other operating Inputs'!H30 -> 1.029 | G97: =+'Other operating Inputs'!I30 -> 1.047 | H97: =+'Other operating Inputs'!J30 -> 1.064 | I97: =+'Other operating Inputs'!K30 -> 1.078 | J97: =SUM(E97:I97) -> 5.223
B98: Self-insurance | E98: =+'Other operating Inputs'!G31 -> 0.697 | F98: =+'Other operating Inputs'!H31 -> 0.697 | G98: =+'Other operating Inputs'!I31 -> 0.697 | H98: =+'Other operating Inputs'!J31 -> 0.697 | I98: =+'Other operating Inputs'!K31 -> 0.697 | J98: 3.485
B99: Debt raising costs (benchmarked allowance) | E99: =+'Other operating Inputs'!G28 -> 0.9508858914 | F99: =+'Other operating Inputs'!H28 -> 0.9510829531 | G99: =+'Other operating Inputs'!I28 -> 0.9597156595 | H99: =+'Other operating Inputs'!J28 -> 0.9622680864 | I99: =+'Other operating Inputs'!K28 -> 0.9605707579 | J99: 4.784523348
B100: Total Other expenditure | E100: =SUM(E96:E99) -> 2.652885891 | F100: =SUM(F96:F99) -> 2.677082953 | G100: 2.70371566 | H100: 2.723268086 | I100: 2.735570758 | J100: 13.49252335
B102: 13. Operating expenditure forecast ($m 2013-14)
B103: Category | E103: 2014–15 | F103: 2015–16 | G103: 2016–17 | H103: 2017–18 | I103: 2018–19 | J103: Total 2014-19
B104: Field operations and maintenance | E104: =+E87 -> 15.10568029 | F104: 15.10568029 | G104: 15.10568029 | H104: 15.10568029 | I104: 15.10568029 | J104: =SUM(E104:I104) -> 75.52840145
B105: Transmission services | E105: 7.09648226 | F105: 7.09648226 | G105: 7.09648226 | H105: 7.09648226 | I105: 7.09648226 | J105: =SUM(E105:I105) -> 35.4824113
B106: Transmission operations | E106: 5.014913067 | F106: 5.014913067 | G106: 5.014913067 | H106: 5.014913067 | I106: 5.014913067 | J106: 25.07456533
B107: Asset management | E107: 7.558458857 | F107: 7.142353071 | G107: 7.558458857 | H107: 7.974564643 | I107: 7.685371121 | J107: 37.91920655
B108: Corporate | E108: 6.578778587 | F108: 6.370041532 | G108: 6.161437641 | H108: 5.952931511 | I108: 5.744486895 | J108: 30.80767617
B109: Total Controllable operating expenditure | E109: =SUM(E104:E108) -> 41.35431306 | F109: =SUM(F104:F108) -> 40.72947022 | G109: 40.93697211 | H109: 41.14457177 | I109: 40.64693363 | J109: 204.8122608
B110: Network support | E110: =+E96 -> 0 | F110: 0 | G110: 0 | H110: 0 | I110: 0 | J110: 0
B111: Insurance premiums | E111: 1.005 | F111: 1.029 | G111: 1.047 | H111: 1.064 | I111: 1.078 | J111: 5.223
B112: Self-insurance | E112: 0.697 | F112: 0.697 | G112: 0.697 | H112: 0.697 | I112: 0.697 | J112: 3.485
B113: Debt raising costs (benchmarked allowance) | E113: 0.9508858914 | F113: 0.9510829531 | G113: 0.9597156595 | H113: 0.9622680864 | I113: 0.9605707579 | J113: 4.784523348
B114: Total operating expenditure | E114: =SUM(E109:E113) -> 44.00719895 | F114: =SUM(F109:F113) -> 43.40655317 | G114: 43.64068777 | H114: 43.86783986 | I114: 43.38250439 | J114: 218.3047841
B116: Initial merger efficiencies
B117: Category | D117: 2013-14 | E117: 2014–15 | F117: 2015–16 | G117: 2016–17 | H117: 2017–18 | I117: 2018–19 | J117: Total 2014-19
B118: Field operations and maintenance | D118: 0 | E118: 0 | F118: 0 | G118: 0 | H118: 0 | I118: 0 | J118: =SUM(E118:I118) -> 0
B119: Transmission services | D119: 0 | E119: 0.15 | F119: =E119 -> 0.15 | G119: =F119 -> 0.15 | H119: 0.15 | I119: 0.15 | J119: =SUM(E119:I119) -> 0.75
B120: Transmission operations | D120: 0 | E120: 0.15 | F120: =E120 -> 0.15 | G120: =F120 -> 0.15 | H120: 0.15 | I120: 0.15 | J120: 0.75
B121: Asset management | D121: 0 | E121: 0.54 | F121: =E121 -> 0.54 | G121: =F121 -> 0.54 | H121: 0.54 | I121: 0.54 | J121: 2.7
B122: Corporate | D122: 0 | E122: 1.66 | F122: =E122 -> 1.66 | G122: =F122 -> 1.66 | H122: 1.66 | I122: 1.66 | J122: =SUM(E122:I122) -> 8.3
B123: Total initial merger efficiencies | D123: =SUM(D118:D122) -> 0 | E123: =SUM(E118:E122) -> 2.5 | F123: =SUM(F118:F122) -> 2.5 | G123: 2.5 | H123: 2.5 | I123: 2.5 | J123: =SUM(J118:J122) -> 12.5
B125: Productivity target (per cent real, year ending December) - applied to base controllable
B127: Item | D127: 2013-14 | E127: 2014–15 | F127: 2015–16 | G127: 2016–17 | H127: 2017–18 | I127: 2018–19
B128: Productivity target | D128: ='Input Escalators'!G18 -> -0.0175 | E128: ='Input Escalators'!H18 -> -0.005 | F128: ='Input Escalators'!I18 -> -0.005 | G128: ='Input Escalators'!J18 -> -0.005 | H128: ='Input Escalators'!K18 -> -0.005 | I128: ='Input Escalators'!L18 -> -0.005
B130: Additional productivity target reductions ($m 2013-14)
B131: (required to achieve productivity target % reductions each year)
B132: Category | D132: 2013-14 | E132: 2014–15 | F132: 2015–16 | G132: 2016–17 | H132: 2017–18 | I132: 2018–19 | J132: Total 2014-19
B133: Field operations and maintenance | D133: 0 | E133: 0 | F133: 0 | G133: 0 | H133: 0 | I133: 0 | J133: =SUM(E133:I133) -> 0
B134: Transmission services | D134: 0 | E134: 0 | F134: 0 | G134: 0 | H134: 0 | I134: 0 | J134: =SUM(E134:I134) -> 0
B135: Transmission operations | D135: 0 | E135: 0 | F135: 0 | G135: 0 | H135: 0 | I135: 0 | J135: 0
B136: Asset management | D136: 0 | E136: 0 | F136: 0 | G136: 0 | H136: 0 | I136: 0 | J136: 0
B137: Corporate | D137: =-D$128*(D27-D100)+C137 -> 0.7774286443 | E137: 0.9862866846 | F137: 1.19502374 | G137: 1.403627631 | H137: 1.612133761 | I137: 1.820578377 | J137: =SUM(E137:I137) -> 7.017650193
B138: Total additional productivity target reductions | D138: =SUM(D133:D137) -> 0.7774286443 | E138: =SUM(E133:E137) -> 0.9862866846 | F138: =SUM(F133:F137) -> 1.19502374 | G138: 1.403627631 | H138: 1.612133761 | I138: 1.820578377 | J138: =SUM(J133:J137) -> 7.017650193
B141: Category | C141: 2012–13 | D141: 2013–14 | E141: 2014–15 | F141: 2015–16 | G141: 2016–17 | H141: 2017–18 | I141: 2018–19
B142: Base year total | C142: =+'Output $Jun 2014'!D10 -> 44.42449396 | D142: =+'Output $Jun 2014'!E10 -> 44.42449396 | E142: =+'Output $Jun 2014'!F10 -> 44.42449396 | F142: =+'Output $Jun 2014'!G10 -> 44.42449396 | G142: =+'Output $Jun 2014'!H10 -> 44.42449396 | H142: =+'Output $Jun 2014'!I10 -> 44.42449396 | I142: =+'Output $Jun 2014'!J10 -> 44.42449396
B143: Field maintenance variances | C143: =+'Output $Jun 2014'!C12 -> 0 | D143: =+'Output $Jun 2014'!D12 -> 0 | E143: =+'Output $Jun 2014'!E12 -> 0 | F143: =+'Output $Jun 2014'!F12 -> 0 | G143: =+'Output $Jun 2014'!G12 -> 0 | H143: =+'Output $Jun 2014'!H12 -> 0 | I143: =+'Output $Jun 2014'!I12 -> 0
B144: Revenue Reset | C144: =+'Output $Jun 2014'!C14+'Output $Jun 2014'!C11 -> 0.4514747776 | D144: =+'Output $Jun 2014'!D14 -> 0.7094603648 | E144: =+'Output $Jun 2014'!E14 -> 0.4161057858 | F144: =+'Output $Jun 2014'!F14 -> 0 | G144: =+'Output $Jun 2014'!G14 -> 0.4161057858 | H144: =+'Output $Jun 2014'!H14 -> 0.8322115717 | I144: =+'Output $Jun 2014'!I14 -> 0.5430180505
B145: Scope Changes | C145: =+'Output $Jun 2014'!C13 -> 0 | D145: =+'Output $Jun 2014'!D13 -> 0.7906009931 | E145: =+'Output $Jun 2014'!E13 -> 0.7906009931 | F145: =+'Output $Jun 2014'!F13 -> 0.7906009931 | G145: =+'Output $Jun 2014'!G13 -> 0.7906009931 | H145: =+'Output $Jun 2014'!H13 -> 0.7906009931 | I145: =+'Output $Jun 2014'!I13 -> 0.7906009931
B146: Labour growth | C146: =+'Output $Jun 2014'!C15 -> 0 | D146: =+'Output $Jun 2014'!D15 -> 0.08266466253 | E146: =+'Output $Jun 2014'!E15 -> -0.03278544862 | F146: =+'Output $Jun 2014'!F15 -> 0.348723802 | G146: =+'Output $Jun 2014'!G15 -> 1.081200403 | H146: =+'Output $Jun 2014'!H15 -> 1.839574469 | I146: =+'Output $Jun 2014'!I15 -> 2.572854878
B147: Asset growth | C147: =+'Output $Jun 2014'!C16 -> 0 | D147: =+'Output $Jun 2014'!D16 -> 0.003263234496 | E147: =+'Output $Jun 2014'!E16 -> 0.005592007355 | F147: =+'Output $Jun 2014'!F16 -> 0.008104323353 | G147: =+'Output $Jun 2014'!G16 -> 0.1036209351 | H147: =+'Output $Jun 2014'!H16 -> 0.107960688 | I147: =+'Output $Jun 2014'!I16 -> 0.2549980224
B148: Efficiencies | C148: 0 | D148: =+D69 -> -1.653957534 | E148: -4.249694236 | F148: -4.842452858 | G148: -5.879049962 | H148: -6.850269911 | I148: -7.93903227
B149: Total controllable | C149: =SUM(C142:C148) -> 44.87596874 | D149: 44.35652568 | E149: =SUM(E142:E148) -> 41.35431306 | F149: =SUM(F142:F148) -> 40.72947022 | G149: 40.93697211 | H149: 41.14457177 | I149: 40.64693363
B152: Category | C152: 2012–13 | D152: 2013–14 | E152: 2014–15 | F152: 2015–16 | G152: 2016–17 | H152: 2017–18 | I152: 2018–19
B153: Base Controllable | C153: =+C149-C154 -> 44.42449396 | D153: 43.64706532 | E153: 40.93820727 | F153: 40.72947022 | G153: 40.52086633 | H153: 40.3123602 | I153: 40.10391558
B154: Revenue Reset | C154: =+C144 -> 0.4514747776 | D154: 0.7094603648 | E154: 0.4161057858 | F154: 0 | G154: 0.4161057858 | H154: 0.8322115717 | I154: 0.5430180505
B155: Total controllable | C155: =SUM(C153:C154) -> 44.87596874 | D155: =SUM(D153:D154) -> 44.35652568 | E155: =SUM(E153:E154) -> 41.35431306 | F155: 40.72947022 | G155: 40.93697211 | H155: 41.14457177 | I155: 40.64693363
B157: % Change | C157: 2012–13 | D157: 2013–14 | E157: 2014–15 | F157: 2015–16 | G157: 2016–17 | H157: 2017–18 | I157: 2018–19 | J157: Average
B158: Base Controllable | D158: =(D153-C153)/C153 -> -0.0175 | E158: -0.06206277606 | F158: -0.005098832336 | G158: -0.005121694203 | H158: -0.00514564836 | I158: -0.005170737089 | J158: =(I153-D153)/I153/5 -> -0.01766984436
B161: Item | D161: 2013-14 | E161: 2014–15 | F161: 2015–16 | G161: 2016–17 | H161: 2017–18 | I161: 2018–19 | J161: Total 2014-19
B162: Base year extrapolation (exc Revenue reset costs) | D162: =D27 -> 44.42449396 | E162: 44.42449396 | F162: 44.42449396 | G162: 44.42449396 | H162: 44.42449396 | I162: 44.42449396 | J162: =SUM(E162:I162) -> 222.1224698
B163: Plus step changes | D163: =D33 -> 0.7906009931 | E163: 0.7906009931 | F163: 0.7906009931 | G163: 0.7906009931 | H163: 0.7906009931 | I163: 0.7906009931 | J163: =SUM(E163:I163) -> 3.953004965
B164: Plus asset growth | D164: =D51 -> 0.003263234496 | E164: 0.005592007355 | F164: 0.008104323353 | G164: 0.1036209351 | H164: 0.107960688 | I164: 0.2549980224 | J164: =SUM(E164:I164) -> 0.4802759762
B165: Plus labour growth | D165: =D42 -> 0.08266466253 | E165: -0.03278544862 | F165: 0.348723802 | G165: 1.081200403 | H165: 1.839574469 | I165: 2.572854878 | J165: =SUM(E165:I165) -> 5.809568103
B166: Pre-efficiencies forecast | D166: =D60 -> 45.30102285 | E166: 45.18790151 | F166: 45.57192308 | G166: 46.39991629 | H166: 47.16263011 | I166: 48.04294785 | J166: 232.3653188
B167: Less efficiencies | D167: =+D69 -> -1.653957534 | E167: -4.249694236 | F167: -4.842452858 | G167: -5.879049962 | H167: -6.850269911 | I167: -7.93903227 | J167: -29.76049924
B168: Total efficiency reductions | D168: =SUM(D167:D167) -> -1.653957534 | E168: -4.249694236 | F168: -4.842452858 | G168: -5.879049962 | H168: -6.850269911 | I168: -7.93903227 | J168: -29.76049924
B169: Total Controllable expenditure (exc Revenue Reset costs) | D169: =D166+D168 -> 43.64706532 | E169: 40.93820727 | F169: 40.72947022 | G169: 40.52086633 | H169: 40.3123602 | I169: 40.10391558 | J169: 202.6048196
B170: Plus revenue reset costs | D170: =D83 -> 0.7094603648 | E170: 0.4161057858 | F170: 0 | G170: 0.4161057858 | H170: 0.8322115717 | I170: 0.5430180505 | J170: 2.207441194
B171: Total Controllable expenditure | D171: =D169+D170 -> 44.35652568 | E171: =E169+E170 -> 41.35431306 | F171: 40.72947022 | G171: 40.93697211 | H171: 41.14457177 | I171: 40.64693363 | J171: =SUM(E171:I171) -> 204.8122608
